Authority,URI,Effective Date,Service/Dir,Supplier,Supplier ID,Payment Date,Net Amount,Irrecoverable VAT,Purpose of Spend,Transaction Reference
Borough Council of Kings Lynn and West Norfolk,E07000146,30/06/19,Resort Seafront               ,D SAYERS                                ,100428      ,02-May-19,1150,0,General Repairs               ,41209               
Borough Council of Kings Lynn and West Norfolk,E07000146,30/06/19,Resort Trading Operations     ,D SAYERS                                ,100428      ,02-May-19,3400,0,General Repairs               ,41401               
Borough Council of Kings Lynn and West Norfolk,E07000146,30/06/19,Public Cleansing              ,EARTH ANCHORS LTD                       ,100508      ,06-May-19,1790,0,Tools And Equipment           ,94101               
Borough Council of Kings Lynn and West Norfolk,E07000146,30/06/19,Precepts Of Parish Councils   ,FELTWELL PARISH COUNCIL                 ,100620      ,15-Apr-19,40000,0,Parishes                      ,00000               
Borough Council of Kings Lynn and West Norfolk,E07000146,30/06/19,Sports Grounds North          ,LE STRANGE ESTATE                       ,100920      ,29-Apr-19,1750,0,Rent                          ,40620               
Borough Council of Kings Lynn and West Norfolk,E07000146,30/06/19,Precepts Of Parish Councils   ,MIDDLETON PARISH COUNCIL                ,101055      ,15-Apr-19,22117.11,0,Parishes                      ,00000               
Borough Council of Kings Lynn and West Norfolk,E07000146,30/06/19,Precepts Of Parish Councils   ,NORTHWOLD PARISH COUNCIL                ,101164      ,15-Apr-19,19041.75,0,Parishes                      ,00000               
Borough Council of Kings Lynn and West Norfolk,E07000146,30/06/19,Precepts Of Parish Councils   ,ROYDON PARISH COUNCIL                   ,101371      ,15-Apr-19,5750,0,Parishes                      ,00000               
Borough Council of Kings Lynn and West Norfolk,E07000146,30/06/19,Precepts Of Parish Councils   ,WATLINGTON PARISH COUNCIL               ,101622      ,15-Apr-19,56144,0,Parishes                      ,00000               
Borough Council of Kings Lynn and West Norfolk,E07000146,30/06/19,Special Expenses              ,WATLINGTON PARISH COUNCIL               ,101622      ,15-Apr-19,505,0,Special Expenses Credit       ,71411               
Borough Council of Kings Lynn and West Norfolk,E07000146,30/06/19,Precepts Of Parish Councils   ,WELNEY PARISH COUNCIL                   ,101631      ,15-Apr-19,16773,0,Parishes                      ,00000               
Borough Council of Kings Lynn and West Norfolk,E07000146,30/06/19,Precepts Of Parish Councils   ,UPWELL INTERNAL DRAINAGE BOARD          ,101587      ,20-Jun-19,13485,0,Drainage Boards               ,00000               
Borough Council of Kings Lynn and West Norfolk,E07000146,30/06/19,Food Hygiene General          ,SOUTH HOLLAND DISTRICT COUNCIL          ,106763      ,24-Jun-19,2524,0,Professional Fees             ,25413               
Borough Council of Kings Lynn and West Norfolk,E07000146,30/06/19,Community Transport           ,S N KINGSTON MARINE SERVICES            ,112276      ,23-May-19,1716.66,0,Transport Subsidies           ,20550               
Borough Council of Kings Lynn and West Norfolk,E07000146,30/06/19,Custom House & TIC            ,R GAWN 1990 ACCUMULATION&MAINT SETT'T   ,121238      ,08-Apr-19,1280,0,Rent                          ,43001               
Borough Council of Kings Lynn and West Norfolk,E07000146,30/06/19,Learning Catalyst             ,HIGHGATE INFANT SCHOOL                  ,120815      ,09-May-19,1397.45,0,Partnerships                  ,77587               
Borough Council of Kings Lynn and West Norfolk,E07000146,30/06/19,Land Acquisitions             ,HMRC                                    ,128812      ,09-May-19,189500,0,Land & Buildings              ,C8147               
Borough Council of Kings Lynn and West Norfolk,E07000146,30/06/19,Careline                      ,SUPRA UK LTD                            ,134960      ,08-Apr-19,1698,0,Items Purchased For Resale    ,37001               
Borough Council of Kings Lynn and West Norfolk,E07000146,30/06/19,Mintlyn Crematorium           ,ZAGOTA CREATION LTD                     ,133357      ,08-Apr-19,550,0,Maintenance Contracts         ,20830               
Borough Council of Kings Lynn and West Norfolk,E07000146,30/06/19,Tek- Main                     ,TRAFFIC ENFORCEMENT CENTRE              ,139856      ,18-Apr-19,10000,0,Tek Fund                      ,21841               
Borough Council of Kings Lynn and West Norfolk,E07000146,30/06/19,Adapt Grant                   ,PREFERRED ACCESS RAMP SYSTEMS LTD       ,142402      ,06-May-19,1478,0,Works                         ,C1202               
Borough Council of Kings Lynn and West Norfolk,E07000146,30/06/19,Hunstanton Parks HLF          ,TFH GAZEBOS                             ,140249      ,27-Jun-19,925,0,Tools And Equipment           ,41213               
Borough Council of Kings Lynn and West Norfolk,E07000146,30/06/19,Resort Seafront               ,TFH GAZEBOS                             ,140249      ,27-Jun-19,925,0,Tools And Equipment           ,41209               
Borough Council of Kings Lynn and West Norfolk,E07000146,30/06/19,Community Infrastructure Levy ,SNETTISHAM PARISH COUNCIL               ,101445      ,18-Apr-19,3060,0,Payment to Parishes           ,62704               
Borough Council of Kings Lynn and West Norfolk,E07000146,30/06/19,LILY PHASE 4                  ,ST FAITHS CHURCH PCC                    ,101469      ,20-Jun-19,500,0,Grants                        ,31023               
Borough Council of Kings Lynn and West Norfolk,E07000146,30/06/19,King's Court - DWP Specific   ,KABA LTD                                ,100859      ,16-May-19,4999,0,Works                         ,C1523               
Borough Council of Kings Lynn and West Norfolk,E07000146,30/06/19,50132                         ,FIELDS IN TRUST                         ,134443      ,22-Apr-19,800,0,Professional Fees             ,50132               
Borough Council of Kings Lynn and West Norfolk,E07000146,30/06/19,Property Services             ,FIELDS IN TRUST                         ,134443      ,22-Apr-19,800,0,Professional Fees             ,50132               
Borough Council of Kings Lynn and West Norfolk,E07000146,30/06/19,CCTV                          ,NET-CTRL LTD                            ,142211      ,11-Jul-19,829.32,0,General Repairs               ,49901               
Borough Council of Kings Lynn and West Norfolk,E07000146,30/06/19,ICT                           ,MIDLAND COMPUTER SERVICES LTD           ,139465      ,29-Apr-19,4563.4,0,Computer Hardware Maintenance ,55101               
Borough Council of Kings Lynn and West Norfolk,E07000146,30/06/19,Parish/Borough Coun. Elections,NORSE COMMERCIAL SERVICES LTD           ,134973      ,10-Jun-19,515,0,Miscellaneous                 ,70503               
Borough Council of Kings Lynn and West Norfolk,E07000146,30/06/19,European Elections            ,NORSE COMMERCIAL SERVICES LTD           ,134973      ,24-Jun-19,662,0,Miscellaneous                 ,75506               
Borough Council of Kings Lynn and West Norfolk,E07000146,30/06/19,Precepts Of Parish Councils   ,DENVER PARISH COUNCIL                   ,100456      ,15-Apr-19,17900,0,Parishes                      ,00000               
Borough Council of Kings Lynn and West Norfolk,E07000146,30/06/19,Misc (SMP Bench) from 2018    ,SOUTH QUAY HOTELS LTD                   ,132203      ,16-May-19,666.67,0,Tools And Equipment           ,21888               
Borough Council of Kings Lynn and West Norfolk,E07000146,30/06/19,ICT                           ,ESRI (UK) LTD                           ,121747      ,06-May-19,15383,0,Computer Software Maintenance ,55101               
Borough Council of Kings Lynn and West Norfolk,E07000146,30/06/19,50127                         ,ACT NOW TRAINING LTD                    ,138959      ,25-Apr-19,4700,0,In-House Training             ,50127               
Borough Council of Kings Lynn and West Norfolk,E07000146,30/06/19,Training Holding Account      ,ACT NOW TRAINING LTD                    ,138959      ,25-Apr-19,4700,0,In-House Training             ,50127               
Borough Council of Kings Lynn and West Norfolk,E07000146,30/06/19,Safety and Welfare            ,SPECSAVERS CORPORATE EYECARE            ,136972      ,03-Jun-19,850,0,Eye Test                      ,50126               
Borough Council of Kings Lynn and West Norfolk,E07000146,30/06/19,Parish/Borough Coun. Elections,KINGS LYNN CHRISTIAN FELLOWSHIP         ,124229      ,06-Jun-19,935,0,Hire Of Halls                 ,70503               
Borough Council of Kings Lynn and West Norfolk,E07000146,30/06/19,Custom House & TIC            ,KINGS LYNN TOWN GUIDES                  ,120679      ,23-May-19,532,0,Ticket Sales                  ,43001               
Borough Council of Kings Lynn and West Norfolk,E07000146,30/06/19,Hanse from 2018               ,MED PTS AMBULANCE SERVICES              ,143090      ,09-May-19,560,0,Professional Fees             ,21871               
Borough Council of Kings Lynn and West Norfolk,E07000146,30/06/19,Precepts Of Parish Councils   ,PENTNEY PARISH COUNCIL                  ,101243      ,15-Apr-19,12500,0,Parishes                      ,00000               
Borough Council of Kings Lynn and West Norfolk,E07000146,30/06/19,Precepts Of Parish Councils   ,HOUGHTON PARISH COUNCIL                 ,100785      ,15-Apr-19,550,0,Parishes                      ,00000               
Borough Council of Kings Lynn and West Norfolk,E07000146,30/06/19,KL Arts Centre                ,ST CLEMENTS HIGH SCHOOL                 ,116337      ,16-May-19,767.5,0,Hirings Ticketed              ,46101               
Borough Council of Kings Lynn and West Norfolk,E07000146,30/06/19,Improving Attainment          ,HOWARD JUNIOR SCHOOL                    ,102434      ,17-Jun-19,891.66,0,Small Projects                ,77580               
Borough Council of Kings Lynn and West Norfolk,E07000146,30/06/19,OPE- Hunstanton Housing Sites ,CHAPLIN FARRANT LIMITED                 ,123551      ,25-Apr-19,1250,0,Professional Fees             ,C8157               
Borough Council of Kings Lynn and West Norfolk,E07000146,30/06/19,Management Expenses           ,LINK TREASURY SERVICES LTD              ,143831      ,15-Apr-19,9000,0,Management Expenses           ,H2101               
Borough Council of Kings Lynn and West Norfolk,E07000146,30/06/19,Street Art Project            ,NICOLA MARRAY- WOODS                    ,111841      ,02-May-19,900,0,Professional Fees             ,42504               
Borough Council of Kings Lynn and West Norfolk,E07000146,30/06/19,Hanse from 2018               ,N P S S SECURITY SERVICES               ,144185      ,13-Jun-19,1356.4,0,Professional Fees             ,21871               
Borough Council of Kings Lynn and West Norfolk,E07000146,30/06/19,Precepts Of Parish Councils   ,CASTLE ACRE PARISH COUNCIL              ,100297      ,15-Apr-19,13525,0,Parishes                      ,00000               
Borough Council of Kings Lynn and West Norfolk,E07000146,30/06/19,Mayor Making                  ,WEST NORFOLKS FLYING CHEF               ,101803      ,03-Jun-19,1011,0,Hospitality                   ,71017               
Borough Council of Kings Lynn and West Norfolk,E07000146,30/06/19,Precepts Of Parish Councils   ,STANHOE PARISH COUNCIL                  ,101478      ,15-Apr-19,7000,0,Parishes                      ,00000               
Borough Council of Kings Lynn and West Norfolk,E07000146,30/06/19,50127                         ,LEADERSHIP IN ACTION LTD                ,145974      ,06-Jun-19,25200,0,Qualification Training        ,50127               
Borough Council of Kings Lynn and West Norfolk,E07000146,30/06/19,Training Holding Account      ,LEADERSHIP IN ACTION LTD                ,145974      ,06-Jun-19,25200,0,Qualification Training        ,50127               
Borough Council of Kings Lynn and West Norfolk,E07000146,30/06/19,"St Nicholas Close, Gayton     ",MR TIMOTHY LEADER                       ,143485      ,15-Apr-19,1000,0,Consultants Fees              ,63119               
Borough Council of Kings Lynn and West Norfolk,E07000146,30/06/19,ICT                           ,SWITCHSHOP LTD                          ,124299      ,11-Apr-19,501,0,Communications                ,55101               
Borough Council of Kings Lynn and West Norfolk,E07000146,30/06/19,Revs & Bens System Replacement,CIVICA  UK LTD                          ,128548      ,08-Apr-19,1950,0,Computer Equip (Hardware)     ,C9050               
Borough Council of Kings Lynn and West Norfolk,E07000146,30/06/19,Custom House & TIC            ,CLIVEDEN CONSERVATION                   ,146680      ,18-Apr-19,22295,0,General Repairs               ,43001               
Borough Council of Kings Lynn and West Norfolk,E07000146,30/06/19,Disabled Facilties Grant      ,FUTUREHEAT SERVICES LTD                 ,144403      ,08-Apr-19,5319.26,0,Works                         ,C1201               
Borough Council of Kings Lynn and West Norfolk,E07000146,30/06/19,Adapt Grant                   ,FUTUREHEAT SERVICES LTD                 ,144403      ,23-May-19,2974.27,0,Works                         ,C1202               
Borough Council of Kings Lynn and West Norfolk,E07000146,30/06/19,Parking Operations - Borough  ,MOBIUS NETWORKS LTD                     ,141429      ,09-May-19,568.39,0,Tools And Equipment           ,21840               
Borough Council of Kings Lynn and West Norfolk,E07000146,30/06/19,Parking Operations - Borough  ,MOBIUS NETWORKS LTD                     ,141429      ,13-Jun-19,691.3,0,Tools And Equipment           ,21840               
Borough Council of Kings Lynn and West Norfolk,E07000146,30/06/19,Public Health- BJF Outreach   ,BENJAMIN FOUNDATION                     ,146873      ,25-Apr-19,2500,0,Homelessness Prevention Fund  ,33014               
Borough Council of Kings Lynn and West Norfolk,E07000146,30/06/19,Improving Attainment          ,ALIVE LEISURE TRUST                     ,143591      ,15-Apr-19,934.2,0,Small Projects                ,77580               
Borough Council of Kings Lynn and West Norfolk,E07000146,30/06/19,Refuse & Recyc Mgmt           ,WHITESPACE WORK SOFTWARE LTD            ,137896      ,25-Apr-19,8400,0,Computer Equipment            ,20410               
Borough Council of Kings Lynn and West Norfolk,E07000146,30/06/19,Premises                      ,G C BAXTER & ASSOCIATES LTD             ,105203      ,06-May-19,1020,0,External Fees/Consultancy     ,C8504               
Borough Council of Kings Lynn and West Norfolk,E07000146,30/06/19,Premises                      ,G C BAXTER & ASSOCIATES LTD             ,105203      ,06-May-19,1138.5,0,External Fees/Consultancy     ,C8504               
Borough Council of Kings Lynn and West Norfolk,E07000146,30/06/19,Adapt Grant                   ,STANNAH LIFT SERVICES LTD               ,101479      ,20-Jun-19,2994,0,Works                         ,C1202               
Borough Council of Kings Lynn and West Norfolk,E07000146,30/06/19,Phase -Lynnsport 4 /5 Contract,LOVELL PARTNERSHIPS LTD                 ,143432      ,11-Apr-19,18644.89,0,Works                         ,C8124               
Borough Council of Kings Lynn and West Norfolk,E07000146,30/06/19,NORA Phase 3                  ,LOVELL PARTNERSHIPS LTD                 ,143432      ,11-Apr-19,310624.24,0,Works                         ,C8150               
Borough Council of Kings Lynn and West Norfolk,E07000146,30/06/19,Phase 1 -  Marsh Lane         ,LOVELL PARTNERSHIPS LTD                 ,143432      ,16-May-19,16895.76,0,Works                         ,C8121               
Borough Council of Kings Lynn and West Norfolk,E07000146,30/06/19,NORA Phase 3                  ,LOVELL PARTNERSHIPS LTD                 ,143432      ,17-Jun-19,113557.05,0,Works                         ,C8150               
Borough Council of Kings Lynn and West Norfolk,E07000146,30/06/19,Townscape Heritage Initiative ,W SPICE BUILDING LTD                    ,145648      ,06-May-19,70395.67,0,THI Critical Grant Projects   ,C8106               
Borough Council of Kings Lynn and West Norfolk,E07000146,30/06/19,Marriotts Warehouse           ,AMR ELECTRICAL SERVICES LTD             ,126614      ,01-Jul-19,938,0,General Repairs               ,49997               
Borough Council of Kings Lynn and West Norfolk,E07000146,30/06/19,PC Improvements               ,DELL CORPORATION LTD                    ,100453      ,17-Jun-19,696,0,Computer Equip (Hardware)     ,C9043               
Borough Council of Kings Lynn and West Norfolk,E07000146,30/06/19,PC Improvements               ,DELL CORPORATION LTD                    ,100453      ,01-Jul-19,639.57,0,Computer Equip (Hardware)     ,C9043               
Borough Council of Kings Lynn and West Norfolk,E07000146,30/06/19,BCKLWN Control Account        ,ROSSENDALES COLLECT LTD                 ,129076      ,23-May-19,761.01,0,VAT Input (VAT Only Invoice)  ,BC999               
Borough Council of Kings Lynn and West Norfolk,E07000146,30/06/19,West Winch Growth Area        ,GERALD EVE LLP                          ,147839      ,27-May-19,2918.56,0,Professional Fees             ,71567               
Borough Council of Kings Lynn and West Norfolk,E07000146,30/06/19,71567                         ,GERALD EVE LLP                          ,147839      ,27-May-19,2918.56,0,Professional Fees             ,71567               
Borough Council of Kings Lynn and West Norfolk,E07000146,30/06/19,Downham Market                ,LEICESTERSHIRE COUNTY COUNCIL           ,142448      ,24-Jun-19,674,0,Downham Mkt mini guide        ,48529               
Borough Council of Kings Lynn and West Norfolk,E07000146,30/06/19,50127                         ,PET INDUSTRY FEDERATION                 ,147693      ,06-May-19,990,0,Qualification Training        ,50127               
Borough Council of Kings Lynn and West Norfolk,E07000146,30/06/19,Training Holding Account      ,PET INDUSTRY FEDERATION                 ,147693      ,06-May-19,990,0,Qualification Training        ,50127               
Borough Council of Kings Lynn and West Norfolk,E07000146,30/06/19,Mintlyn Crematorium           ,VIVEDIA LTD                             ,147700      ,25-Apr-19,7080,0,Maintenance Contracts         ,20830               
Borough Council of Kings Lynn and West Norfolk,E07000146,30/06/19,Mintlyn Crematorium           ,VIVEDIA LTD                             ,147700      ,27-May-19,962.2,0,Professional Fees             ,20830               
Borough Council of Kings Lynn and West Norfolk,E07000146,30/06/19,The Walks                     ,ENTERPRISE RENT-A-CAR (UK) LTD          ,100567      ,27-May-19,1469.72,0,Hire Car Charge (Enterprise)  ,40244               
Borough Council of Kings Lynn and West Norfolk,E07000146,30/06/19,Care & Repair - Home Impro Agy,SEVEN RESOURCING LTD                    ,145043      ,02-May-19,787.76,0,Agency Staff                  ,31002               
Borough Council of Kings Lynn and West Norfolk,E07000146,30/06/19,Care & Repair - Home Impro Agy,SEVEN RESOURCING LTD                    ,145043      ,23-May-19,968,0,Agency Staff                  ,31002               
Borough Council of Kings Lynn and West Norfolk,E07000146,30/06/19,Depot Infestation Works       ,CARTER ACCOMMODATION LTD                ,145045      ,13-Jun-19,716.32,0,Rechargeable Works            ,Y1023               
Borough Council of Kings Lynn and West Norfolk,E07000146,30/06/19,Public Cleansing              ,JOHNSTON SWEEPERS LTD                   ,121881      ,03-Jun-19,972.4,0,Contract Repairs              ,94101               
Borough Council of Kings Lynn and West Norfolk,E07000146,30/06/19,Public Cleansing              ,JOHNSTON SWEEPERS LTD                   ,121881      ,08-Jul-19,585.08,0,Sweeper Consumables           ,94101               
Borough Council of Kings Lynn and West Norfolk,E07000146,30/06/19,Supplier Holding Account      ,BARTRAM MOWERS LTD                      ,100158      ,27-May-19,1268.88,0,Materials                     ,M0102               
Borough Council of Kings Lynn and West Norfolk,E07000146,30/06/19,Leisure Administration        ,XMA LTD                                 ,104939      ,13-Jun-19,507.68,0,Stationery & Office Supplies  ,50701               
Borough Council of Kings Lynn and West Norfolk,E07000146,30/06/19,Disabled Facilties Grant      ,CHAS D ALLFLATT LTD                     ,100315      ,11-Apr-19,8095.2,0,Works                         ,C1201               
Borough Council of Kings Lynn and West Norfolk,E07000146,30/06/19,Parking Operations - Borough  ,E AKERS                                 ,100500      ,08-Apr-19,534.95,0,Gen Rep St James              ,21840               
Borough Council of Kings Lynn and West Norfolk,E07000146,30/06/19,Townscape Heritage Initiative ,NORFOLK BUILDING CO                     ,147786      ,02-May-19,2237.5,0,THI Priority Grant Projects   ,C8106               
Borough Council of Kings Lynn and West Norfolk,E07000146,30/06/19,Housing Options Programme     ,THE GRANGE HOTEL                        ,124746      ,23-May-19,583.33,0,Temporary Accommodation       ,33004               
Borough Council of Kings Lynn and West Norfolk,E07000146,30/06/19,Housing Options Programme     ,THE GRANGE HOTEL                        ,124746      ,27-May-19,583.33,0,Temporary Accommodation       ,33004               
Borough Council of Kings Lynn and West Norfolk,E07000146,30/06/19,Printing & Copying - Printroom,ANTALIS  LTD.                           ,117917      ,11-Jul-19,835.2,0,Materials                     ,52504               
Borough Council of Kings Lynn and West Norfolk,E07000146,30/06/19,The Walks                     ,PICK & BANHAM                           ,101271      ,11-Apr-19,1914,0,General Repairs               ,40244               
Borough Council of Kings Lynn and West Norfolk,E07000146,30/06/19,Policy and Partnerships       ,NORFOLK COUNTY COUNCIL                  ,101142      ,18-Apr-19,2000,0,Small Projects                ,77503               
Borough Council of Kings Lynn and West Norfolk,E07000146,30/06/19,Parking Operations - Borough  ,NORFOLK COUNTY COUNCIL                  ,101142      ,16-May-19,1236.84,0,Winter Maintenance            ,21840               
Borough Council of Kings Lynn and West Norfolk,E07000146,30/06/19,Head of Legal Services        ,NORFOLK COUNTY COUNCIL                  ,101142      ,10-Jun-19,694,0,Commissioning Ext. Legal fees ,50203               
Borough Council of Kings Lynn and West Norfolk,E07000146,30/06/19,Decrim - Other                ,NORFOLK COUNTY COUNCIL                  ,101142      ,17-Jun-19,134709.02,0,Agency                        ,21839               
Borough Council of Kings Lynn and West Norfolk,E07000146,30/06/19,CCTV Multistorey              ,AXEL-ELEK SERVICES LTD T/A CURTI LIFTS  ,140892      ,08-Jul-19,1045,0,Works                         ,C1807               
Borough Council of Kings Lynn and West Norfolk,E07000146,30/06/19,Domestic Refuse               ,KIER SERVICES ENVIRONMENTAL             ,141535      ,02-May-19,1288.02,0,Dayworks and Addnl Works      ,20412               
Borough Council of Kings Lynn and West Norfolk,E07000146,30/06/19,Recycling Composting          ,KIER SERVICES ENVIRONMENTAL             ,141535      ,27-May-19,10492.61,0,Contracted Services           ,28124               
Borough Council of Kings Lynn and West Norfolk,E07000146,30/06/19,European Elections            ,STEPHEN AUSTIN & SONS LIMITED           ,147948      ,03-Jun-19,7805.83,0,Postages                      ,75506               
Borough Council of Kings Lynn and West Norfolk,E07000146,30/06/19,European Elections            ,STEPHEN AUSTIN & SONS LIMITED           ,147948      ,13-Jun-19,7125,0,Stationery & Office Supplies  ,75506               
Borough Council of Kings Lynn and West Norfolk,E07000146,30/06/19,Custom House & TIC            ,SMITH BUILDING SERVICES LTD             ,101443      ,06-Jun-19,1854.97,0,General Repairs               ,43001               
Borough Council of Kings Lynn and West Norfolk,E07000146,30/06/19,BCKLWN Control Account        ,ROSSENDALES LTD                         ,101364      ,25-Apr-19,684.78,0,VAT Input (VAT Only Invoice)  ,BC999               
Borough Council of Kings Lynn and West Norfolk,E07000146,30/06/19,BCKLWN Control Account        ,ROSSENDALES LTD                         ,101364      ,20-Jun-19,525.78,0,VAT Input (VAT Only Invoice)  ,BC999               
Borough Council of Kings Lynn and West Norfolk,E07000146,30/06/19,Mintlyn Crematorium           ,FACULTATIEVE TECHNOLOGIESLTD            ,125759      ,15-Apr-19,1003.58,0,General Repairs               ,20830               
Borough Council of Kings Lynn and West Norfolk,E07000146,30/06/19,Adapt Grant                   ,CHAS D ALLFLATT LTD                     ,100315      ,15-Apr-19,3379.22,0,Works                         ,C1202               
Borough Council of Kings Lynn and West Norfolk,E07000146,30/06/19,Disabled Facilties Grant      ,CHAS D ALLFLATT LTD                     ,100315      ,15-Apr-19,3859.15,0,Works                         ,C1201               
Borough Council of Kings Lynn and West Norfolk,E07000146,30/06/19,Disabled Facilties Grant      ,CHAS D ALLFLATT LTD                     ,100315      ,15-Apr-19,2500,0,Works                         ,C1201               
Borough Council of Kings Lynn and West Norfolk,E07000146,30/06/19,Adapt Grant                   ,CHAS D ALLFLATT LTD                     ,100315      ,27-May-19,5237.5,0,Works                         ,C1202               
Borough Council of Kings Lynn and West Norfolk,E07000146,30/06/19,Adapt Grant                   ,CHAS D ALLFLATT LTD                     ,100315      ,27-May-19,3727.29,0,Works                         ,C1202               
Borough Council of Kings Lynn and West Norfolk,E07000146,30/06/19,Disabled Facilties Grant      ,CHAS D ALLFLATT LTD                     ,100315      ,03-Jun-19,2331.81,0,Works                         ,C1201               
Borough Council of Kings Lynn and West Norfolk,E07000146,30/06/19,Handyperson Scheme Kings Lynn ,CHAS D ALLFLATT LTD                     ,100315      ,13-Jun-19,2000.2,0,Contractor Payments           ,31010               
Borough Council of Kings Lynn and West Norfolk,E07000146,30/06/19,Adapt Grant                   ,CHAS D ALLFLATT LTD                     ,100315      ,20-Jun-19,3629.98,0,Works                         ,C1202               
Borough Council of Kings Lynn and West Norfolk,E07000146,30/06/19,Cashless Park KZ (KLWN off St),CHIPSIDE LTD                            ,146272      ,24-Jun-19,545.54,0,Bank Charges                  ,21856               
Borough Council of Kings Lynn and West Norfolk,E07000146,30/06/19,Parish/Borough Coun. Elections,ELECTION PAYMENTS                       ,ELEC        ,17-Jun-19,1252.5,0,Election Payments             ,70503               
Borough Council of Kings Lynn and West Norfolk,E07000146,30/06/19,Housing Options Programme     ,M & C WOOD                              ,148011      ,17-Jun-19,550,0,Homelessness Prevention Fund  ,33004               
Borough Council of Kings Lynn and West Norfolk,E07000146,30/06/19,Parish/Borough Coun. Elections,ELECTION PAYMENTS                       ,ELEC        ,17-Jun-19,1031.88,0,Election Payments             ,70503               
Borough Council of Kings Lynn and West Norfolk,E07000146,30/06/19,Parish/Borough Coun. Elections,ELECTION PAYMENTS                       ,ELEC        ,17-Jun-19,560.4,0,Election Payments             ,70503               
Borough Council of Kings Lynn and West Norfolk,E07000146,30/06/19,Decriminalisation             ,E AKERS                                 ,100500      ,20-Jun-19,950,0,External Fees/Consultancy     ,C0906               
Borough Council of Kings Lynn and West Norfolk,E07000146,30/06/19,Parish/Borough Coun. Elections,ELECTION PAYMENTS                       ,ELEC        ,17-Jun-19,1037.3,0,Election Payments             ,70503               
Borough Council of Kings Lynn and West Norfolk,E07000146,30/06/19,Parish/Borough Coun. Elections,ELECTION PAYMENTS                       ,ELEC        ,17-Jun-19,782.5,0,Election Payments             ,70503               
Borough Council of Kings Lynn and West Norfolk,E07000146,30/06/19,Parish/Borough Coun. Elections,ELECTION PAYMENTS                       ,ELEC        ,17-Jun-19,993,0,Election Payments             ,70503               
Borough Council of Kings Lynn and West Norfolk,E07000146,30/06/19,Parish/Borough Coun. Elections,ELECTION PAYMENTS                       ,ELEC        ,17-Jun-19,544.35,0,Election Payments             ,70503               
Borough Council of Kings Lynn and West Norfolk,E07000146,30/06/19,European Elections            ,ROYAL MAIL GROUP LTD                    ,101369      ,01-Jul-19,668,0,Postages                      ,75506               
Borough Council of Kings Lynn and West Norfolk,E07000146,30/06/19,Public Cleansing              ,UK FUELS LTD                            ,139584      ,18-Apr-19,561.67,0,Derv.                         ,94101               
Borough Council of Kings Lynn and West Norfolk,E07000146,30/06/19,GM Southern Area & Lynnsport  ,UK FUELS LTD                            ,139584      ,16-May-19,548.35,0,Derv.                         ,92103               
Borough Council of Kings Lynn and West Norfolk,E07000146,30/06/19,Parking Operations - Borough  ,METRIC GROUP LTD                        ,101041      ,24-Jun-19,3054.69,0,Gen Rep Hunstanton            ,21840               
Borough Council of Kings Lynn and West Norfolk,E07000146,30/06/19,Parking Operations - Borough  ,METRIC GROUP LTD                        ,101041      ,24-Jun-19,3054.69,0,Gen Rep KL P&D                ,21840               
Borough Council of Kings Lynn and West Norfolk,E07000146,30/06/19,SOUTHGATES HLF SCHEME         ,MAGPIE SECURITY SERVICES LTD            ,101735      ,23-May-19,1138.82,0,Works                         ,C0806               
Borough Council of Kings Lynn and West Norfolk,E07000146,30/06/19,South Lynn Community Centre   ,ALIVE MANAGEMENT LTD                    ,143925      ,23-May-19,523.38,0,Comm Centres Staff (AML A915) ,38006               
Borough Council of Kings Lynn and West Norfolk,E07000146,30/06/19,KL Arts Centre                ,ALIVE MANAGEMENT LTD                    ,143925      ,23-May-19,7963.41,0,Recharge Maint (Fr AML A910)  ,46101               
Borough Council of Kings Lynn and West Norfolk,E07000146,30/06/19,KL Arts Centre                ,ALIVE MANAGEMENT LTD                    ,143925      ,23-May-19,1513.93,0,Recharge Maint (Fr AML A910)  ,46101               
Borough Council of Kings Lynn and West Norfolk,E07000146,30/06/19,Dutton Sports Pavillion       ,ALIVE MANAGEMENT LTD                    ,143925      ,23-May-19,2001.43,0,Pavilion Recharge (fr AML)    ,40632               
Borough Council of Kings Lynn and West Norfolk,E07000146,30/06/19,Adapt Grant                   ,A SMITH CONTRACTORS                     ,115351      ,06-Jun-19,825,0,Works                         ,C1202               
Borough Council of Kings Lynn and West Norfolk,E07000146,30/06/19,Parking Operations - Borough  ,PENTY CONTRACTORS LTD                   ,101244      ,11-Apr-19,540,0,Gen Rep Hunstanton            ,21840               
Borough Council of Kings Lynn and West Norfolk,E07000146,30/06/19,Supplier Holding Account      ,PAUL JOHNSON MTR SERVICES LTD           ,104221      ,22-Apr-19,3642.83,0,Materials                     ,M0102               
Borough Council of Kings Lynn and West Norfolk,E07000146,30/06/19,Mintlyn Crematorium           ,CORONA ENERGY RETAIL 4 LTD              ,131838      ,23-May-19,4172.91,0,Gas                           ,20830               
Borough Council of Kings Lynn and West Norfolk,E07000146,30/06/19,Downham Market Sports Centre  ,CORONA ENERGY RETAIL 4 LTD              ,131838      ,20-Jun-19,2135.8,0,Gas                           ,42901               
Borough Council of Kings Lynn and West Norfolk,E07000146,30/06/19,Corn Exchange                 ,CORONA ENERGY RETAIL 4 LTD              ,131838      ,20-Jun-19,725.73,0,Gas                           ,42701               
Borough Council of Kings Lynn and West Norfolk,E07000146,30/06/19,ICT                           ,ADEPT TECHNOLOGY GROUP PLC              ,135085      ,08-Apr-19,900,0,Communications                ,55101               
Borough Council of Kings Lynn and West Norfolk,E07000146,30/06/19,ICT                           ,ADEPT TECHNOLOGY GROUP PLC              ,135085      ,08-Apr-19,519.66,0,Communications                ,55101               
Borough Council of Kings Lynn and West Norfolk,E07000146,30/06/19,Precepts Of Parish Councils   ,BURNHAM THORPE PARISH COUNCIL           ,100251      ,15-Apr-19,6526,0,Parishes                      ,00000               
Borough Council of Kings Lynn and West Norfolk,E07000146,30/06/19,ICT                           ,CAPITA BUSINESS SERVICES LTD            ,100288      ,02-May-19,2383.69,0,Computer Software Maintenance ,55101               
Borough Council of Kings Lynn and West Norfolk,E07000146,30/06/19,ICT                           ,CAPITA BUSINESS SERVICES LTD            ,100288      ,02-May-19,18642.02,0,Computer Software Maintenance ,55101               
Borough Council of Kings Lynn and West Norfolk,E07000146,30/06/19,Printing&Copying-Floor Copiers,CAPITA BUSINESS SERVICES LTD            ,100288      ,02-May-19,2005.75,0,Other Machine Lease           ,52506               
Borough Council of Kings Lynn and West Norfolk,E07000146,30/06/19,Precepts Of Parish Councils   ,DOCKING PARISH COUNCIL                  ,100471      ,15-Apr-19,13390,0,Parishes                      ,00000               
Borough Council of Kings Lynn and West Norfolk,E07000146,30/06/19,Precepts Of Parish Councils   ,EAST WINCH & WEST BILNEY PARISH CNCL    ,100519      ,15-Apr-19,12500,0,Parishes                      ,00000               
Borough Council of Kings Lynn and West Norfolk,E07000146,30/06/19,Community Infrastructure Levy ,EMNETH PARISH COUNCIL                   ,100559      ,18-Apr-19,2164.8,0,Payment to Parishes           ,62704               
Borough Council of Kings Lynn and West Norfolk,E07000146,30/06/19,50303                         ,FENLAND DISTRICT COUNCIL                ,100625      ,29-Apr-19,6115.88,0,Contracted Services           ,50303               
Borough Council of Kings Lynn and West Norfolk,E07000146,30/06/19,Internal Audit                ,FENLAND DISTRICT COUNCIL                ,100625      ,29-Apr-19,6115.88,0,Contracted Services           ,50303               
Borough Council of Kings Lynn and West Norfolk,E07000146,30/06/19,Food Hygiene General          ,FENLAND DISTRICT COUNCIL                ,100625      ,16-May-19,663,0,Professional Fees             ,25413               
Borough Council of Kings Lynn and West Norfolk,E07000146,30/06/19,Cashless Park YT(Gt Ya off St),GREAT YARMOUTH BOROUGH COUNCIL          ,100713      ,16-May-19,41249.6,0,Agency                        ,21865               
Borough Council of Kings Lynn and West Norfolk,E07000146,30/06/19,Special Expenses              ,HUNSTANTON TOWN COUNCIL                 ,100794      ,15-Apr-19,1491,0,Special Expenses Credit       ,71411               
Borough Council of Kings Lynn and West Norfolk,E07000146,30/06/19,Precepts Of Parish Councils   ,HUNSTANTON TOWN COUNCIL                 ,100794      ,15-Apr-19,160827,0,Parishes                      ,00000               
Borough Council of Kings Lynn and West Norfolk,E07000146,30/06/19,Precepts Of Parish Councils   ,LITTLEPORT & DOWNHAM IDB                ,100950      ,29-Apr-19,11723.58,0,Drainage Boards               ,00000               
Borough Council of Kings Lynn and West Norfolk,E07000146,30/06/19,Parks & Open Spaces           ,UPWELL PARISH COUNCIL                   ,101588      ,15-Apr-19,1212,0,Miscellaneous                 ,40230               
Borough Council of Kings Lynn and West Norfolk,E07000146,30/06/19,Community Transport           ,S N KINGSTON MARINE SERVICES            ,112276      ,11-Apr-19,1716.66,0,Transport Subsidies           ,20550               
Borough Council of Kings Lynn and West Norfolk,E07000146,30/06/19,Nursery                       ,RUDY RAES BLOEMZADEN N.V.               ,121484      ,18-Apr-19,3012.1,0,Materials                     ,92201               
Borough Council of Kings Lynn and West Norfolk,E07000146,30/06/19,Parish/Borough Coun. Elections,P HARVEY                                ,124213      ,23-May-19,3450,0,Hired Vehicles                ,70503               
Borough Council of Kings Lynn and West Norfolk,E07000146,30/06/19,Parking Operations - Borough  ,DESIGNA UK LTD                          ,127215      ,06-May-19,6660,0,Gen Rep St James              ,21840               
Borough Council of Kings Lynn and West Norfolk,E07000146,30/06/19,Precepts Of Parish Councils   ,NORFOLK RIVERS IDB                      ,125876      ,29-Apr-19,9602,0,Drainage Boards               ,00000               
Borough Council of Kings Lynn and West Norfolk,E07000146,30/06/19,ICT                           ,CTI DATA SOLUTIONS LIMITED              ,131485      ,27-Jun-19,1007.74,0,Computer Hardware Maintenance ,55101               
Borough Council of Kings Lynn and West Norfolk,E07000146,30/06/19,Trade Bins                    ,UK CONTAINER MAINTENANCE LTD            ,137174      ,23-May-19,1681.04,0,Equipment/Materials           ,C2105               
Borough Council of Kings Lynn and West Norfolk,E07000146,30/06/19,Trade Bins                    ,UK CONTAINER MAINTENANCE LTD            ,137174      ,23-May-19,525,0,Equipment/Materials           ,C2105               
Borough Council of Kings Lynn and West Norfolk,E07000146,30/06/19,Time Credits                  ,TEMPO TIME CREDITS                      ,137400      ,08-Apr-19,1000,0,Small Projects                ,77570               
Borough Council of Kings Lynn and West Norfolk,E07000146,30/06/19,Partnerships                  ,VISIT EAST ANGLIA LTD                   ,140506      ,06-May-19,7200,0,Norfolk Tourism               ,48532               
Borough Council of Kings Lynn and West Norfolk,E07000146,30/06/19,H&M New Store                 ,VANCOUVER GP LTD                        ,142742      ,01-Jul-19,131560.11,0,External Fees/Consultancy     ,C8180               
Borough Council of Kings Lynn and West Norfolk,E07000146,30/06/19,Improving Attainment          ,ATT T/A ICENI ACADEMY                   ,142749      ,09-May-19,1100,0,Small Projects                ,77580               
Borough Council of Kings Lynn and West Norfolk,E07000146,30/06/19,ICT                           ,NETWORK UTILITIES (SYSTEMS) LTD         ,142753      ,24-Jun-19,1650.4,0,Computer Software Maintenance ,55101               
Borough Council of Kings Lynn and West Norfolk,E07000146,30/06/19,ICT                           ,GMO GLOBALSIGN LTD                      ,141517      ,27-Jun-19,775,0,Computer Software Maintenance ,55101               
Borough Council of Kings Lynn and West Norfolk,E07000146,30/06/19,Depot Infestation Works       ,KONICA MINOLTA BUSINESS SOLUTIONS       ,141349      ,02-May-19,1158.6,0,Rechargeable Works            ,Y1023               
Borough Council of Kings Lynn and West Norfolk,E07000146,30/06/19,Food Hygiene General          ,CIEH                                    ,105004      ,24-Jun-19,757.5,0,Books And Publications        ,25413               
Borough Council of Kings Lynn and West Norfolk,E07000146,30/06/19,Hunstanton Parks HLF          ,WR EVENTS LIMITED                       ,141459      ,20-Jun-19,775,0,Special Events                ,41213               
Borough Council of Kings Lynn and West Norfolk,E07000146,30/06/19,Mintlyn Crematorium           ,CLEAR SKIES SOFTWARE                    ,138093      ,11-Apr-19,500,0,Professional Fees             ,20830               
Borough Council of Kings Lynn and West Norfolk,E07000146,30/06/19,ICT                           ,MIDLAND COMPUTER SERVICES LTD           ,139465      ,11-Apr-19,4191.4,0,Computer Hardware Maintenance ,55101               
Borough Council of Kings Lynn and West Norfolk,E07000146,30/06/19,ICT                           ,MIDLAND COMPUTER SERVICES LTD           ,139465      ,29-Apr-19,826.1,0,Computer Hardware Maintenance ,55101               
Borough Council of Kings Lynn and West Norfolk,E07000146,30/06/19,Councillors' Allowances & Exps,LOCAL GOVERNMENT ASSOCIATION            ,101774      ,04-Jul-19,545,0,Conferences                   ,70504               
Borough Council of Kings Lynn and West Norfolk,E07000146,30/06/19,Councillors' Allowances & Exps,LOCAL GOVERNMENT ASSOCIATION            ,101774      ,04-Jul-19,545,0,Conferences                   ,70504               
Borough Council of Kings Lynn and West Norfolk,E07000146,30/06/19,Town Hall Kings Lynn          ,A WILLIAMS DECORATORS LTD               ,101985      ,08-Apr-19,600,0,General Repairs               ,42401               
Borough Council of Kings Lynn and West Norfolk,E07000146,30/06/19,Mintlyn Crematorium           ,TELESHORE (UK) LTD                      ,119322      ,29-Apr-19,520.8,0,Tools And Equipment           ,20830               
Borough Council of Kings Lynn and West Norfolk,E07000146,30/06/19,Precepts Of Parish Councils   ,MIDDLE LEVEL COMMISSIONERS              ,101053      ,23-May-19,101818,0,Drainage Boards               ,00000               
Borough Council of Kings Lynn and West Norfolk,E07000146,30/06/19,Precepts Of Parish Councils   ,OUTWELL PARISH COUNCIL                  ,101202      ,15-Apr-19,16129,0,Parishes                      ,00000               
Borough Council of Kings Lynn and West Norfolk,E07000146,30/06/19,CCTV                          ,SSAIB                                   ,142895      ,22-Apr-19,2545,0,General Repairs               ,49901               
Borough Council of Kings Lynn and West Norfolk,E07000146,30/06/19,Parish/Borough Coun. Elections,FLOOD BROTHERS                          ,104038      ,13-Jun-19,820,0,Hired Vehicles                ,70503               
Borough Council of Kings Lynn and West Norfolk,E07000146,30/06/19,European Elections            ,FLOOD BROTHERS                          ,104038      ,13-Jun-19,820,0,Hired Vehicles                ,75506               
Borough Council of Kings Lynn and West Norfolk,E07000146,30/06/19,Precepts Of Parish Councils   ,RUNCTON HOLME PARISH COUNCIL            ,101378      ,15-Apr-19,12910,0,Parishes                      ,00000               
Borough Council of Kings Lynn and West Norfolk,E07000146,30/06/19,Precepts Of Parish Councils   ,EAST RUDHAM PARISH COUNCIL              ,100518      ,15-Apr-19,10839,0,Parishes                      ,00000               
Borough Council of Kings Lynn and West Norfolk,E07000146,30/06/19,Precepts Of Parish Councils   ,GRIMSTON PARISH COUNCIL                 ,100720      ,15-Apr-19,20250.81,0,Parishes                      ,00000               
Borough Council of Kings Lynn and West Norfolk,E07000146,30/06/19,Community Infrastructure Levy ,PENTNEY PARISH COUNCIL                  ,101243      ,18-Apr-19,1422,0,Payment to Parishes           ,62704               
Borough Council of Kings Lynn and West Norfolk,E07000146,30/06/19,Community Projects CRS        ,CREATIVE ARTS EAST                      ,120110      ,10-Jun-19,3000,0,Service Level Agreements      ,74501               
Borough Council of Kings Lynn and West Norfolk,E07000146,30/06/19,Precepts Of Parish Councils   ,SOUTHERY PARISH COUNCIL                 ,101452      ,15-Apr-19,22542.3,0,Parishes                      ,00000               
Borough Council of Kings Lynn and West Norfolk,E07000146,30/06/19,OPE- Hunstanton Housing Sites ,CHAPLIN FARRANT LIMITED                 ,123551      ,27-May-19,1350,0,Professional Fees             ,C8157               
Borough Council of Kings Lynn and West Norfolk,E07000146,30/06/19,50127                         ,MAYBO LTD                               ,117179      ,20-May-19,990,0,In-House Training             ,50127               
Borough Council of Kings Lynn and West Norfolk,E07000146,30/06/19,Training Holding Account      ,MAYBO LTD                               ,117179      ,20-May-19,990,0,In-House Training             ,50127               
Borough Council of Kings Lynn and West Norfolk,E07000146,30/06/19,Precepts Of Parish Councils   ,BURNHAM NORTON PARISH COUNCIL           ,100249      ,15-Apr-19,1250,0,Parishes                      ,00000               
Borough Council of Kings Lynn and West Norfolk,E07000146,30/06/19,Precepts Of Parish Councils   ,SEDGEFORD PARISH COUNCIL                ,101408      ,15-Apr-19,9107,0,Parishes                      ,00000               
Borough Council of Kings Lynn and West Norfolk,E07000146,30/06/19,Special Expenses              ,TERRINGTON ST JOHN PARISH COUNCIL       ,101534      ,15-Apr-19,512,0,Special Expenses Credit       ,71411               
Borough Council of Kings Lynn and West Norfolk,E07000146,30/06/19,Precepts Of Parish Councils   ,TERRINGTON ST JOHN PARISH COUNCIL       ,101534      ,15-Apr-19,51231,0,Parishes                      ,00000               
Borough Council of Kings Lynn and West Norfolk,E07000146,30/06/19,Precepts Of Parish Councils   ,FLITCHAM CUM APPLETON PARISH COUNCIL    ,100646      ,15-Apr-19,3350,0,Parishes                      ,00000               
Borough Council of Kings Lynn and West Norfolk,E07000146,30/06/19,Precepts Of Parish Councils   ,HARPLEY PARISH COUNCIL                  ,100745      ,15-Apr-19,6000,0,Parishes                      ,00000               
Borough Council of Kings Lynn and West Norfolk,E07000146,30/06/19,Precepts Of Parish Councils   ,HILGAY PARISH COUNCIL                   ,102405      ,15-Apr-19,26237.38,0,Parishes                      ,00000               
Borough Council of Kings Lynn and West Norfolk,E07000146,30/06/19,Mintlyn Crematorium           ,P PEPPER T/A A2B SKIP HIRE              ,144454      ,18-Apr-19,804,0,Miscellaneous                 ,20830               
Borough Council of Kings Lynn and West Norfolk,E07000146,30/06/19,Open Cemeteries               ,P PEPPER T/A A2B SKIP HIRE              ,144454      ,18-Apr-19,1206,0,Miscellaneous                 ,20650               
Borough Council of Kings Lynn and West Norfolk,E07000146,30/06/19,Sports Grounds Central        ,COLLIER TURF CARE LTD                   ,100362      ,16-May-19,671.87,0,Materials                     ,40630               
Borough Council of Kings Lynn and West Norfolk,E07000146,30/06/19,Sports Grounds North          ,COLLIER TURF CARE LTD                   ,100362      ,16-May-19,671.89,0,Materials                     ,40620               
Borough Council of Kings Lynn and West Norfolk,E07000146,30/06/19,Sports Grounds South          ,COLLIER TURF CARE LTD                   ,100362      ,16-May-19,671.87,0,Materials                     ,40640               
Borough Council of Kings Lynn and West Norfolk,E07000146,30/06/19,BCKLWN Control Account        ,JOHN GILLER DRAMA & THEATRE ACADEMY     ,144288      ,09-May-19,693.33,0,VAT Output                    ,BC999               
Borough Council of Kings Lynn and West Norfolk,E07000146,30/06/19,KL Arts Centre                ,JOHN GILLER DRAMA & THEATRE ACADEMY     ,144288      ,09-May-19,3466.67,0,Hirings Ticketed              ,46101               
Borough Council of Kings Lynn and West Norfolk,E07000146,30/06/19,Lease Car Revenue Account     ,COMMERCIAL SERVICES KENT LTD            ,146328      ,09-May-19,3121.94,0,Leasing                       ,H3101               
Borough Council of Kings Lynn and West Norfolk,E07000146,30/06/19,Lease Car Revenue Account     ,COMMERCIAL SERVICES KENT LTD            ,146328      ,09-May-19,2349.86,0,Leasing                       ,H3101               
Borough Council of Kings Lynn and West Norfolk,E07000146,30/06/19,ICT                           ,SWITCHSHOP LTD                          ,124299      ,20-Jun-19,1595,0,Communications                ,55101               
Borough Council of Kings Lynn and West Norfolk,E07000146,30/06/19,Postage Services Kings Court  ,POSTAGE BY PHONE                        ,101299      ,06-May-19,5000,0,Postages                      ,52512               
Borough Council of Kings Lynn and West Norfolk,E07000146,30/06/19,Postage Services Kings Court  ,POSTAGE BY PHONE                        ,101299      ,24-Jun-19,5000,0,Postages                      ,52512               
Borough Council of Kings Lynn and West Norfolk,E07000146,30/06/19,NORA Remediation              ,ASHFIELD JAPANESE KNOTWEED LTD          ,144105      ,23-May-19,750,0,Works                         ,C8203               
Borough Council of Kings Lynn and West Norfolk,E07000146,30/06/19,Apprenticeship Scheme         ,BEDFORD BOROUGH COUNCIL                 ,124800      ,02-May-19,4234,0,Apprentice Levi               ,71701               
Borough Council of Kings Lynn and West Norfolk,E07000146,30/06/19,Apprenticeship Scheme         ,BEDFORD BOROUGH COUNCIL                 ,124800      ,01-Jul-19,4140,0,Apprentice Levi               ,71701               
Borough Council of Kings Lynn and West Norfolk,E07000146,30/06/19,Vehicle Recharge On Account   ,WORLDLINE IT SERVICESUK LTD RE FUELGENIE,135817      ,18-Apr-19,9904.3,0,Petrol                        ,M0101               
Borough Council of Kings Lynn and West Norfolk,E07000146,30/06/19,BCKLWN Control Account        ,NEWLYN PLC                              ,143655      ,15-Apr-19,2050.27,0,VAT Input (VAT Only Invoice)  ,BC999               
Borough Council of Kings Lynn and West Norfolk,E07000146,30/06/19,Town Hall Kings Lynn          ,CANNON HYGIENE LIMITED                  ,146947      ,24-Jun-19,531.08,0,Maintenance Contracts         ,42401               
Borough Council of Kings Lynn and West Norfolk,E07000146,30/06/19,Town Hall Kings Lynn          ,PUBLIC-I GROUP LTD                      ,137618      ,25-Apr-19,1431.99,0,Tools And Equipment           ,42401               
Borough Council of Kings Lynn and West Norfolk,E07000146,30/06/19,Lynnsport General Account     ,ALIVE LEISURE TRUST                     ,143591      ,22-Apr-19,6131,0,Contributions                 ,95601               
Borough Council of Kings Lynn and West Norfolk,E07000146,30/06/19,GM Northern Area              ,THURLOW NUNN STANDEN LTD                ,101547      ,11-Apr-19,886.78,0,Materials                     ,92101               
Borough Council of Kings Lynn and West Norfolk,E07000146,30/06/19,Central & Community Services  ,CRONER-I LIMITED                        ,147157      ,29-Apr-19,1098.27,0,Subscriptions                 ,71604               
Borough Council of Kings Lynn and West Norfolk,E07000146,30/06/19,50121                         ,CRONER-I LIMITED                        ,147157      ,29-Apr-19,1098.27,0,Subscriptions                 ,50121               
Borough Council of Kings Lynn and West Norfolk,E07000146,30/06/19,Personnel Services            ,CRONER-I LIMITED                        ,147157      ,29-Apr-19,1098.27,0,Subscriptions                 ,50121               
Borough Council of Kings Lynn and West Norfolk,E07000146,30/06/19,Adapt Grant                   ,T M BROWNE LTD                          ,131470      ,22-Apr-19,2909.81,0,Works                         ,C1202               
Borough Council of Kings Lynn and West Norfolk,E07000146,30/06/19,Kings Court Kings Lynn        ,ENHANCE                                 ,129539      ,16-May-19,1617,0,Repairs - Services Charges    ,52322               
Borough Council of Kings Lynn and West Norfolk,E07000146,30/06/19,KC OFFICE ACCOMMODATION RENTAL,MANPOWER DIRECT UK                      ,147078      ,16-May-19,6617.16,0,Contract Security             ,52323               
Borough Council of Kings Lynn and West Norfolk,E07000146,30/06/19,KC OFFICE ACCOMMODATION RENTAL,MANPOWER DIRECT UK                      ,147078      ,27-Jun-19,6797.66,0,Contract Security             ,52323               
Borough Council of Kings Lynn and West Norfolk,E07000146,30/06/19,Enterprise Works - North Lynn ,ADVANCED WATER TREATMENT (UK) LTD       ,136018      ,22-Apr-19,2029.1,0,Maintenance Contracts         ,11212               
Borough Council of Kings Lynn and West Norfolk,E07000146,30/06/19,Adapt Grant                   ,STANNAH LIFT SERVICES LTD               ,101479      ,08-Apr-19,3331,0,Works                         ,C1202               
Borough Council of Kings Lynn and West Norfolk,E07000146,30/06/19,Phase -Lynnsport 4 /5 Contract,LOVELL PARTNERSHIPS LTD                 ,143432      ,17-Jun-19,591231.5,0,Works                         ,C8124               
Borough Council of Kings Lynn and West Norfolk,E07000146,30/06/19,Phase 3-Lynnsport 1-Contractor,LOVELL PARTNERSHIPS LTD                 ,143432      ,17-Jun-19,10173.6,0,Works                         ,C8125               
Borough Council of Kings Lynn and West Norfolk,E07000146,30/06/19,Street Sweeping               ,PEACEFUL PETS LTD                       ,120185      ,22-Apr-19,520,0,Animal Removal                ,22210               
Borough Council of Kings Lynn and West Norfolk,E07000146,30/06/19,Street Sweeping               ,PEACEFUL PETS LTD                       ,120185      ,20-Jun-19,990,0,Animal Removal                ,22210               
Borough Council of Kings Lynn and West Norfolk,E07000146,30/06/19,Princess Theatre              ,C G GODFREY LIMITED                     ,101717      ,08-Apr-19,1889.98,0,Other                         ,C1412               
Borough Council of Kings Lynn and West Norfolk,E07000146,30/06/19,Heritage Action Zone          ,AR URBANISM                             ,147296      ,23-May-19,4968,0,FEASIBILITY STUDY             ,11118               
Borough Council of Kings Lynn and West Norfolk,E07000146,30/06/19,KL Arts Centre                ,M CLARK                                 ,147216      ,03-Jun-19,4535,0,Hirings Ticketed              ,46101               
Borough Council of Kings Lynn and West Norfolk,E07000146,30/06/19,BCKLWN Control Account        ,M CLARK                                 ,147216      ,03-Jun-19,907,0,VAT Output                    ,BC999               
Borough Council of Kings Lynn and West Norfolk,E07000146,30/06/19,Stories of Lynn               ,JD COOLING SYSTEMS LTD                  ,119491      ,22-Apr-19,850,0,Maintenance Contracts         ,42502               
Borough Council of Kings Lynn and West Norfolk,E07000146,30/06/19,Salters Road - BCKLWN Costs   ,ROBERT FENCING LTD                      ,147481      ,23-May-19,675,0,Works                         ,C8162               
Borough Council of Kings Lynn and West Norfolk,E07000146,30/06/19,50302                         ,EMBRIDGE CONSULTING (UK) LTD            ,147624      ,11-Apr-19,19600,0,IT Developments/Enhancements  ,50302               
Borough Council of Kings Lynn and West Norfolk,E07000146,30/06/19,Financial Services            ,EMBRIDGE CONSULTING (UK) LTD            ,147624      ,11-Apr-19,19600,0,IT Developments/Enhancements  ,50302               
Borough Council of Kings Lynn and West Norfolk,E07000146,30/06/19,50302                         ,EMBRIDGE CONSULTING (UK) LTD            ,147624      ,11-Apr-19,16020.55,0,IT Developments/Enhancements  ,50302               
Borough Council of Kings Lynn and West Norfolk,E07000146,30/06/19,Financial Services            ,EMBRIDGE CONSULTING (UK) LTD            ,147624      ,11-Apr-19,16020.55,0,IT Developments/Enhancements  ,50302               
Borough Council of Kings Lynn and West Norfolk,E07000146,30/06/19,Network Hardware holding Code ,QUALITY ESSENTIAL DISTRIBUTON LTD       ,147658      ,13-May-19,5709.38,0,Tools And Equipment           ,49902               
Borough Council of Kings Lynn and West Norfolk,E07000146,30/06/19,DMLC CCTV                     ,QUALITY ESSENTIAL DISTRIBUTON LTD       ,147658      ,13-May-19,5709.38,0,Works                         ,C0416               
Borough Council of Kings Lynn and West Norfolk,E07000146,30/06/19,CCTV                          ,QUALITY ESSENTIAL DISTRIBUTON LTD       ,147658      ,18-Jul-19,12400,0,General Repairs               ,49901               
Borough Council of Kings Lynn and West Norfolk,E07000146,30/06/19,50121                         ,ACCESSABLE                              ,144157      ,27-May-19,500,0,E-learning                    ,50121               
Borough Council of Kings Lynn and West Norfolk,E07000146,30/06/19,Personnel Services            ,ACCESSABLE                              ,144157      ,27-May-19,500,0,E-learning                    ,50121               
Borough Council of Kings Lynn and West Norfolk,E07000146,30/06/19,50127                         ,CEFAS                                   ,147828      ,11-Apr-19,1100,0,Specialised/Cpd Training      ,50127               
Borough Council of Kings Lynn and West Norfolk,E07000146,30/06/19,Training Holding Account      ,CEFAS                                   ,147828      ,11-Apr-19,1100,0,Specialised/Cpd Training      ,50127               
Borough Council of Kings Lynn and West Norfolk,E07000146,30/06/19,West Winch Growth Area        ,GERALD EVE LLP                          ,147839      ,29-Apr-19,11112.02,0,Professional Fees             ,71567               
Borough Council of Kings Lynn and West Norfolk,E07000146,30/06/19,71567                         ,GERALD EVE LLP                          ,147839      ,29-Apr-19,11112.02,0,Professional Fees             ,71567               
Borough Council of Kings Lynn and West Norfolk,E07000146,30/06/19,Parks & Open Spaces           ,GOLDEN TREE SURGEONS LTD                ,145155      ,16-May-19,880,0,Tree Surgery                  ,40230               
Borough Council of Kings Lynn and West Norfolk,E07000146,30/06/19,Parks & Open Spaces           ,GOLDEN TREE SURGEONS LTD                ,145155      ,17-Jun-19,880,0,Tree Surgery                  ,40230               
Borough Council of Kings Lynn and West Norfolk,E07000146,30/06/19,Business Development& Start Up,NINION SOLUTIONS LTD T/A HUDDLE         ,145162      ,25-Apr-19,9995,0,START UP PROGRAMME            ,11114               
Borough Council of Kings Lynn and West Norfolk,E07000146,30/06/19,Hunstanton Marketing          ,LEICESTERSHIRE COUNTY COUNCIL           ,142448      ,24-Jun-19,1460,0,Hunstanton mini guide         ,48528               
Borough Council of Kings Lynn and West Norfolk,E07000146,30/06/19,Crematorium Trading AC        ,ANGLIA SIGN CASTING LTD                 ,147680      ,27-May-19,515.7,0,Memorial Plates               ,20831               
Borough Council of Kings Lynn and West Norfolk,E07000146,30/06/19,Crematorium Trading AC        ,VIVEDIA LTD                             ,147700      ,27-Jun-19,585,0,CD/DVD Recordings             ,20831               
Borough Council of Kings Lynn and West Norfolk,E07000146,30/06/19,Precepts Of Parish Councils   ,SYDERSTONE PARISH COUNCIL               ,101505      ,15-Apr-19,9854,0,Parishes                      ,00000               
Borough Council of Kings Lynn and West Norfolk,E07000146,30/06/19,Care & Repair - Home Impro Agy,SEVEN RESOURCING LTD                    ,145043      ,11-Apr-19,1007.6,0,Agency Staff                  ,31002               
Borough Council of Kings Lynn and West Norfolk,E07000146,30/06/19,Care & Repair - Home Impro Agy,SEVEN RESOURCING LTD                    ,145043      ,09-May-19,1224.15,0,Agency Staff                  ,31002               
Borough Council of Kings Lynn and West Norfolk,E07000146,30/06/19,Care & Repair - Home Impro Agy,SEVEN RESOURCING LTD                    ,145043      ,16-May-19,768.03,0,Agency Staff                  ,31002               
Borough Council of Kings Lynn and West Norfolk,E07000146,30/06/19,Depot Infestation Works       ,CARTER ACCOMMODATION LTD                ,145045      ,15-Apr-19,683.76,0,Rechargeable Works            ,Y1023               
Borough Council of Kings Lynn and West Norfolk,E07000146,30/06/19,Radios                        ,AVOIRA LTD                              ,147510      ,16-May-19,610,0,Radios/Airwave                ,49903               
Borough Council of Kings Lynn and West Norfolk,E07000146,30/06/19,Public Conveniences           ,BACO-COMPAK (NORFOLK) LTD               ,100137      ,17-Jun-19,619,0,Sewerage/Cesspool Emptying    ,20250               
Borough Council of Kings Lynn and West Norfolk,E07000146,30/06/19,Community Projects CRS        ,KINGS LYNN FESTIVAL LTD                 ,100877      ,23-May-19,23390,0,Service Level Agreements      ,74501               
Borough Council of Kings Lynn and West Norfolk,E07000146,30/06/19,Community Projects CRS        ,KINGS LYNN FESTIVAL LTD                 ,100877      ,23-May-19,15000,0,Service Level Agreements      ,74501               
Borough Council of Kings Lynn and West Norfolk,E07000146,30/06/19,Community Projects CRS        ,KINGS LYNN FESTIVAL LTD                 ,100877      ,23-May-19,2500,0,Service Level Agreements      ,74501               
Borough Council of Kings Lynn and West Norfolk,E07000146,30/06/19,Community Projects CRS        ,KINGS LYNN FESTIVAL LTD                 ,100877      ,23-May-19,2500,0,Service Level Agreements      ,74501               
Borough Council of Kings Lynn and West Norfolk,E07000146,30/06/19,Public Cleansing              ,JOHNSTON SWEEPERS LTD                   ,121881      ,02-May-19,972.4,0,Contract Repairs              ,94101               
Borough Council of Kings Lynn and West Norfolk,E07000146,30/06/19,Adapt Grant                   ,CHAS D ALLFLATT LTD                     ,100315      ,11-Apr-19,1000,0,Works                         ,C1202               
Borough Council of Kings Lynn and West Norfolk,E07000146,30/06/19,Town Hall Kings Lynn          ,E AKERS                                 ,100500      ,22-Apr-19,540,0,Tools And Equipment           ,42401               
Borough Council of Kings Lynn and West Norfolk,E07000146,30/06/19,Hanse from 2018               ,E AKERS                                 ,100500      ,27-May-19,520,0,Professional Fees             ,21871               
Borough Council of Kings Lynn and West Norfolk,E07000146,30/06/19,Economic Dev. -  Operational  ,MARK STANTON CONSULTING LTD             ,147788      ,02-May-19,2592.16,0,Agency Staff                  ,11117               
Borough Council of Kings Lynn and West Norfolk,E07000146,30/06/19,CCTV                          ,FOCUS SECURITY (EAST ANGLIA) LTD        ,136665      ,22-Apr-19,644.44,0,General Repairs               ,49901               
Borough Council of Kings Lynn and West Norfolk,E07000146,30/06/19,Network Hardware holding Code ,FOCUS SECURITY (EAST ANGLIA) LTD        ,136665      ,23-May-19,767.39,0,Tools And Equipment           ,49902               
Borough Council of Kings Lynn and West Norfolk,E07000146,30/06/19,CCTV                          ,FOCUS SECURITY (EAST ANGLIA) LTD        ,136665      ,27-Jun-19,850.3,0,General Repairs               ,49901               
Borough Council of Kings Lynn and West Norfolk,E07000146,30/06/19,Parking Operations - Borough  ,NORFOLK COUNTY COUNCIL                  ,101142      ,13-Jun-19,17123.06,0,Gen Rep KL P&D                ,21840               
Borough Council of Kings Lynn and West Norfolk,E07000146,30/06/19,Local Land Charges            ,NORFOLK COUNTY COUNCIL                  ,101142      ,24-Jun-19,7294.8,0,Agency                        ,77001               
Borough Council of Kings Lynn and West Norfolk,E07000146,30/06/19,Radio Phones                  ,NORFOLK COUNTY COUNCIL                  ,101142      ,24-Jun-19,2854.72,0,Communications                ,26504               
Borough Council of Kings Lynn and West Norfolk,E07000146,30/06/19,Subscriptions                 ,WEST DEVON BOROUGH COUNCIL              ,147899      ,02-May-19,2976,0,Subscriptions                 ,72001               
Borough Council of Kings Lynn and West Norfolk,E07000146,30/06/19,Brochure & lead generation    ,OPALION PLASTICS LTD                    ,147920      ,10-Jun-19,692.5,0,Postages                      ,48523               
Borough Council of Kings Lynn and West Norfolk,E07000146,30/06/19,Dry Box Collection Scheme     ,DURA-ID SOLUTIONS                       ,147921      ,24-Jun-19,752.7,0,Plastic Refuse Sacks          ,28125               
Borough Council of Kings Lynn and West Norfolk,E07000146,30/06/19,Adapt Grant                   ,JT BOILER SERVICES                      ,147924      ,17-Jun-19,3860,0,Works                         ,C1202               
Borough Council of Kings Lynn and West Norfolk,E07000146,30/06/19,50302                         ,ROYAL MAIL GROUP LTD                    ,101369      ,15-Apr-19,1327.83,0,Postages                      ,50302               
Borough Council of Kings Lynn and West Norfolk,E07000146,30/06/19,Financial Services            ,ROYAL MAIL GROUP LTD                    ,101369      ,15-Apr-19,1327.83,0,Postages                      ,50302               
Borough Council of Kings Lynn and West Norfolk,E07000146,30/06/19,BCKLWN Control Account        ,ROSSENDALES LTD                         ,101364      ,18-Apr-19,645.04,0,VAT Input (VAT Only Invoice)  ,BC999               
Borough Council of Kings Lynn and West Norfolk,E07000146,30/06/19,BCKLWN Control Account        ,ROSSENDALES LTD                         ,101364      ,04-Jul-19,1460.65,0,VAT Input (VAT Only Invoice)  ,BC999               
Borough Council of Kings Lynn and West Norfolk,E07000146,30/06/19,Mintlyn Crematorium           ,FACULTATIEVE TECHNOLOGIESLTD            ,125759      ,15-Apr-19,934.44,0,Trade Waste                   ,20830               
Borough Council of Kings Lynn and West Norfolk,E07000146,30/06/19,Care & Repair - Home Impro Agy,CHAS D ALLFLATT LTD                     ,100315      ,15-Apr-19,750,0,Miscellaneous                 ,31002               
Borough Council of Kings Lynn and West Norfolk,E07000146,30/06/19,Disabled Facilties Grant      ,CHAS D ALLFLATT LTD                     ,100315      ,15-Apr-19,4472.02,0,Works                         ,C1201               
Borough Council of Kings Lynn and West Norfolk,E07000146,30/06/19,Adapt Grant                   ,CHAS D ALLFLATT LTD                     ,100315      ,23-May-19,3985.54,0,Works                         ,C1202               
Borough Council of Kings Lynn and West Norfolk,E07000146,30/06/19,Disabled Facilties Grant      ,CHAS D ALLFLATT LTD                     ,100315      ,27-May-19,7000,0,Works                         ,C1201               
Borough Council of Kings Lynn and West Norfolk,E07000146,30/06/19,Handyperson Scheme Kings Lynn ,CHAS D ALLFLATT LTD                     ,100315      ,24-Jun-19,1369.74,0,Contractor Payments           ,31010               
Borough Council of Kings Lynn and West Norfolk,E07000146,30/06/19,Adapt Grant                   ,CHAS D ALLFLATT LTD                     ,100315      ,01-Jul-19,3847.19,0,Works                         ,C1202               
Borough Council of Kings Lynn and West Norfolk,E07000146,30/06/19,Cafe in the Park              ,EDEN FARM HULLEYS LTD                   ,118383      ,04-Jul-19,540.02,0,Purchases - Cafe Ices         ,40245               
Borough Council of Kings Lynn and West Norfolk,E07000146,30/06/19,Parish/Borough Coun. Elections,ELECTION PAYMENTS                       ,ELEC        ,17-Jun-19,944.35,0,Election Payments             ,70503               
Borough Council of Kings Lynn and West Norfolk,E07000146,30/06/19,Parish/Borough Coun. Elections,ROYAL MAIL GROUP LTD                    ,101369      ,16-May-19,1691.27,0,Postages                      ,70503               
Borough Council of Kings Lynn and West Norfolk,E07000146,30/06/19,Decriminalisation             ,METRIC GROUP LTD                        ,101041      ,15-Apr-19,1410,0,Equipment/Materials           ,C0906               
Borough Council of Kings Lynn and West Norfolk,E07000146,30/06/19,Decriminalisation             ,METRIC GROUP LTD                        ,101041      ,15-Apr-19,84600,0,Equipment/Materials           ,C0906               
Borough Council of Kings Lynn and West Norfolk,E07000146,30/06/19,Decriminalisation             ,METRIC GROUP LTD                        ,101041      ,15-Apr-19,5400,0,Equipment/Materials           ,C0906               
Borough Council of Kings Lynn and West Norfolk,E07000146,30/06/19,Decriminalisation             ,METRIC GROUP LTD                        ,101041      ,15-Apr-19,9000,0,Equipment/Materials           ,C0906               
Borough Council of Kings Lynn and West Norfolk,E07000146,30/06/19,Decriminalisation             ,METRIC GROUP LTD                        ,101041      ,15-Apr-19,5760,0,Equipment/Materials           ,C0906               
Borough Council of Kings Lynn and West Norfolk,E07000146,30/06/19,Decriminalisation             ,METRIC GROUP LTD                        ,101041      ,15-Apr-19,3420,0,Equipment/Materials           ,C0906               
Borough Council of Kings Lynn and West Norfolk,E07000146,30/06/19,Decriminalisation             ,METRIC GROUP LTD                        ,101041      ,15-Apr-19,3420,0,Equipment/Materials           ,C0906               
Borough Council of Kings Lynn and West Norfolk,E07000146,30/06/19,KL Arts Centre                ,ALIVE MANAGEMENT LTD                    ,143925      ,27-Jun-19,3781.23,0,Recharge Maint (Fr AML A910)  ,46101               
Borough Council of Kings Lynn and West Norfolk,E07000146,30/06/19,Kings Court Kings Lynn        ,KEN BOOTH & CO LTD                      ,134600      ,18-Apr-19,554,0,Cleaning Materials & Equipment,52322               
Borough Council of Kings Lynn and West Norfolk,E07000146,30/06/19,Kings Court Kings Lynn        ,KEN BOOTH & CO LTD                      ,134600      ,06-Jun-19,723.8,0,Cleaning Materials & Equipment,52322               
Borough Council of Kings Lynn and West Norfolk,E07000146,30/06/19,Decriminalisation             ,PENTY CONTRACTORS LTD                   ,101244      ,18-Apr-19,6004.06,0,Equipment/Materials           ,C0906               
Borough Council of Kings Lynn and West Norfolk,E07000146,30/06/19,Parking Operations - Borough  ,PENTY CONTRACTORS LTD                   ,101244      ,23-May-19,2740,0,Gen Rep KL P&D                ,21840               
Borough Council of Kings Lynn and West Norfolk,E07000146,30/06/19,Head of Legal Services        ,NORTH NORFOLK DISTRICT COUNCIL          ,101156      ,08-Apr-19,600,0,Commissioning Ext. Legal fees ,50203               
Borough Council of Kings Lynn and West Norfolk,E07000146,30/06/19,Head of Legal Services        ,NORTH NORFOLK DISTRICT COUNCIL          ,101156      ,08-Apr-19,650,0,Commissioning Ext. Legal fees ,50203               
Borough Council of Kings Lynn and West Norfolk,E07000146,30/06/19,Head of Legal Services        ,NORTH NORFOLK DISTRICT COUNCIL          ,101156      ,11-Apr-19,3000,0,Commissioning Ext. Legal fees ,50203               
Borough Council of Kings Lynn and West Norfolk,E07000146,30/06/19,Cashless Park JF(N Nfk off St),NORTH NORFOLK DISTRICT COUNCIL          ,101156      ,15-Apr-19,3824.9,0,Agency                        ,21858               
Borough Council of Kings Lynn and West Norfolk,E07000146,30/06/19,NNDC Penalty Notice Processing,NORTH NORFOLK DISTRICT COUNCIL          ,101156      ,15-Apr-19,4604,0,Agency                        ,41312               
Borough Council of Kings Lynn and West Norfolk,E07000146,30/06/19,Corn Exchange                 ,CORONA ENERGY RETAIL 4 LTD              ,131838      ,23-May-19,895.24,0,Gas                           ,42701               
Borough Council of Kings Lynn and West Norfolk,E07000146,30/06/19,Downham Market Sports Centre  ,CORONA ENERGY RETAIL 4 LTD              ,131838      ,23-May-19,1710.89,0,Gas                           ,42901               
Borough Council of Kings Lynn and West Norfolk,E07000146,30/06/19,Oasis General Account         ,CORONA ENERGY RETAIL 4 LTD              ,131838      ,23-May-19,3538.31,0,Gas                           ,95721               
Borough Council of Kings Lynn and West Norfolk,E07000146,30/06/19,Mintlyn Crematorium           ,CORONA ENERGY RETAIL 4 LTD              ,131838      ,20-Jun-19,4284.05,0,Gas                           ,20830               
Borough Council of Kings Lynn and West Norfolk,E07000146,30/06/19,Parking Operations - Borough  ,KINGS LYNN SIGNS                        ,100887      ,08-Apr-19,1300.74,0,Gen Rep Hunstanton            ,21840               
Borough Council of Kings Lynn and West Norfolk,E07000146,30/06/19,Dry Box Collection Scheme     ,NORSE ENVIRONMENTAL WASTE SVCS          ,102093      ,02-May-19,1098.8,0,Waste Processing Cost         ,28125               
Borough Council of Kings Lynn and West Norfolk,E07000146,30/06/19,Dry Box Collection Scheme     ,NORSE ENVIRONMENTAL WASTE SVCS          ,102093      ,23-May-19,776.96,0,Waste Processing Cost         ,28125               
Borough Council of Kings Lynn and West Norfolk,E07000146,30/06/19,Dry Box Collection Scheme     ,NORSE ENVIRONMENTAL WASTE SVCS          ,102093      ,23-May-19,33935.08,0,Waste Processing Cost         ,28125               
Borough Council of Kings Lynn and West Norfolk,E07000146,30/06/19,ICT                           ,ADEPT TECHNOLOGY GROUP PLC              ,135085      ,08-Apr-19,4135.7,0,Telephones Recharged          ,55101               
Borough Council of Kings Lynn and West Norfolk,E07000146,30/06/19,ICT                           ,ADEPT TECHNOLOGY GROUP PLC              ,135085      ,08-Apr-19,527.19,0,Telephones Recharged          ,55101               
Borough Council of Kings Lynn and West Norfolk,E07000146,30/06/19,Depot Infestation Works       ,ADEPT TECHNOLOGY GROUP PLC              ,135085      ,29-Apr-19,10389,0,Rechargeable Works            ,Y1023               
Borough Council of Kings Lynn and West Norfolk,E07000146,30/06/19,ICT                           ,ADEPT TECHNOLOGY GROUP PLC              ,135085      ,29-Apr-19,519.66,0,Communications                ,55101               
Borough Council of Kings Lynn and West Norfolk,E07000146,30/06/19,ICT                           ,ADEPT TECHNOLOGY GROUP PLC              ,135085      ,29-Apr-19,579.13,0,Communications                ,55101               
Borough Council of Kings Lynn and West Norfolk,E07000146,30/06/19,ICT                           ,ADEPT TECHNOLOGY GROUP PLC              ,135085      ,06-Jun-19,519.66,0,Communications                ,55101               
Borough Council of Kings Lynn and West Norfolk,E07000146,30/06/19,ICT                           ,ADEPT TECHNOLOGY GROUP PLC              ,135085      ,06-Jun-19,579.13,0,Communications                ,55101               
Borough Council of Kings Lynn and West Norfolk,E07000146,30/06/19,ICT                           ,ADEPT TECHNOLOGY GROUP PLC              ,135085      ,08-Jul-19,579.13,0,Communications                ,55101               
Borough Council of Kings Lynn and West Norfolk,E07000146,30/06/19,ICT                           ,ADEPT TECHNOLOGY GROUP PLC              ,135085      ,08-Jul-19,519.66,0,Communications                ,55101               
Borough Council of Kings Lynn and West Norfolk,E07000146,30/06/19,Head of Legal Services        ,NORTH NORFOLK DISTRICT COUNCIL          ,101156      ,10-Jun-19,2094.95,0,Commissioning Ext. Legal fees ,50203               
Borough Council of Kings Lynn and West Norfolk,E07000146,30/06/19,Head of Legal Services        ,NORTH NORFOLK DISTRICT COUNCIL          ,101156      ,01-Jul-19,727.35,0,Commissioning Ext. Legal fees ,50203               
Borough Council of Kings Lynn and West Norfolk,E07000146,30/06/19,MHP HLF Project               ,BOWIE CONSTRUCTION LTD                  ,147057      ,08-Apr-19,1485,0,Works                         ,C8158               
Borough Council of Kings Lynn and West Norfolk,E07000146,30/06/19,GM Central Area               ,NOMIX ENVIRO LTD                        ,147869      ,02-May-19,660.4,0,Materials                     ,92102               
Borough Council of Kings Lynn and West Norfolk,E07000146,30/06/19,Precepts Of Parish Councils   ,BRANCASTER PARISH COUNCIL               ,100209      ,15-Apr-19,16000,0,Parishes                      ,00000               
Borough Council of Kings Lynn and West Norfolk,E07000146,30/06/19,Precepts Of Parish Councils   ,CHURCHFIELD & PLAWFIELD IDB             ,100326      ,29-Apr-19,8943,0,Drainage Boards               ,00000               
Borough Council of Kings Lynn and West Norfolk,E07000146,30/06/19,50127                         ,CHARTERED INSTITUTE OF HOUSING          ,100314      ,27-May-19,1700,0,Qualification Training        ,50127               
Borough Council of Kings Lynn and West Norfolk,E07000146,30/06/19,Training Holding Account      ,CHARTERED INSTITUTE OF HOUSING          ,100314      ,27-May-19,1700,0,Qualification Training        ,50127               
Borough Council of Kings Lynn and West Norfolk,E07000146,30/06/19,Special Expenses              ,HEACHAM PARISH COUNCIL                  ,100759      ,15-Apr-19,1118,0,Special Expenses Credit       ,71411               
Borough Council of Kings Lynn and West Norfolk,E07000146,30/06/19,Precepts Of Parish Councils   ,HEACHAM PARISH COUNCIL                  ,100759      ,15-Apr-19,115717,0,Parishes                      ,00000               
Borough Council of Kings Lynn and West Norfolk,E07000146,30/06/19,Cashless Park YT(Gt Ya off St),GREAT YARMOUTH BOROUGH COUNCIL          ,100713      ,15-Apr-19,6733.5,0,Agency                        ,21865               
Borough Council of Kings Lynn and West Norfolk,E07000146,30/06/19,Precepts Of Parish Councils   ,HUNDRED OF WISBECH IDB                  ,100792      ,03-Jun-19,1004,0,Drainage Boards               ,00000               
Borough Council of Kings Lynn and West Norfolk,E07000146,30/06/19,Precepts Of Parish Councils   ,LITTLE MASSINGHAM PRSH CNCL             ,100948      ,15-Apr-19,800,0,Parishes                      ,00000               
Borough Council of Kings Lynn and West Norfolk,E07000146,30/06/19,Postage Services Kings Court  ,PITNEY BOWES LTD                        ,101279      ,08-Apr-19,960.95,0,Stationery & Office Supplies  ,52512               
Borough Council of Kings Lynn and West Norfolk,E07000146,30/06/19,Precepts Of Parish Councils   ,STOW BARDOLPH PARISH COUNCIL            ,101487      ,15-Apr-19,15860,0,Parishes                      ,00000               
Borough Council of Kings Lynn and West Norfolk,E07000146,30/06/19,Precepts Of Parish Councils   ,WALPOLE CROSS KEYS PARISH CNCL          ,101608      ,15-Apr-19,8360,0,Parishes                      ,00000               
Borough Council of Kings Lynn and West Norfolk,E07000146,30/06/19,Kings Court Kings Lynn        ,HFX LIMITED                             ,104668      ,06-May-19,1610,0,Clothing/Uniforms             ,52322               
Borough Council of Kings Lynn and West Norfolk,E07000146,30/06/19,Air Quality                   ,AIR LIQUIDE UK LTD                      ,108811      ,27-May-19,732.49,0,Servicing                     ,25211               
Borough Council of Kings Lynn and West Norfolk,E07000146,30/06/19,Air Quality                   ,AIR LIQUIDE UK LTD                      ,108811      ,01-Jul-19,746.02,0,Tools And Equipment           ,25211               
Borough Council of Kings Lynn and West Norfolk,E07000146,30/06/19,Resort Seafront               ,C H S AMUSEMENTS LTD                    ,115391      ,24-Jun-19,725,0,Miscellaneous Rents           ,41209               
Borough Council of Kings Lynn and West Norfolk,E07000146,30/06/19,Green Bins/Recycling          ,SSI SCHAEFER LIMITED                    ,123743      ,15-Apr-19,3500,0,Equipment/Materials           ,C2104               
Borough Council of Kings Lynn and West Norfolk,E07000146,30/06/19,Refuse - Black Bins           ,SSI SCHAEFER LIMITED                    ,123743      ,15-Apr-19,3500,0,Equipment/Materials           ,C2101               
Borough Council of Kings Lynn and West Norfolk,E07000146,30/06/19,Recycling Composting          ,GREENWORLD SALES LTD T/A GREENWORLD     ,127400      ,06-May-19,728.5,0,Waste Processing Cost         ,28124               
Borough Council of Kings Lynn and West Norfolk,E07000146,30/06/19,73505                         ,TAYLORFITCH LIMITED                     ,131868      ,23-May-19,524.99,0,Miscellaneous                 ,73505               
Borough Council of Kings Lynn and West Norfolk,E07000146,30/06/19,Internal Communications       ,TAYLORFITCH LIMITED                     ,131868      ,23-May-19,524.99,0,Miscellaneous                 ,73505               
Borough Council of Kings Lynn and West Norfolk,E07000146,30/06/19,Food Hygiene General          ,EASTERN IFCA                            ,138100      ,08-Apr-19,1280,0,Shellfish Sampling            ,25413               
Borough Council of Kings Lynn and West Norfolk,E07000146,30/06/19,Careline                      ,NORTHERN HOUSING CONSORTIUM             ,138130      ,16-May-19,1115,0,Subscriptions                 ,37001               
Borough Council of Kings Lynn and West Norfolk,E07000146,30/06/19,50302                         ,HAYS SPECIALIST RECRUITMENT             ,137507      ,02-May-19,648.27,0,Agency Staff                  ,50302               
Borough Council of Kings Lynn and West Norfolk,E07000146,30/06/19,Financial Services            ,HAYS SPECIALIST RECRUITMENT             ,137507      ,02-May-19,648.27,0,Agency Staff                  ,50302               
Borough Council of Kings Lynn and West Norfolk,E07000146,30/06/19,Street Lighting               ,WESTCOTEC LTD                           ,141998      ,23-May-19,636.99,0,General Repairs               ,22610               
Borough Council of Kings Lynn and West Norfolk,E07000146,30/06/19,Coastal Defence/Protection    ,AECOM INFRASTRUCTURE & ENVIRONMENT UKLTD,139739      ,01-Jul-19,5172.93,0,Professional Fees             ,41210               
Borough Council of Kings Lynn and West Norfolk,E07000146,30/06/19,52333                         ,ADT FIRE AND SECURITY PLC               ,100036      ,29-Apr-19,1025.4,0,Maintenance Contracts         ,52333               
Borough Council of Kings Lynn and West Norfolk,E07000146,30/06/19,Priory Road Downham Market    ,ADT FIRE AND SECURITY PLC               ,100036      ,29-Apr-19,1025.4,0,Maintenance Contracts         ,52333               
Borough Council of Kings Lynn and West Norfolk,E07000146,30/06/19,Community Projects            ,NORFOLK COMMUNITY FOUNDATION            ,136248      ,23-May-19,22592,0,Works                         ,C8303               
Borough Council of Kings Lynn and West Norfolk,E07000146,30/06/19,Community Projects CRS        ,NORFOLK COMMUNITY FOUNDATION            ,136248      ,23-May-19,13030,0,Donations                     ,74501               
Borough Council of Kings Lynn and West Norfolk,E07000146,30/06/19,Community Projects CRS        ,NORFOLK COMMUNITY FOUNDATION            ,136248      ,23-May-19,6420,0,Admin Costs                   ,74501               
Borough Council of Kings Lynn and West Norfolk,E07000146,30/06/19,50127                         ,INSTITUTE OF GROUNDSMANSHIP             ,137278      ,13-May-19,530,0,Qualification Training        ,50127               
Borough Council of Kings Lynn and West Norfolk,E07000146,30/06/19,Training Holding Account      ,INSTITUTE OF GROUNDSMANSHIP             ,137278      ,13-May-19,530,0,Qualification Training        ,50127               
Borough Council of Kings Lynn and West Norfolk,E07000146,30/06/19,ICT                           ,AMTEC COMPUTER SERVICES LTD             ,142226      ,03-Jun-19,3132,0,Computer Software Maintenance ,55101               
Borough Council of Kings Lynn and West Norfolk,E07000146,30/06/19,Precepts Of Parish Councils   ,TILNEY ALL SAINTS PARISH COUNCIL        ,101549      ,15-Apr-19,20000,0,Parishes                      ,00000               
Borough Council of Kings Lynn and West Norfolk,E07000146,30/06/19,Noise Control                 ,RH ENVIRONMENTAL LTD                    ,136079      ,08-Jul-19,1060,0,Tools And Equipment           ,25212               
Borough Council of Kings Lynn and West Norfolk,E07000146,30/06/19,Dev & Estate Capital Receipts ,A F HOWLAND ASSOCIATES LTD              ,141244      ,15-Apr-19,4555,0,Disposal Cost Planning Fees   ,H8101               
Borough Council of Kings Lynn and West Norfolk,E07000146,30/06/19,Precepts Of Parish Councils   ,MARHAM PARISH COUNCIL                   ,101005      ,15-Apr-19,45423,0,Parishes                      ,00000               
Borough Council of Kings Lynn and West Norfolk,E07000146,30/06/19,Learning Catalyst             ,WEST WALTON EXTENDED SCHOOLS            ,133897      ,15-Apr-19,1299,0,Partnerships                  ,77587               
Borough Council of Kings Lynn and West Norfolk,E07000146,30/06/19,Supplier Holding Account      ,LAWN BOY (FARM SERVICES)                ,100919      ,22-Apr-19,6140.02,0,Materials                     ,M0102               
Borough Council of Kings Lynn and West Norfolk,E07000146,30/06/19,Precepts Of Parish Councils   ,DERSINGHAM PARISH COUNCIL               ,100458      ,15-Apr-19,151000,0,Parishes                      ,00000               
Borough Council of Kings Lynn and West Norfolk,E07000146,30/06/19,Special Expenses              ,DERSINGHAM PARISH COUNCIL               ,100458      ,15-Apr-19,1661,0,Special Expenses Credit       ,71411               
Borough Council of Kings Lynn and West Norfolk,E07000146,30/06/19,Housing Options Programme     ,SEQUENCE UK LTD                         ,134318      ,06-Jun-19,800,0,Homelessness Prevention Fund  ,33004               
Borough Council of Kings Lynn and West Norfolk,E07000146,30/06/19,Corporate                     ,REDCENTRIC SOLUTIONS LTD                ,143387      ,03-Jun-19,1907.4,0,Stationery & Office Supplies  ,71501               
Borough Council of Kings Lynn and West Norfolk,E07000146,30/06/19,Corporate                     ,REDCENTRIC SOLUTIONS LTD                ,143387      ,03-Jun-19,1907.4,0,Stationery & Office Supplies  ,71501               
Borough Council of Kings Lynn and West Norfolk,E07000146,30/06/19,Corporate                     ,REDCENTRIC SOLUTIONS LTD                ,143387      ,04-Jul-19,1907.4,0,Stationery & Office Supplies  ,71501               
Borough Council of Kings Lynn and West Norfolk,E07000146,30/06/19,Arts Centre Complex           ,UK POWER NETWORKS (OPERATIONS) LTD      ,114412      ,13-May-19,876,0,Works                         ,C0101               
Borough Council of Kings Lynn and West Norfolk,E07000146,30/06/19,OPE- Hunstanton Housing Sites ,CHAPLIN FARRANT LIMITED                 ,123551      ,25-Apr-19,1000,0,External Fees/Consultancy     ,C8157               
Borough Council of Kings Lynn and West Norfolk,E07000146,30/06/19,Air Quality                   ,AIR MONITORS LTD                        ,144122      ,18-Jul-19,6440,0,Servicing                     ,25211               
Borough Council of Kings Lynn and West Norfolk,E07000146,30/06/19,Community Projects PDS        ,WNDIS                                   ,110004      ,18-Apr-19,1030,0,Service Level Agreements      ,74499               
Borough Council of Kings Lynn and West Norfolk,E07000146,30/06/19,Special Expenses              ,TERRINGTON ST CLEMENT PSH CNCL          ,101533      ,15-Apr-19,1573,0,Special Expenses Credit       ,71411               
Borough Council of Kings Lynn and West Norfolk,E07000146,30/06/19,Precepts Of Parish Councils   ,TERRINGTON ST CLEMENT PSH CNCL          ,101533      ,15-Apr-19,141000,0,Parishes                      ,00000               
Borough Council of Kings Lynn and West Norfolk,E07000146,30/06/19,Precepts Of Parish Councils   ,WEST DEREHAM PARISH COUNCIL             ,101635      ,15-Apr-19,17403.74,0,Parishes                      ,00000               
Borough Council of Kings Lynn and West Norfolk,E07000146,30/06/19,Special Events                ,WEST NORFOLKS FLYING CHEF               ,101803      ,13-Jun-19,645.5,0,Hospitality                   ,71006               
Borough Council of Kings Lynn and West Norfolk,E07000146,30/06/19,Food Waste                    ,STRAIGHT MANUFACTURING LTD              ,143993      ,02-May-19,1020.6,0,Purchase Of Bins              ,28132               
Borough Council of Kings Lynn and West Norfolk,E07000146,30/06/19,Sports Grounds South          ,COLLIER TURF CARE LTD                   ,100362      ,16-May-19,974.34,0,Materials                     ,40640               
Borough Council of Kings Lynn and West Norfolk,E07000146,30/06/19,Sports Grounds Central        ,COLLIER TURF CARE LTD                   ,100362      ,16-May-19,974.33,0,Materials                     ,40630               
Borough Council of Kings Lynn and West Norfolk,E07000146,30/06/19,Sports Grounds North          ,COLLIER TURF CARE LTD                   ,100362      ,16-May-19,974.33,0,Materials                     ,40620               
Borough Council of Kings Lynn and West Norfolk,E07000146,30/06/19,Lease Car Revenue Account     ,COMMERCIAL SERVICES KENT LTD            ,146328      ,24-Jun-19,2331.94,0,Leasing                       ,H3101               
Borough Council of Kings Lynn and West Norfolk,E07000146,30/06/19,Lease Car Revenue Account     ,COMMERCIAL SERVICES KENT LTD            ,146328      ,24-Jun-19,2900,0,Leasing                       ,H3101               
Borough Council of Kings Lynn and West Norfolk,E07000146,30/06/19,Hunstanton Parks HLF          ,DMG TIMBER LTD                          ,146137      ,18-Apr-19,1705,0,Tools And Equipment           ,41213               
Borough Council of Kings Lynn and West Norfolk,E07000146,30/06/19,Apprenticeship Scheme         ,BEDFORD BOROUGH COUNCIL                 ,124800      ,23-May-19,4200,0,Apprentice Levi               ,71701               
Borough Council of Kings Lynn and West Norfolk,E07000146,30/06/19,Vehicle Recharge On Account   ,WORLDLINE IT SERVICESUK LTD RE FUELGENIE,135817      ,23-May-19,11965.44,0,Petrol                        ,M0101               
Borough Council of Kings Lynn and West Norfolk,E07000146,30/06/19,BCKLWN Control Account        ,NEWLYN PLC                              ,143655      ,10-Jun-19,1596.61,0,VAT Input (VAT Only Invoice)  ,BC999               
Borough Council of Kings Lynn and West Norfolk,E07000146,30/06/19,CCTV                          ,ZILICA LTD                              ,145297      ,23-May-19,2065,0,General Repairs               ,49901               
Borough Council of Kings Lynn and West Norfolk,E07000146,30/06/19,GM Northern Area              ,THURLOW NUNN STANDEN LTD                ,101547      ,25-Apr-19,640.11,0,Materials                     ,92101               
Borough Council of Kings Lynn and West Norfolk,E07000146,30/06/19,Market Contribution Tesco     ,RAY LINGE MARKET STALLS LTD             ,147166      ,06-May-19,1360,0,Works                         ,C8404               
Borough Council of Kings Lynn and West Norfolk,E07000146,30/06/19,KC OFFICE ACCOMMODATION RENTAL,MANPOWER DIRECT UK                      ,147078      ,03-Jun-19,6473.39,0,Contract Security             ,52323               
Borough Council of Kings Lynn and West Norfolk,E07000146,30/06/19,NEW MOBILE PHONE APP          ,KLFM LTD                                ,102963      ,08-Apr-19,1200,0,Website traffic marketing     ,48538               
Borough Council of Kings Lynn and West Norfolk,E07000146,30/06/19,Regis Place Unit1-Non Inv Care,ADVANCED WATER TREATMENT (UK) LTD       ,136018      ,22-Apr-19,690,0,Maint Plant & Equip           ,11217               
Borough Council of Kings Lynn and West Norfolk,E07000146,30/06/19,Regis Place Unit1-Non Inv Care,ADVANCED WATER TREATMENT (UK) LTD       ,136018      ,22-Apr-19,597,0,Maint Plant & Equip           ,11217               
Borough Council of Kings Lynn and West Norfolk,E07000146,30/06/19,Adapt Grant                   ,STANNAH LIFT SERVICES LTD               ,101479      ,27-May-19,2992,0,Works                         ,C1202               
Borough Council of Kings Lynn and West Norfolk,E07000146,30/06/19,Phase -Lynnsport 4 /5 Contract,LOVELL PARTNERSHIPS LTD                 ,143432      ,11-Apr-19,715561.45,0,Works                         ,C8124               
Borough Council of Kings Lynn and West Norfolk,E07000146,30/06/19,Phase 1-Lynnsport 3-Contractor,LOVELL PARTNERSHIPS LTD                 ,143432      ,17-Jun-19,425130.12,0,Works                         ,C8123               
Borough Council of Kings Lynn and West Norfolk,E07000146,30/06/19,Depot Infestation Works       ,CHURCHES FIRE SECURITY LTD              ,147299      ,20-Jun-19,930.8,0,Equipment/Materials           ,Y1023               
Borough Council of Kings Lynn and West Norfolk,E07000146,30/06/19,Parking Operations - Borough  ,BEMROSE BOOTH PARAGON LTD               ,119101      ,20-May-19,1950,0,Stationery & Office Supplies  ,21840               
Borough Council of Kings Lynn and West Norfolk,E07000146,30/06/19,NNDC Carpark Operation        ,BEMROSE BOOTH PARAGON LTD               ,119101      ,27-Jun-19,956.25,0,Tools And Equipment           ,41311               
Borough Council of Kings Lynn and West Norfolk,E07000146,30/06/19,The Narrows Industrial Est    ,LANTEI LIMITED                          ,147031      ,06-May-19,874.85,0,General Repairs               ,11206               
Borough Council of Kings Lynn and West Norfolk,E07000146,30/06/19,Depot Infestation Works       ,JD COOLING SYSTEMS LTD                  ,119491      ,06-May-19,8407,0,Rechargeable Works            ,Y1023               
Borough Council of Kings Lynn and West Norfolk,E07000146,30/06/19,Depot Infestation Works       ,JD COOLING SYSTEMS LTD                  ,119491      ,06-Jun-19,4224,0,Rechargeable Works            ,Y1023               
Borough Council of Kings Lynn and West Norfolk,E07000146,30/06/19,Leisure Management Costs      ,LOOMIS UK LTD                           ,140581      ,15-Apr-19,559.5,0,Security Services Charge      ,42299               
Borough Council of Kings Lynn and West Norfolk,E07000146,30/06/19,Parking Operations - Borough  ,LOOMIS UK LTD                           ,140581      ,15-Apr-19,996.83,0,Security Services Charge      ,21840               
Borough Council of Kings Lynn and West Norfolk,E07000146,30/06/19,Precepts Of Parish Councils   ,OLD HUNSTANTON PARISH COUNCIL           ,101187      ,15-Apr-19,9662,0,Parishes                      ,00000               
Borough Council of Kings Lynn and West Norfolk,E07000146,30/06/19,50127                         ,KSL                                     ,147619      ,09-May-19,778.65,0,In-House Training             ,50127               
Borough Council of Kings Lynn and West Norfolk,E07000146,30/06/19,Training Holding Account      ,KSL                                     ,147619      ,09-May-19,778.65,0,In-House Training             ,50127               
Borough Council of Kings Lynn and West Norfolk,E07000146,30/06/19,CCTV Breckland                ,QUALITY ESSENTIAL DISTRIBUTON LTD       ,147658      ,08-Jul-19,11998.75,0,Maint Plant & Equip           ,49899               
Borough Council of Kings Lynn and West Norfolk,E07000146,30/06/19,CCTV                          ,QUALITY ESSENTIAL DISTRIBUTON LTD       ,147658      ,11-Jul-19,5075,0,General Repairs               ,49901               
Borough Council of Kings Lynn and West Norfolk,E07000146,30/06/19,Precepts Of Parish Councils   ,NORDELPH INTERNAL DRAINAGE BOARD        ,101138      ,29-Apr-19,1110,0,Drainage Boards               ,00000               
Borough Council of Kings Lynn and West Norfolk,E07000146,30/06/19,50127                         ,UK ASBESTOS SPECIALISTS LTD             ,147838      ,25-Apr-19,1590,0,In-House Training             ,50127               
Borough Council of Kings Lynn and West Norfolk,E07000146,30/06/19,Training Holding Account      ,UK ASBESTOS SPECIALISTS LTD             ,147838      ,25-Apr-19,1590,0,In-House Training             ,50127               
Borough Council of Kings Lynn and West Norfolk,E07000146,30/06/19,GM Central Area               ,TMP (UK) LTD                            ,147854      ,29-Apr-19,795,0,Recruitment                   ,92102               
Borough Council of Kings Lynn and West Norfolk,E07000146,30/06/19,Development Control           ,TMP (UK) LTD                            ,147854      ,13-May-19,2744.8,0,Recruitment                   ,60601               
Borough Council of Kings Lynn and West Norfolk,E07000146,30/06/19,Food Hygiene/H&S Sals/Sup cost,TMP (UK) LTD                            ,147854      ,20-Jun-19,1180,0,Recruitment                   ,29990               
Borough Council of Kings Lynn and West Norfolk,E07000146,30/06/19,CCTV Crem                     ,FLOW COMMUNICATIONS UK LTD              ,145444      ,08-Apr-19,2404.1,0,Equipment/Materials           ,C1809               
Borough Council of Kings Lynn and West Norfolk,E07000146,30/06/19,CCTV Multistorey              ,FLOW COMMUNICATIONS UK LTD              ,145444      ,08-Apr-19,1202.05,0,Equipment/Materials           ,C1807               
Borough Council of Kings Lynn and West Norfolk,E07000146,30/06/19,Depot Infestation Works       ,FLOW COMMUNICATIONS UK LTD              ,145444      ,16-May-19,790.85,0,Rechargeable Works            ,Y1023               
Borough Council of Kings Lynn and West Norfolk,E07000146,30/06/19,Salters Road - BCKLWN Costs   ,GOLDEN TREE SURGEONS LTD                ,145155      ,08-Apr-19,1900,0,Works                         ,C8162               
Borough Council of Kings Lynn and West Norfolk,E07000146,30/06/19,Dry Box Collection Scheme     ,BRECKLAND COUNCIL                       ,106703      ,08-Apr-19,3408.01,0,Admin Charges Norwich City    ,28125               
Borough Council of Kings Lynn and West Norfolk,E07000146,30/06/19,The Walks                     ,ENTERPRISE RENT-A-CAR (UK) LTD          ,100567      ,29-Apr-19,1070.44,0,Hire Car Charge (Enterprise)  ,40244               
Borough Council of Kings Lynn and West Norfolk,E07000146,30/06/19,Members - Refresh             ,BECHTLE DIRECT LTD                      ,118371      ,11-Apr-19,16909,0,Computer Equip (Hardware)     ,C9010               
Borough Council of Kings Lynn and West Norfolk,E07000146,30/06/19,Care & Repair - Home Impro Agy,SEVEN RESOURCING LTD                    ,145043      ,06-Jun-19,1151.27,0,Agency Staff                  ,31002               
Borough Council of Kings Lynn and West Norfolk,E07000146,30/06/19,Care & Repair - Home Impro Agy,SEVEN RESOURCING LTD                    ,145043      ,27-Jun-19,984.14,0,Agency Staff                  ,31002               
Borough Council of Kings Lynn and West Norfolk,E07000146,30/06/19,Development Control           ,PORTAL/PLANQUEST LTD                    ,147508      ,20-Jun-19,1848,0,Planning Fees                 ,60601               
Borough Council of Kings Lynn and West Norfolk,E07000146,30/06/19,The Walks                     ,FENLAND LEISURE PRODUCTS LTD            ,117418      ,24-Jun-19,1169.59,0,Play Area Maintenance         ,40244               
Borough Council of Kings Lynn and West Norfolk,E07000146,30/06/19,Handyperson Scheme Kings Lynn ,CHAS D ALLFLATT LTD                     ,100315      ,08-Apr-19,1884.58,0,Contractor Payments           ,31010               
Borough Council of Kings Lynn and West Norfolk,E07000146,30/06/19,Decriminalisation             ,E AKERS                                 ,100500      ,18-Apr-19,2500,0,Equipment/Materials           ,C0906               
Borough Council of Kings Lynn and West Norfolk,E07000146,30/06/19,Tech/Officers/Repairs         ,RIDGEONS LTD                            ,101348      ,25-Apr-19,508.39,0,Tools And Equipment           ,94201               
Borough Council of Kings Lynn and West Norfolk,E07000146,30/06/19,CCTV                          ,FOCUS SECURITY (EAST ANGLIA) LTD        ,136665      ,27-Jun-19,624.5,0,General Repairs               ,49901               
Borough Council of Kings Lynn and West Norfolk,E07000146,30/06/19,CCTV Breckland                ,FOCUS SECURITY (EAST ANGLIA) LTD        ,136665      ,27-Jun-19,624.5,0,Maint Plant & Equip           ,49899               
Borough Council of Kings Lynn and West Norfolk,E07000146,30/06/19,Local Land Charges            ,NORFOLK COUNTY COUNCIL                  ,101142      ,22-Apr-19,5333.55,0,Agency                        ,77001               
Borough Council of Kings Lynn and West Norfolk,E07000146,30/06/19,Decrim - Other                ,NORFOLK COUNTY COUNCIL                  ,101142      ,17-Jun-19,164292.08,0,Agency                        ,21839               
Borough Council of Kings Lynn and West Norfolk,E07000146,30/06/19,Domestic Refuse               ,KIER SERVICES ENVIRONMENTAL             ,141535      ,02-May-19,2454.52,0,Dayworks and Addnl Works      ,20412               
Borough Council of Kings Lynn and West Norfolk,E07000146,30/06/19,Parish/Borough Coun. Elections,STEPHEN AUSTIN & SONS LIMITED           ,147948      ,13-Jun-19,8360.94,0,Stationery & Office Supplies  ,70503               
Borough Council of Kings Lynn and West Norfolk,E07000146,30/06/19,European Elections            ,STEPHEN AUSTIN & SONS LIMITED           ,147948      ,13-Jun-19,1362.7,0,Stationery & Office Supplies  ,75506               
Borough Council of Kings Lynn and West Norfolk,E07000146,30/06/19,50121                         ,DISCLOSURE & BARRING SERVICE            ,119457      ,24-Jun-19,528,0,Personnel DBS Checks - Costs  ,50121               
Borough Council of Kings Lynn and West Norfolk,E07000146,30/06/19,Personnel Services            ,DISCLOSURE & BARRING SERVICE            ,119457      ,24-Jun-19,528,0,Personnel DBS Checks - Costs  ,50121               
Borough Council of Kings Lynn and West Norfolk,E07000146,30/06/19,BCKLWN Control Account        ,ROSSENDALES LTD                         ,101364      ,11-Jul-19,669.82,0,VAT Input (VAT Only Invoice)  ,BC999               
Borough Council of Kings Lynn and West Norfolk,E07000146,30/06/19,Mintlyn Crematorium           ,FACULTATIEVE TECHNOLOGIESLTD            ,125759      ,03-Jun-19,806.89,0,Trade Waste                   ,20830               
Borough Council of Kings Lynn and West Norfolk,E07000146,30/06/19,Safe and Secure Grant         ,CHAS D ALLFLATT LTD                     ,100315      ,15-Apr-19,7998.35,0,Works                         ,C1207               
Borough Council of Kings Lynn and West Norfolk,E07000146,30/06/19,Disabled Facilties Grant      ,CHAS D ALLFLATT LTD                     ,100315      ,22-Apr-19,4350,0,Works                         ,C1201               
Borough Council of Kings Lynn and West Norfolk,E07000146,30/06/19,Handyperson Scheme Kings Lynn ,CHAS D ALLFLATT LTD                     ,100315      ,29-Apr-19,3111.42,0,Contractor Payments           ,31010               
Borough Council of Kings Lynn and West Norfolk,E07000146,30/06/19,Handyperson Scheme Kings Lynn ,CHAS D ALLFLATT LTD                     ,100315      ,06-May-19,1994.51,0,Contractor Payments           ,31010               
Borough Council of Kings Lynn and West Norfolk,E07000146,30/06/19,Handyperson Scheme Kings Lynn ,CHAS D ALLFLATT LTD                     ,100315      ,16-May-19,1764.01,0,Contractor Payments           ,31010               
Borough Council of Kings Lynn and West Norfolk,E07000146,30/06/19,Disabled Facilties Grant      ,CHAS D ALLFLATT LTD                     ,100315      ,23-May-19,3706.9,0,Works                         ,C1201               
Borough Council of Kings Lynn and West Norfolk,E07000146,30/06/19,Handyperson Scheme Kings Lynn ,CHAS D ALLFLATT LTD                     ,100315      ,27-Jun-19,1653.23,0,Contractor Payments           ,31010               
Borough Council of Kings Lynn and West Norfolk,E07000146,30/06/19,Sports Grounds Central        ,RIGBY TAYLOR LTD                        ,101349      ,08-Apr-19,588,0,Materials                     ,40630               
Borough Council of Kings Lynn and West Norfolk,E07000146,30/06/19,Sports Grounds Central        ,RIGBY TAYLOR LTD                        ,101349      ,08-Apr-19,588,0,Materials                     ,40630               
Borough Council of Kings Lynn and West Norfolk,E07000146,30/06/19,Sports Grounds North          ,RIGBY TAYLOR LTD                        ,101349      ,08-Apr-19,812,0,Materials                     ,40620               
Borough Council of Kings Lynn and West Norfolk,E07000146,30/06/19,Cashless Park KZ (KLWN off St),CHIPSIDE LTD                            ,146272      ,24-Jun-19,1414.92,0,Transaction Fee               ,21856               
Borough Council of Kings Lynn and West Norfolk,E07000146,30/06/19,Cashless Park YT(Gt Ya off St),CHIPSIDE LTD                            ,146272      ,24-Jun-19,510.83,0,Transaction Fee               ,21865               
Borough Council of Kings Lynn and West Norfolk,E07000146,30/06/19,Arts Centre Complex           ,ANGLIA BUSINESS GROWTH CONSULTANTS LTD  ,148014      ,11-Jul-19,2850,0,External Fees/Consultancy     ,C0101               
Borough Council of Kings Lynn and West Norfolk,E07000146,30/06/19,Cafe in the Park              ,EDEN FARM HULLEYS LTD                   ,118383      ,24-Jun-19,682.36,0,Purchases - Cafe Ices         ,40245               
Borough Council of Kings Lynn and West Norfolk,E07000146,30/06/19,Parish/Borough Coun. Elections,ELECTION PAYMENTS                       ,ELEC        ,17-Jun-19,745,0,Election Payments             ,70503               
Borough Council of Kings Lynn and West Norfolk,E07000146,30/06/19,Parish/Borough Coun. Elections,ELECTION PAYMENTS                       ,ELEC        ,17-Jun-19,1995.63,0,Election Payments             ,70503               
Borough Council of Kings Lynn and West Norfolk,E07000146,30/06/19,General Properties            ,CGM GROUP (EAST ANGLIA) LTD             ,100401      ,10-Jun-19,1935,0,General Repairs               ,12301               
Borough Council of Kings Lynn and West Norfolk,E07000146,30/06/19,12301                         ,CGM GROUP (EAST ANGLIA) LTD             ,100401      ,10-Jun-19,1935,0,General Repairs               ,12301               
Borough Council of Kings Lynn and West Norfolk,E07000146,30/06/19,50302                         ,ROYAL MAIL GROUP LTD                    ,101369      ,23-May-19,1206.04,0,Postages                      ,50302               
Borough Council of Kings Lynn and West Norfolk,E07000146,30/06/19,Financial Services            ,ROYAL MAIL GROUP LTD                    ,101369      ,23-May-19,1206.04,0,Postages                      ,50302               
Borough Council of Kings Lynn and West Norfolk,E07000146,30/06/19,Cost of Collection - CTax     ,ROYAL MAIL GROUP LTD                    ,101369      ,17-Jun-19,3367.42,0,Postages                      ,76003               
Borough Council of Kings Lynn and West Norfolk,E07000146,30/06/19,Benefit Administration        ,ROYAL MAIL GROUP LTD                    ,101369      ,17-Jun-19,602.14,0,Postages                      ,32501               
Borough Council of Kings Lynn and West Norfolk,E07000146,30/06/19,50302                         ,ROYAL MAIL GROUP LTD                    ,101369      ,17-Jun-19,1451.25,0,Postages                      ,50302               
Borough Council of Kings Lynn and West Norfolk,E07000146,30/06/19,Financial Services            ,ROYAL MAIL GROUP LTD                    ,101369      ,17-Jun-19,1451.25,0,Postages                      ,50302               
Borough Council of Kings Lynn and West Norfolk,E07000146,30/06/19,CCTV                          ,SWANN SYSTEMS (UK) LTD                  ,139593      ,06-May-19,609,0,Furniture                     ,49901               
Borough Council of Kings Lynn and West Norfolk,E07000146,30/06/19,Parking Operations - Borough  ,METRIC GROUP LTD                        ,101041      ,11-Apr-19,6853.5,0,Gen Rep KL P&D                ,21840               
Borough Council of Kings Lynn and West Norfolk,E07000146,30/06/19,Corn Exc -Refurbish Seating   ,FENWELD ENGINEERING SERVICES            ,118820      ,25-Jul-19,520,0,Works                         ,C0215               
Borough Council of Kings Lynn and West Norfolk,E07000146,30/06/19,KL Arts Centre                ,ALIVE MANAGEMENT LTD                    ,143925      ,08-Apr-19,4097.08,0,Recharge Maint (Fr AML A910)  ,46101               
Borough Council of Kings Lynn and West Norfolk,E07000146,30/06/19,KL Arts Centre                ,ALIVE MANAGEMENT LTD                    ,143925      ,08-Apr-19,2251.22,0,Recharge Maint (Fr AML A910)  ,46101               
Borough Council of Kings Lynn and West Norfolk,E07000146,30/06/19,KL Arts Centre                ,ALIVE MANAGEMENT LTD                    ,143925      ,08-Apr-19,1103.08,0,Recharge Maint (Fr AML A910)  ,46101               
Borough Council of Kings Lynn and West Norfolk,E07000146,30/06/19,South Lynn Community Centre   ,ALIVE MANAGEMENT LTD                    ,143925      ,08-Apr-19,520.74,0,Comm Centres Staff (AML A915) ,38006               
Borough Council of Kings Lynn and West Norfolk,E07000146,30/06/19,"31 Church Road,TSC PE34 4PG-JR",1-2 CALL DRAINAGE & GROUNDWORK LTD      ,131800      ,06-May-19,1275,0,Rechargeable Works            ,Y3097               
Borough Council of Kings Lynn and West Norfolk,E07000146,30/06/19,Handyperson Scheme Kings Lynn ,A SMITH CONTRACTORS                     ,115351      ,01-Jul-19,585,0,Contractor Payments           ,31010               
Borough Council of Kings Lynn and West Norfolk,E07000146,30/06/19,Heacham Beach                 ,PENTY CONTRACTORS LTD                   ,101244      ,02-May-19,752.8,0,General Repairs               ,41206               
Borough Council of Kings Lynn and West Norfolk,E07000146,30/06/19,Lynnsport General Account     ,CORONA ENERGY RETAIL 4 LTD              ,131838      ,18-Apr-19,1403.05,0,Gas                           ,95601               
Borough Council of Kings Lynn and West Norfolk,E07000146,30/06/19,KL Arts Centre                ,CORONA ENERGY RETAIL 4 LTD              ,131838      ,18-Apr-19,1092.64,0,Gas                           ,46101               
Borough Council of Kings Lynn and West Norfolk,E07000146,30/06/19,Decriminalisation             ,KINGS LYNN SIGNS                        ,100887      ,18-Apr-19,829,0,Equipment/Materials           ,C0906               
Borough Council of Kings Lynn and West Norfolk,E07000146,30/06/19,NNDC Penalty Notice Processing,NORTH NORFOLK DISTRICT COUNCIL          ,101156      ,17-Jun-19,7548.37,0,Agency                        ,41312               
Borough Council of Kings Lynn and West Norfolk,E07000146,30/06/19,GM Northern Area              ,NOMIX ENVIRO LTD                        ,147869      ,11-Apr-19,578.13,0,Materials                     ,92101               
Borough Council of Kings Lynn and West Norfolk,E07000146,30/06/19,GM Southern Area & Lynnsport  ,NOMIX ENVIRO LTD                        ,147869      ,11-Apr-19,578.14,0,Materials                     ,92103               
Borough Council of Kings Lynn and West Norfolk,E07000146,30/06/19,GM Northern Area              ,NOMIX ENVIRO LTD                        ,147869      ,11-Apr-19,578.13,0,Materials                     ,92101               
Borough Council of Kings Lynn and West Norfolk,E07000146,30/06/19,Precepts Of Parish Councils   ,BOUGHTON PARISH COUNCIL                 ,100201      ,15-Apr-19,3140,0,Parishes                      ,00000               
Borough Council of Kings Lynn and West Norfolk,E07000146,30/06/19,Kings Court Kings Lynn        ,CHUBB FIRE & SECURITY LTD               ,100324      ,27-May-19,1077.27,0,Maint Plant & Equip           ,52322               
Borough Council of Kings Lynn and West Norfolk,E07000146,30/06/19,Precepts Of Parish Councils   ,CLENCHWARTON PARISH COUNCIL             ,100348      ,15-Apr-19,46886,0,Parishes                      ,00000               
Borough Council of Kings Lynn and West Norfolk,E07000146,30/06/19,Precepts Of Parish Councils   ,DOWNHAM & STOW BARDOLPH IDB             ,100480      ,29-Apr-19,28434.29,0,Drainage Boards               ,00000               
Borough Council of Kings Lynn and West Norfolk,E07000146,30/06/19,Cashless Park YT(Gt Ya off St),GREAT YARMOUTH BOROUGH COUNCIL          ,100713      ,13-Jun-19,12670.83,0,Agency                        ,21865               
Borough Council of Kings Lynn and West Norfolk,E07000146,30/06/19,Precepts Of Parish Councils   ,RINGSTEAD PARISH CNCL                   ,101350      ,15-Apr-19,10000,0,Parishes                      ,00000               
Borough Council of Kings Lynn and West Norfolk,E07000146,30/06/19,The Walks                     ,SPALDINGS LTD                           ,101456      ,13-May-19,795,0,Tools And Equipment           ,40244               
Borough Council of Kings Lynn and West Norfolk,E07000146,30/06/19,Precepts Of Parish Councils   ,WRETTON PARISH COUNCIL                  ,101672      ,15-Apr-19,4990,0,Parishes                      ,00000               
Borough Council of Kings Lynn and West Norfolk,E07000146,30/06/19,Precepts Of Parish Councils   ,WIGGENHALL ST MARY MAGDALEN PC          ,101652      ,15-Apr-19,15000,0,Parishes                      ,00000               
Borough Council of Kings Lynn and West Norfolk,E07000146,30/06/19,Precepts Of Parish Councils   ,TOTTENHILL PARISH COUNCIL               ,101559      ,15-Apr-19,2603.5,0,Parishes                      ,00000               
Borough Council of Kings Lynn and West Norfolk,E07000146,30/06/19,Precepts Of Parish Councils   ,WALPOLE PARISH COUNCIL                  ,101610      ,15-Apr-19,17318.58,0,Parishes                      ,00000               
Borough Council of Kings Lynn and West Norfolk,E07000146,30/06/19,Community Projects CRS        ,NORTH END TRUST                         ,101771      ,09-May-19,2545,0,Service Level Agreements      ,74501               
Borough Council of Kings Lynn and West Norfolk,E07000146,30/06/19,BCKLWN Control Account        ,KL OPERATIC & DRAMATIC SOCIETY          ,102001      ,22-Apr-19,1407.5,0,VAT Output                    ,BC999               
Borough Council of Kings Lynn and West Norfolk,E07000146,30/06/19,KL Arts Centre                ,KL OPERATIC & DRAMATIC SOCIETY          ,102001      ,22-Apr-19,7037.5,0,Hirings Ticketed              ,46101               
Borough Council of Kings Lynn and West Norfolk,E07000146,30/06/19,BCKLWN Debtors Control        ,F W HENDRY (KL) LTD                     ,103544      ,22-Apr-19,2049.97,0,Control Account Ledger 4      ,SD712               
Borough Council of Kings Lynn and West Norfolk,E07000146,30/06/19,Adapt Grant                   ,ELY BUILDING & MAINTENANCE SERVICES LTD ,106268      ,20-Jun-19,3452.67,0,Works                         ,C1202               
Borough Council of Kings Lynn and West Norfolk,E07000146,30/06/19,Corporate                     ,I&DEA                                   ,124105      ,23-May-19,975,0,Subscriptions                 ,71501               
Borough Council of Kings Lynn and West Norfolk,E07000146,30/06/19,National Assist Act Burials   ,THORNALLEY FUNERAL SERVICES LTD         ,125811      ,22-Apr-19,1626,0,Burial Fees-Nat.Ass.Act       ,29951               
Borough Council of Kings Lynn and West Norfolk,E07000146,30/06/19,ICT                           ,BLUEFORT SECURITY LTD                   ,134503      ,18-Jul-19,1293.5,0,Computer Software Maintenance ,55101               
Borough Council of Kings Lynn and West Norfolk,E07000146,30/06/19,Welfare Reform Funding        ,CIPFA BUSINESS LTD                      ,135122      ,08-Apr-19,640,0,Professional Fees             ,32508               
Borough Council of Kings Lynn and West Norfolk,E07000146,30/06/19,North Sea Haven               ,CROWN ESTATE RE CARTER JONAS RENTAL AC  ,136298      ,27-Jun-19,960,0,Rent                          ,20311               
Borough Council of Kings Lynn and West Norfolk,E07000146,30/06/19,50132                         ,SOWERBYS ESTATE AGENTS LTD              ,136145      ,11-Apr-19,2900,0,Professional Fees             ,50132               
Borough Council of Kings Lynn and West Norfolk,E07000146,30/06/19,Property Services             ,SOWERBYS ESTATE AGENTS LTD              ,136145      ,11-Apr-19,2900,0,Professional Fees             ,50132               
Borough Council of Kings Lynn and West Norfolk,E07000146,30/06/19,Community Projects CRS        ,WESTACRE ARTS FOUNDATION LTD            ,136910      ,27-Jun-19,2580,0,Service Level Agreements      ,74501               
Borough Council of Kings Lynn and West Norfolk,E07000146,30/06/19,ICT                           ,SOFTCAT PLC                             ,139734      ,18-Apr-19,753.3,0,Computer Software Maintenance ,55101               
Borough Council of Kings Lynn and West Norfolk,E07000146,30/06/19,Tek- Main                     ,TRAFFIC ENFORCEMENT CENTRE              ,139856      ,01-Jul-19,10000,0,Tek Fund                      ,21841               
Borough Council of Kings Lynn and West Norfolk,E07000146,30/06/19,Adapt Grant                   ,PREFERRED ACCESS RAMP SYSTEMS LTD       ,142402      ,17-Jun-19,1150,0,Works                         ,C1202               
Borough Council of Kings Lynn and West Norfolk,E07000146,30/06/19,Special Expenses              ,SNETTISHAM PARISH COUNCIL               ,101445      ,15-Apr-19,765,0,Special Expenses Credit       ,71411               
Borough Council of Kings Lynn and West Norfolk,E07000146,30/06/19,Precepts Of Parish Councils   ,SNETTISHAM PARISH COUNCIL               ,101445      ,15-Apr-19,91500,0,Parishes                      ,00000               
Borough Council of Kings Lynn and West Norfolk,E07000146,30/06/19,Precepts Of Parish Councils   ,SOUTH CREAKE PARISH COUNCIL             ,101448      ,15-Apr-19,14908,0,Parishes                      ,00000               
Borough Council of Kings Lynn and West Norfolk,E07000146,30/06/19,ICT                           ,GMO GLOBALSIGN LTD                      ,141517      ,01-Jul-19,764,0,Computer Software Maintenance ,55101               
Borough Council of Kings Lynn and West Norfolk,E07000146,30/06/19,Adapt Grant                   ,RTC BUILDERS                            ,142038      ,17-Apr-19,2985.85,0,Works                         ,C1202               
Borough Council of Kings Lynn and West Norfolk,E07000146,30/06/19,50127                         ,SHELTER TRAINING                        ,141102      ,13-May-19,1039.55,0,In-House Training             ,50127               
Borough Council of Kings Lynn and West Norfolk,E07000146,30/06/19,Training Holding Account      ,SHELTER TRAINING                        ,141102      ,13-May-19,1039.55,0,In-House Training             ,50127               
Borough Council of Kings Lynn and West Norfolk,E07000146,30/06/19,North Lynn Industrial Est     ,DOWNHAM DOOR SERVICES                   ,100481      ,06-Jun-19,695,0,General Repairs               ,11203               
Borough Council of Kings Lynn and West Norfolk,E07000146,30/06/19,ICT                           ,MPS  NETWORKSPLC                        ,136347      ,18-Apr-19,5000,0,Computer Hardware Maintenance ,55101               
Borough Council of Kings Lynn and West Norfolk,E07000146,30/06/19,Townscape Heritage Initiative ,IBA INSURANCE SERVICES LTD              ,135381      ,17-Jun-19,4422,0,THI Small Grants              ,C8106               
Borough Council of Kings Lynn and West Norfolk,E07000146,30/06/19,Support of Democratic Process ,PHOENIX SOFTWARE LTD                    ,101267      ,06-Jun-19,507,0,Council Meetings              ,70505               
Borough Council of Kings Lynn and West Norfolk,E07000146,30/06/19,Precepts Of Parish Councils   ,NORTH RUNCTON PARISH COUNCIL            ,101157      ,15-Apr-19,15852,0,Parishes                      ,00000               
Borough Council of Kings Lynn and West Norfolk,E07000146,30/06/19,Precepts Of Parish Councils   ,NORTH WOOTTON PARISH COUNCIL            ,101160      ,15-Apr-19,37258,0,Parishes                      ,00000               
Borough Council of Kings Lynn and West Norfolk,E07000146,30/06/19,50121                         ,CREATIVE LEARNING SYSTEMS               ,139515      ,11-Apr-19,8538.4,0,E-learning                    ,50121               
Borough Council of Kings Lynn and West Norfolk,E07000146,30/06/19,Personnel Services            ,CREATIVE LEARNING SYSTEMS               ,139515      ,11-Apr-19,8538.4,0,E-learning                    ,50121               
Borough Council of Kings Lynn and West Norfolk,E07000146,30/06/19,CCTV Crem                     ,NET-CTRL LTD                            ,142211      ,27-May-19,1188.86,0,Equipment/Materials           ,C1809               
Borough Council of Kings Lynn and West Norfolk,E07000146,30/06/19,ICT                           ,MIDLAND COMPUTER SERVICES LTD           ,139465      ,08-Apr-19,4516.4,0,Computer Hardware Maintenance ,55101               
Borough Council of Kings Lynn and West Norfolk,E07000146,30/06/19,Town Hall Kings Lynn          ,A WILLIAMS DECORATORS LTD               ,101985      ,08-Apr-19,2395,0,General Repairs               ,42401               
Borough Council of Kings Lynn and West Norfolk,E07000146,30/06/19,Town Hall Kings Lynn          ,A WILLIAMS DECORATORS LTD               ,101985      ,08-Apr-19,682,0,General Repairs               ,42401               
Borough Council of Kings Lynn and West Norfolk,E07000146,30/06/19,Precepts Of Parish Councils   ,FINCHAM PARISH COUNCIL                  ,100634      ,15-Apr-19,8084,0,Parishes                      ,00000               
Borough Council of Kings Lynn and West Norfolk,E07000146,30/06/19,Leisure Options               ,BIRKETTS LLP                            ,136597      ,20-Jun-19,1025,0,Legal - Non Comm              ,71505               
Borough Council of Kings Lynn and West Norfolk,E07000146,30/06/19,Precepts Of Parish Councils   ,EAST OF OUSE POLVER & NAR IDB           ,100517      ,29-Apr-19,135498.94,0,Drainage Boards               ,00000               
Borough Council of Kings Lynn and West Norfolk,E07000146,30/06/19,"St Edmunds, D'ham Mkt         ",NEVILLE GODFREY LTD                     ,101117      ,18-Apr-19,595,0,General Repairs               ,20661               
Borough Council of Kings Lynn and West Norfolk,E07000146,30/06/19,ICT                           ,IDOX SOFTWARE LTD                       ,132346      ,13-May-19,57792,0,Computer Software Maintenance ,55101               
Borough Council of Kings Lynn and West Norfolk,E07000146,30/06/19,Disabled Facilties Grant      ,PVS HOLDINGS                            ,123954      ,20-May-19,3544,0,Works                         ,C1201               
Borough Council of Kings Lynn and West Norfolk,E07000146,30/06/19,Stories of Lynn               ,DORMA UK LTD                            ,104955      ,27-May-19,800.7,0,Maintenance Contracts         ,42502               
Borough Council of Kings Lynn and West Norfolk,E07000146,30/06/19,Vulnerable Person Resettlement,NORWICH CITY COUNCIL                    ,101166      ,11-Apr-19,2973.28,0,Contributions                 ,33018               
Borough Council of Kings Lynn and West Norfolk,E07000146,30/06/19,Depot Infestation Works       ,KOMPLETE OFFICE INTERIORS LTD           ,131273      ,06-Jun-19,4923,0,Rechargeable Works            ,Y1023               
Borough Council of Kings Lynn and West Norfolk,E07000146,30/06/19,OPE- Hunstanton Housing Sites ,CHAPLIN FARRANT LIMITED                 ,123551      ,15-Apr-19,962.5,0,Professional Fees             ,C8157               
Borough Council of Kings Lynn and West Norfolk,E07000146,30/06/19,Precepts Of Parish Councils   ,LEZIATE PARISH COUNCIL                  ,100931      ,15-Apr-19,11794.28,0,Parishes                      ,00000               
Borough Council of Kings Lynn and West Norfolk,E07000146,30/06/19,Precepts Of Parish Councils   ,BURNHAM MARKET PARISH COUNCIL           ,100248      ,15-Apr-19,32325,0,Parishes                      ,00000               
Borough Council of Kings Lynn and West Norfolk,E07000146,30/06/19,Precepts Of Parish Councils   ,SHOULDHAM PARISH COUNCIL                ,101428      ,15-Apr-19,14161,0,Parishes                      ,00000               
Borough Council of Kings Lynn and West Norfolk,E07000146,30/06/19,Precepts Of Parish Councils   ,TITCHWELL PARISH MTG                    ,102697      ,15-Apr-19,950,0,Parishes                      ,00000               
Borough Council of Kings Lynn and West Norfolk,E07000146,30/06/19,Community Infrastructure Levy ,WEST WINCH PARISH COUNCIL               ,101642      ,18-Apr-19,1590,0,Payment to Parishes           ,62704               
Borough Council of Kings Lynn and West Norfolk,E07000146,30/06/19,KC OFFICE ACCOMMODATION RENTAL,DIRECT COMMUNICATIONS RADIO SERVICES LTD,121188      ,09-May-19,3415,0,Repairs - Services Charges    ,52323               
Borough Council of Kings Lynn and West Norfolk,E07000146,30/06/19,ICT                           ,BYTES SOFTWARE SERVICES LTD             ,145245      ,06-May-19,6392.13,0,Computer Hardware Maintenance ,55101               
Borough Council of Kings Lynn and West Norfolk,E07000146,30/06/19,ICT                           ,BYTES SOFTWARE SERVICES LTD             ,145245      ,27-Jun-19,2950.21,0,Computer Hardware Maintenance ,55101               
Borough Council of Kings Lynn and West Norfolk,E07000146,30/06/19,Housing Standards             ,TELEFONICA02UK LTD                      ,144207      ,08-Apr-19,510,0,Tools And Equipment           ,31001               
Borough Council of Kings Lynn and West Norfolk,E07000146,30/06/19,Food Hygiene General          ,PUBLIC HEALTH ENGLAND                   ,141369      ,25-Apr-19,900,0,Shellfish Sampling            ,25413               
Borough Council of Kings Lynn and West Norfolk,E07000146,30/06/19,Kings Lynn Bus Station        ,LONDON & ASSOC. MGMT SERVICES LTD (LAMS),142617      ,20-Jun-19,1875.03,0,Rent                          ,21834               
Borough Council of Kings Lynn and West Norfolk,E07000146,30/06/19,Kings Lynn Bus Station        ,LONDON & ASSOC. MGMT SERVICES LTD (LAMS),142617      ,20-Jun-19,1000,0,Rent                          ,21834               
Borough Council of Kings Lynn and West Norfolk,E07000146,30/06/19,Disabled Facilties Grant      ,GASWISE SERVICES LTD.                   ,100677      ,10-Jun-19,3731.23,0,Works                         ,C1201               
Borough Council of Kings Lynn and West Norfolk,E07000146,30/06/19,Postage Services Kings Court  ,POSTAGE BY PHONE                        ,101299      ,22-Apr-19,5001.04,0,Postages                      ,52512               
Borough Council of Kings Lynn and West Norfolk,E07000146,30/06/19,Community Projects PDS        ,COMMUNITY ACTION NORFOLK                ,145473      ,08-Apr-19,8000,0,Service Level Agreements      ,74499               
Borough Council of Kings Lynn and West Norfolk,E07000146,30/06/19,Improving Attainment          ,AD MELIORA ACADEMY TRUST                ,146977      ,27-Jun-19,891,0,Small Projects                ,77580               
Borough Council of Kings Lynn and West Norfolk,E07000146,30/06/19,Phase 1 - Lynnsport 2         ,ALIVE LEISURE TRUST                     ,143591      ,01-Jul-19,5000,0,External Fees/Consultancy     ,C8146               
Borough Council of Kings Lynn and West Norfolk,E07000146,30/06/19,50127                         ,J MAYCOCK                               ,145002      ,03-Jun-19,3990,0,Qualification Training        ,50127               
Borough Council of Kings Lynn and West Norfolk,E07000146,30/06/19,Training Holding Account      ,J MAYCOCK                               ,145002      ,03-Jun-19,3990,0,Qualification Training        ,50127               
Borough Council of Kings Lynn and West Norfolk,E07000146,30/06/19,NEW MOBILE PHONE APP          ,KLFM LTD                                ,102963      ,08-Apr-19,2600,0,Website traffic marketing     ,48538               
Borough Council of Kings Lynn and West Norfolk,E07000146,30/06/19,NEW MOBILE PHONE APP          ,KLFM LTD                                ,102963      ,09-May-19,2199.6,0,Website traffic marketing     ,48538               
Borough Council of Kings Lynn and West Norfolk,E07000146,30/06/19,Disabled Facilties Grant      ,STANNAH LIFT SERVICES LTD               ,101479      ,18-Apr-19,5378,0,Works                         ,C1201               
Borough Council of Kings Lynn and West Norfolk,E07000146,30/06/19,Disabled Facilties Grant      ,STANNAH LIFT SERVICES LTD               ,101479      ,24-Jun-19,2610,0,Works                         ,C1201               
Borough Council of Kings Lynn and West Norfolk,E07000146,30/06/19,NORA Phase 3                  ,LOVELL PARTNERSHIPS LTD                 ,143432      ,16-May-19,268529.33,0,Works                         ,C8150               
Borough Council of Kings Lynn and West Norfolk,E07000146,30/06/19,Phase 1 -  Marsh Lane         ,LOVELL PARTNERSHIPS LTD                 ,143432      ,17-Jun-19,13612.17,0,Works                         ,C8121               
Borough Council of Kings Lynn and West Norfolk,E07000146,30/06/19,Street Sweeping               ,PEACEFUL PETS LTD                       ,120185      ,22-Apr-19,955,0,Animal Removal                ,22210               
Borough Council of Kings Lynn and West Norfolk,E07000146,30/06/19,Adapt Grant                   ,FREEBRIDGE COMMUNITY HOUSING            ,127987      ,08-Apr-19,1505.92,0,Works                         ,C1202               
Borough Council of Kings Lynn and West Norfolk,E07000146,30/06/19,Dev & Estate Capital Receipts ,CONNECT CONSULTANTS LTD                 ,147390      ,06-May-19,4400,0,Disposal Cost Architect       ,H8101               
Borough Council of Kings Lynn and West Norfolk,E07000146,30/06/19,Mintlyn Crematorium           ,TELESHORE UK LTD T/A GEMINI CCS LTD     ,107802      ,08-Apr-19,520.8,0,Tools And Equipment           ,20830               
Borough Council of Kings Lynn and West Norfolk,E07000146,30/06/19,Homestay & Genesis            ,HOMES GROUP LTD                         ,147570      ,22-Apr-19,58333.33,0,Agency                        ,33021               
Borough Council of Kings Lynn and West Norfolk,E07000146,30/06/19,Homestay & Genesis            ,HOMES GROUP LTD                         ,147570      ,02-May-19,25000,0,Agency                        ,33021               
Borough Council of Kings Lynn and West Norfolk,E07000146,30/06/19,Disabled Facilties Grant      ,LAVISH ESTATES LTD                      ,147475      ,09-May-19,3586.06,0,Works                         ,C1201               
Borough Council of Kings Lynn and West Norfolk,E07000146,30/06/19,Phase 2 -Lynnsport 4 /5 BCKLWN,GATELEYS PLC                            ,147611      ,16-May-19,16798.5,0,External Fees/Consultancy     ,C8144               
Borough Council of Kings Lynn and West Norfolk,E07000146,30/06/19,50127                         ,KSL                                     ,147619      ,11-Jul-19,778.65,0,In-House Training             ,50127               
Borough Council of Kings Lynn and West Norfolk,E07000146,30/06/19,Training Holding Account      ,KSL                                     ,147619      ,11-Jul-19,778.65,0,In-House Training             ,50127               
Borough Council of Kings Lynn and West Norfolk,E07000146,30/06/19,King's Court - DWP Specific   ,AMR ELECTRICAL SERVICES LTD             ,126614      ,08-Apr-19,6847,0,Works                         ,C1523               
Borough Council of Kings Lynn and West Norfolk,E07000146,30/06/19,Resort Trading Operations     ,AMR ELECTRICAL SERVICES LTD             ,126614      ,11-Apr-19,1873,0,General Repairs               ,41401               
Borough Council of Kings Lynn and West Norfolk,E07000146,30/06/19,Resort Seafront               ,AMR ELECTRICAL SERVICES LTD             ,126614      ,06-Jun-19,4073.7,0,General Repairs               ,41209               
Borough Council of Kings Lynn and West Norfolk,E07000146,30/06/19,Disabled Facilties Grant      ,FOSTER PROPERTY MAINTENANCE LTD         ,124851      ,11-Apr-19,12894.19,0,Works                         ,C1201               
Borough Council of Kings Lynn and West Norfolk,E07000146,30/06/19,Precepts Of Parish Councils   ,NORDELPH PARISH CNCL                    ,101139      ,15-Apr-19,6420,0,Parishes                      ,00000               
Borough Council of Kings Lynn and West Norfolk,E07000146,30/06/19,Community Safety              ,TMP (UK) LTD                            ,147854      ,17-Jun-19,884.26,0,Recruitment                   ,74004               
Borough Council of Kings Lynn and West Norfolk,E07000146,30/06/19,Parks & Open Spaces           ,GOLDEN TREE SURGEONS LTD                ,145155      ,16-May-19,1235,0,Tree Surgery                  ,40230               
Borough Council of Kings Lynn and West Norfolk,E07000146,30/06/19,European Elections            ,LEICESTERSHIRE COUNTY COUNCIL           ,142448      ,17-Jun-19,5984,0,Stationery & Office Supplies  ,75506               
Borough Council of Kings Lynn and West Norfolk,E07000146,30/06/19,CCTV Multistorey              ,BALLICOM INTERNATIONAL                  ,147689      ,08-Apr-19,1425,0,Equipment/Materials           ,C1807               
Borough Council of Kings Lynn and West Norfolk,E07000146,30/06/19,50127                         ,SPEAK FIRST LTD                         ,147692      ,04-Jul-19,1475.31,0,In-House Training             ,50127               
Borough Council of Kings Lynn and West Norfolk,E07000146,30/06/19,Training Holding Account      ,SPEAK FIRST LTD                         ,147692      ,04-Jul-19,1475.31,0,In-House Training             ,50127               
Borough Council of Kings Lynn and West Norfolk,E07000146,30/06/19,NEWS Depot                    ,MARATHON SERVICES LIMITED               ,101003      ,22-Apr-19,1424.27,0,Contract Cleaning             ,52444               
Borough Council of Kings Lynn and West Norfolk,E07000146,30/06/19,Telephones                    ,BRITISH TELECOMMUNICATIONS PLC          ,100222      ,24-Jun-19,601.72,0,Telephones Recharged          ,55103               
Borough Council of Kings Lynn and West Norfolk,E07000146,30/06/19,European Elections            ,ANTALIS  LTD.                           ,117917      ,02-May-19,1056,0,Stationery & Office Supplies  ,75506               
Borough Council of Kings Lynn and West Norfolk,E07000146,30/06/19,Care & Repair - Home Impro Agy,SEVEN RESOURCING LTD                    ,145043      ,13-Jun-19,1284.59,0,Agency Staff                  ,31002               
Borough Council of Kings Lynn and West Norfolk,E07000146,30/06/19,Care & Repair - Home Impro Agy,SEVEN RESOURCING LTD                    ,145043      ,20-Jun-19,1249.35,0,Agency Staff                  ,31002               
Borough Council of Kings Lynn and West Norfolk,E07000146,30/06/19,Care & Repair - Home Impro Agy,SEVEN RESOURCING LTD                    ,145043      ,27-Jun-19,950.25,0,Agency Staff                  ,31002               
Borough Council of Kings Lynn and West Norfolk,E07000146,30/06/19,Public Cleansing              ,JOHNSTON SWEEPERS LTD                   ,121881      ,20-May-19,1563.85,0,Sweeper Consumables           ,94101               
Borough Council of Kings Lynn and West Norfolk,E07000146,30/06/19,Adapt Grant                   ,CHAS D ALLFLATT LTD                     ,100315      ,08-Apr-19,985.76,0,Works                         ,C1202               
Borough Council of Kings Lynn and West Norfolk,E07000146,30/06/19,Open Cemeteries               ,CEMETERY DEVLOPMENT SERVICES LTD        ,147791      ,10-Jun-19,1500,0,Small Projects                ,20650               
Borough Council of Kings Lynn and West Norfolk,E07000146,30/06/19,Dev & Estate Capital Receipts ,NORFOLK COUNTY COUNCIL                  ,101142      ,11-Apr-19,650,0,Miscellaneous                 ,H8101               
Borough Council of Kings Lynn and West Norfolk,E07000146,30/06/19,Local Land Charges            ,NORFOLK COUNTY COUNCIL                  ,101142      ,10-Jun-19,5235.3,0,Agency                        ,77001               
Borough Council of Kings Lynn and West Norfolk,E07000146,30/06/19,Local Land Charges            ,NORFOLK COUNTY COUNCIL                  ,101142      ,20-Jun-19,6273.84,0,Agency                        ,77001               
Borough Council of Kings Lynn and West Norfolk,E07000146,30/06/19,Decrim - Other                ,NORFOLK COUNTY COUNCIL                  ,101142      ,20-Jun-19,31714.55,0,Agency                        ,21839               
Borough Council of Kings Lynn and West Norfolk,E07000146,30/06/19,Decrim - Other                ,NORFOLK COUNTY COUNCIL                  ,101142      ,20-Jun-19,18796.21,0,Agency                        ,21839               
Borough Council of Kings Lynn and West Norfolk,E07000146,30/06/19,Conservation & Heritage       ,NORFOLK COUNTY COUNCIL                  ,101142      ,27-Jun-19,14032,0,Countryside Grants            ,62101               
Borough Council of Kings Lynn and West Norfolk,E07000146,30/06/19,Kings Lynn Bid                ,KINGS LYNN BID GROUP                    ,141482      ,01-Jul-19,197093,0,Agency                        ,76007               
Borough Council of Kings Lynn and West Norfolk,E07000146,30/06/19,Domestic Refuse               ,KIER SERVICES ENVIRONMENTAL             ,141535      ,10-Jun-19,2497.59,0,Delivery/Carriage Charge      ,20412               
Borough Council of Kings Lynn and West Norfolk,E07000146,30/06/19,General Properties            ,KIER BUILDING MAINTENANCE               ,147913      ,23-May-19,2000,0,Miscellaneous Income          ,12301               
Borough Council of Kings Lynn and West Norfolk,E07000146,30/06/19,12301                         ,KIER BUILDING MAINTENANCE               ,147913      ,23-May-19,2000,0,Miscellaneous Income          ,12301               
Borough Council of Kings Lynn and West Norfolk,E07000146,30/06/19,Roads / Infrastructure        ,KNIGHTON COUNTRYSIDE MGT LTD            ,147922      ,01-Jul-19,7175.45,0,Works                         ,C8502               
Borough Council of Kings Lynn and West Norfolk,E07000146,30/06/19,Parish/Borough Coun. Elections,ROYAL MAIL GROUP LTD                    ,101369      ,11-Apr-19,29922.02,0,Postages                      ,70503               
Borough Council of Kings Lynn and West Norfolk,E07000146,30/06/19,BCKLWN Control Account        ,ROSSENDALES LTD                         ,101364      ,09-May-19,1290.75,0,VAT Input (VAT Only Invoice)  ,BC999               
Borough Council of Kings Lynn and West Norfolk,E07000146,30/06/19,Mintlyn Crematorium           ,FACULTATIEVE TECHNOLOGIESLTD            ,125759      ,29-Apr-19,3565.3,0,Maintenance Contracts         ,20830               
Borough Council of Kings Lynn and West Norfolk,E07000146,30/06/19,Adapt Grant                   ,CHAS D ALLFLATT LTD                     ,100315      ,09-May-19,3763.9,0,Works                         ,C1202               
Borough Council of Kings Lynn and West Norfolk,E07000146,30/06/19,Disabled Facilties Grant      ,CHAS D ALLFLATT LTD                     ,100315      ,20-Jun-19,623,0,Works                         ,C1201               
Borough Council of Kings Lynn and West Norfolk,E07000146,30/06/19,Disabled Facilties Grant      ,CHAS D ALLFLATT LTD                     ,100315      ,27-Jun-19,1332.35,0,Works                         ,C1201               
Borough Council of Kings Lynn and West Norfolk,E07000146,30/06/19,Parish/Borough Coun. Elections,ELECTION PAYMENTS                       ,ELEC        ,17-Jun-19,5467.84,0,Election Payments             ,70503               
Borough Council of Kings Lynn and West Norfolk,E07000146,30/06/19,CCTV                          ,E AKERS                                 ,100500      ,03-Jun-19,580,0,General Repairs               ,49901               
Borough Council of Kings Lynn and West Norfolk,E07000146,30/06/19,Resort Seafront               ,OWENS DIY LTD                           ,101205      ,02-May-19,610.99,0,General Repairs               ,41209               
Borough Council of Kings Lynn and West Norfolk,E07000146,30/06/19,Postage Services Kings Court  ,ROYAL MAIL GROUP LTD                    ,101369      ,29-Apr-19,1265.24,0,Postages                      ,52512               
Borough Council of Kings Lynn and West Norfolk,E07000146,30/06/19,European Elections            ,ROYAL MAIL GROUP LTD                    ,101369      ,02-May-19,674.17,0,Postages                      ,75506               
Borough Council of Kings Lynn and West Norfolk,E07000146,30/06/19,Cost of Collection - CTax     ,ROYAL MAIL GROUP LTD                    ,101369      ,02-May-19,783.88,0,Postages                      ,76003               
Borough Council of Kings Lynn and West Norfolk,E07000146,30/06/19,Benefit Administration        ,ROYAL MAIL GROUP LTD                    ,101369      ,02-May-19,630.51,0,Postages                      ,32501               
Borough Council of Kings Lynn and West Norfolk,E07000146,30/06/19,Individual Electoral Reg      ,ROYAL MAIL GROUP LTD                    ,101369      ,02-May-19,2000,0,Postages                      ,75503               
Borough Council of Kings Lynn and West Norfolk,E07000146,30/06/19,Cost of Collection - CTax     ,ROYAL MAIL GROUP LTD                    ,101369      ,16-May-19,2948.92,0,Postages                      ,76003               
Borough Council of Kings Lynn and West Norfolk,E07000146,30/06/19,European Elections            ,ROYAL MAIL GROUP LTD                    ,101369      ,06-Jun-19,27461.09,0,Postages                      ,75506               
Borough Council of Kings Lynn and West Norfolk,E07000146,30/06/19,European Elections            ,ROYAL MAIL GROUP LTD                    ,101369      ,13-Jun-19,1026.79,0,Postages                      ,75506               
Borough Council of Kings Lynn and West Norfolk,E07000146,30/06/19,Decriminalisation             ,METRIC GROUP LTD                        ,101041      ,15-Apr-19,1760,0,Equipment/Materials           ,C0906               
Borough Council of Kings Lynn and West Norfolk,E07000146,30/06/19,Decriminalisation             ,METRIC GROUP LTD                        ,101041      ,15-Apr-19,1650,0,Equipment/Materials           ,C0906               
Borough Council of Kings Lynn and West Norfolk,E07000146,30/06/19,Decriminalisation             ,METRIC GROUP LTD                        ,101041      ,15-Apr-19,2750,0,Equipment/Materials           ,C0906               
Borough Council of Kings Lynn and West Norfolk,E07000146,30/06/19,Decriminalisation             ,METRIC GROUP LTD                        ,101041      ,15-Apr-19,25850,0,Equipment/Materials           ,C0906               
Borough Council of Kings Lynn and West Norfolk,E07000146,30/06/19,Decriminalisation             ,METRIC GROUP LTD                        ,101041      ,15-Apr-19,1045,0,Equipment/Materials           ,C0906               
Borough Council of Kings Lynn and West Norfolk,E07000146,30/06/19,Decriminalisation             ,METRIC GROUP LTD                        ,101041      ,15-Apr-19,1045,0,Equipment/Materials           ,C0906               
Borough Council of Kings Lynn and West Norfolk,E07000146,30/06/19,Parking Operations - Borough  ,METRIC GROUP LTD                        ,101041      ,04-Jul-19,1241.31,0,Cost of Crime                 ,21840               
Borough Council of Kings Lynn and West Norfolk,E07000146,30/06/19,50127                         ,GREEN DUCK LTD                          ,140200      ,18-Apr-19,825,0,In-House Training             ,50127               
Borough Council of Kings Lynn and West Norfolk,E07000146,30/06/19,Training Holding Account      ,GREEN DUCK LTD                          ,140200      ,18-Apr-19,825,0,In-House Training             ,50127               
Borough Council of Kings Lynn and West Norfolk,E07000146,30/06/19,50127                         ,GREEN DUCK LTD                          ,140200      ,30-May-19,1650,0,In-House Training             ,50127               
Borough Council of Kings Lynn and West Norfolk,E07000146,30/06/19,Training Holding Account      ,GREEN DUCK LTD                          ,140200      ,30-May-19,1650,0,In-House Training             ,50127               
Borough Council of Kings Lynn and West Norfolk,E07000146,30/06/19,Handyperson Scheme Kings Lynn ,A SMITH CONTRACTORS                     ,115351      ,08-Apr-19,530,0,Contractor Payments           ,31010               
Borough Council of Kings Lynn and West Norfolk,E07000146,30/06/19,Adapt Grant                   ,A SMITH CONTRACTORS                     ,115351      ,06-Jun-19,975,0,Works                         ,C1202               
Borough Council of Kings Lynn and West Norfolk,E07000146,30/06/19,KL Arts Centre                ,CORONA ENERGY RETAIL 4 LTD              ,131838      ,20-Jun-19,689.06,0,Gas                           ,46101               
Borough Council of Kings Lynn and West Norfolk,E07000146,30/06/19,Lynnsport General Account     ,CORONA ENERGY RETAIL 4 LTD              ,131838      ,20-Jun-19,1189.88,0,Gas                           ,95601               
Borough Council of Kings Lynn and West Norfolk,E07000146,30/06/19,Kings Court Kings Lynn        ,CORONA ENERGY RETAIL 4 LTD              ,131838      ,20-Jun-19,678.61,0,Gas                           ,52322               
Borough Council of Kings Lynn and West Norfolk,E07000146,30/06/19,Corporate Communications      ,KL PUBLICATIONS LTD                     ,137190      ,13-Jun-19,576,0,Promotional Activities        ,73501               
Borough Council of Kings Lynn and West Norfolk,E07000146,30/06/19,Domestic Refuse               ,NORSE ENVIRONMENTAL WASTE SVCS          ,102093      ,23-May-19,14427.56,0,Waste Processing Cost         ,20412               
Borough Council of Kings Lynn and West Norfolk,E07000146,30/06/19,Dry Box Collection Scheme     ,NORSE ENVIRONMENTAL WASTE SVCS          ,102093      ,27-Jun-19,43012.28,0,Waste Processing Cost         ,28125               
Borough Council of Kings Lynn and West Norfolk,E07000146,30/06/19,Domestic Refuse               ,NORSE ENVIRONMENTAL WASTE SVCS          ,102093      ,24-Jun-19,35638.39,0,Waste Processing Cost         ,20412               
Borough Council of Kings Lynn and West Norfolk,E07000146,30/06/19,Folk Festival from 2018       ,YOUR LOCAL PAPER LTD                    ,141051      ,27-May-19,521.76,0,Advertising                   ,21878               
Borough Council of Kings Lynn and West Norfolk,E07000146,30/06/19,Classic Car Show from 2018    ,YOUR LOCAL PAPER LTD                    ,141051      ,27-May-19,521.76,0,Advertising                   ,21880               
Borough Council of Kings Lynn and West Norfolk,E07000146,30/06/19,Fairies & Legends from 2018   ,YOUR LOCAL PAPER LTD                    ,141051      ,27-May-19,521.76,0,Advertising                   ,21879               
Borough Council of Kings Lynn and West Norfolk,E07000146,30/06/19,Mods and Rockers from 2018    ,YOUR LOCAL PAPER LTD                    ,141051      ,27-May-19,521.76,0,Advertising                   ,21877               
Borough Council of Kings Lynn and West Norfolk,E07000146,30/06/19,Forties Event from 2018       ,YOUR LOCAL PAPER LTD                    ,141051      ,27-May-19,521.76,0,Advertising                   ,21876               
Borough Council of Kings Lynn and West Norfolk,E07000146,30/06/19,Mini Meet from 2018           ,YOUR LOCAL PAPER LTD                    ,141051      ,27-May-19,521.76,0,Advertising                   ,21883               
Borough Council of Kings Lynn and West Norfolk,E07000146,30/06/19,ICT                           ,ADEPT TECHNOLOGY GROUP PLC              ,135085      ,29-Apr-19,3954.48,0,Telephones Recharged          ,55101               
Borough Council of Kings Lynn and West Norfolk,E07000146,30/06/19,ICT                           ,ADEPT TECHNOLOGY GROUP PLC              ,135085      ,29-Apr-19,671.6,0,Telephones Recharged          ,55101               
Borough Council of Kings Lynn and West Norfolk,E07000146,30/06/19,ICT                           ,ADEPT TECHNOLOGY GROUP PLC              ,135085      ,08-Jul-19,556.06,0,Telephones Recharged          ,55101               
Borough Council of Kings Lynn and West Norfolk,E07000146,30/06/19,ICT                           ,ADEPT TECHNOLOGY GROUP PLC              ,135085      ,08-Jul-19,4183.57,0,Telephones Recharged          ,55101               
Borough Council of Kings Lynn and West Norfolk,E07000146,30/06/19,Public Cleansing              ,GROUNDSMAN TOOLS & SUPPLIES LLP         ,137687      ,08-Apr-19,1348.5,0,Tools And Equipment           ,94101               
Borough Council of Kings Lynn and West Norfolk,E07000146,30/06/19,Public Cleansing              ,GROUNDSMAN TOOLS & SUPPLIES LLP         ,137687      ,08-Apr-19,1348.5,0,Tools And Equipment           ,94101               
Borough Council of Kings Lynn and West Norfolk,E07000146,30/06/19,Cashless Park JF(N Nfk off St),NORTH NORFOLK DISTRICT COUNCIL          ,101156      ,13-Jun-19,7995.6,0,Agency                        ,21858               
Borough Council of Kings Lynn and West Norfolk,E07000146,30/06/19,Head of Legal Services        ,NORTH NORFOLK DISTRICT COUNCIL          ,101156      ,01-Jul-19,585,0,Commissioning Ext. Legal fees ,50203               
Borough Council of Kings Lynn and West Norfolk,E07000146,30/06/19,Custom Build - Housing        ,THREE DRAGONS (LC) LTD                  ,147857      ,18-Apr-19,4000,0,Special Events                ,34510               
Borough Council of Kings Lynn and West Norfolk,E07000146,30/06/19,Townscape Heritage Initiative ,STONE FIELD ESTATES LTD                 ,147876      ,22-Apr-19,10000,0,THI Small Grants              ,C8106               
Borough Council of Kings Lynn and West Norfolk,E07000146,30/06/19,Central & Community Services  ,BUPA                                    ,100246      ,16-May-19,1223.58,0,BUPA                          ,71604               
Borough Council of Kings Lynn and West Norfolk,E07000146,30/06/19,Commercial Services           ,BUPA                                    ,100246      ,16-May-19,1868.03,0,BUPA                          ,71605               
Borough Council of Kings Lynn and West Norfolk,E07000146,30/06/19,Printing&Copying-Floor Copiers,CAPITA BUSINESS SERVICES LTD            ,100288      ,02-May-19,2337.95,0,Other Machine Lease           ,52506               
Borough Council of Kings Lynn and West Norfolk,E07000146,30/06/19,Precepts Of Parish Councils   ,DOWNHAM WEST PARISH COUNCIL             ,100486      ,15-Apr-19,5749,0,Parishes                      ,00000               
Borough Council of Kings Lynn and West Norfolk,E07000146,30/06/19,Cost of Collection - CTax     ,EXPERIAN LTD                            ,100601      ,17-Jun-19,4838,0,Tracing Fees                  ,76003               
Borough Council of Kings Lynn and West Norfolk,E07000146,30/06/19,Community Infrastructure Levy ,HEACHAM PARISH COUNCIL                  ,100759      ,18-Apr-19,3970.8,0,Payment to Parishes           ,62704               
Borough Council of Kings Lynn and West Norfolk,E07000146,30/06/19,Precepts Of Parish Councils   ,GREAT MASSINGHAM PARISH CNCL            ,100712      ,15-Apr-19,15005,0,Parishes                      ,00000               
Borough Council of Kings Lynn and West Norfolk,E07000146,30/06/19,Resort Trading Operations     ,LE STRANGE ESTATE                       ,100920      ,29-Apr-19,3250,0,Rent                          ,41401               
Borough Council of Kings Lynn and West Norfolk,E07000146,30/06/19,Precepts Of Parish Councils   ,MANEA & WELNEY  DIST DRAINAGE COMMRS    ,101000      ,29-Apr-19,9759.5,0,Drainage Boards               ,00000               
Borough Council of Kings Lynn and West Norfolk,E07000146,30/06/19,Precepts Of Parish Councils   ,STOKE FERRY PARISH COUNCIL              ,101485      ,15-Apr-19,15218.21,0,Parishes                      ,00000               
Borough Council of Kings Lynn and West Norfolk,E07000146,30/06/19,Precepts Of Parish Councils   ,WORMEGAY PARISH COUNCIL                 ,101671      ,15-Apr-19,6404,0,Parishes                      ,00000               
Borough Council of Kings Lynn and West Norfolk,E07000146,30/06/19,Precepts Of Parish Councils   ,UPWELL PARISH COUNCIL                   ,101588      ,15-Apr-19,37310,0,Parishes                      ,00000               
Borough Council of Kings Lynn and West Norfolk,E07000146,30/06/19,Community Infrastructure Levy ,WALPOLE CROSS KEYS PARISH CNCL          ,101608      ,18-Apr-19,8645,0,Payment to Parishes           ,62704               
Borough Council of Kings Lynn and West Norfolk,E07000146,30/06/19,Adapt Grant                   ,ELY BUILDING & MAINTENANCE SERVICES LTD ,106268      ,27-May-19,1368.27,0,Works                         ,C1202               
Borough Council of Kings Lynn and West Norfolk,E07000146,30/06/19,Day visitor awareness         ,TAKE ONE MEDIA LTD                      ,121327      ,30-May-19,2633,0,Distribution                  ,48525               
Borough Council of Kings Lynn and West Norfolk,E07000146,30/06/19,Civic Functions               ,ST MARGARET'S PCC                       ,128286      ,03-Jun-19,1100,0,St Marg. Bellringers/Flowers  ,71004               
Borough Council of Kings Lynn and West Norfolk,E07000146,30/06/19,Careline                      ,SUPRA UK LTD                            ,134960      ,29-Apr-19,1698,0,Items Purchased For Resale    ,37001               
Borough Council of Kings Lynn and West Norfolk,E07000146,30/06/19,Careline                      ,SUPRA UK LTD                            ,134960      ,06-May-19,1698,0,Items Purchased For Resale    ,37001               
Borough Council of Kings Lynn and West Norfolk,E07000146,30/06/19,Adapt Grant                   ,CLIVE CLARK PLUMBING & HEATING          ,133166      ,20-Jun-19,5001,0,Works                         ,C1202               
Borough Council of Kings Lynn and West Norfolk,E07000146,30/06/19,GM Northern Area              ,RIX PETROLEUM (EAST ANGLIA) LTD         ,135739      ,23-May-19,1460.75,0,Derv.                         ,92101               
Borough Council of Kings Lynn and West Norfolk,E07000146,30/06/19,ICT                           ,ACCESS INTELLIGENCE MEDIA & COMM. LTD   ,136524      ,11-Apr-19,3700,0,Computer Software Maintenance ,55101               
Borough Council of Kings Lynn and West Norfolk,E07000146,30/06/19,Conservation & Heritage       ,EASTERN IFCA                            ,138100      ,17-Jun-19,2700,0,Countryside Grants            ,62101               
Borough Council of Kings Lynn and West Norfolk,E07000146,30/06/19,50302                         ,HAYS SPECIALIST RECRUITMENT             ,137507      ,11-Apr-19,525,0,Agency Staff                  ,50302               
Borough Council of Kings Lynn and West Norfolk,E07000146,30/06/19,Financial Services            ,HAYS SPECIALIST RECRUITMENT             ,137507      ,11-Apr-19,525,0,Agency Staff                  ,50302               
Borough Council of Kings Lynn and West Norfolk,E07000146,30/06/19,Refuse & Recyc Mgmt           ,UK CONTAINER MAINTENANCE LTD            ,137174      ,29-Apr-19,525,0,Miscellaneous                 ,20410               
Borough Council of Kings Lynn and West Norfolk,E07000146,30/06/19,Refuse & Recyc Mgmt           ,UK CONTAINER MAINTENANCE LTD            ,137174      ,29-Apr-19,1681.04,0,Miscellaneous                 ,20410               
Borough Council of Kings Lynn and West Norfolk,E07000146,30/06/19,H&M New Store                 ,VANCOUVER GP LTD                        ,142742      ,02-May-19,236310.39,0,External Fees/Consultancy     ,C8180               
Borough Council of Kings Lynn and West Norfolk,E07000146,30/06/19,Precepts Of Parish Councils   ,KINGS LYNN INTERNAL DRAINAGE BOARD      ,124992      ,29-Apr-19,923624.5,0,Drainage Boards               ,00000               
Borough Council of Kings Lynn and West Norfolk,E07000146,30/06/19,Phase 1-Lynnsport 3-BCKLWN    ,KINGS LYNN INTERNAL DRAINAGE BOARD      ,124992      ,27-May-19,94616.8,0,Works                         ,C8143               
Borough Council of Kings Lynn and West Norfolk,E07000146,30/06/19,50127                         ,SHELTER TRAINING                        ,141102      ,13-May-19,1079.1,0,In-House Training             ,50127               
Borough Council of Kings Lynn and West Norfolk,E07000146,30/06/19,Training Holding Account      ,SHELTER TRAINING                        ,141102      ,13-May-19,1079.1,0,In-House Training             ,50127               
Borough Council of Kings Lynn and West Norfolk,E07000146,30/06/19,Printing & Copying - Printroom,PHOENIX SOFTWARE LTD                    ,101267      ,29-Apr-19,1494,0,Tools And Equipment           ,52504               
Borough Council of Kings Lynn and West Norfolk,E07000146,30/06/19,Precepts Of Parish Councils   ,THORNHAM PARISH COUNCIL                 ,101546      ,15-Apr-19,30000,0,Parishes                      ,00000               
Borough Council of Kings Lynn and West Norfolk,E07000146,30/06/19,Disabled Facilties Grant      ,ANGLIA STAIRLIFTS LTD                   ,139700      ,10-Apr-19,7550,0,Works                         ,C1201               
Borough Council of Kings Lynn and West Norfolk,E07000146,30/06/19,ICT                           ,MIDLAND COMPUTER SERVICES LTD           ,139465      ,11-Apr-19,3816,0,Computer Hardware Maintenance ,55101               
Borough Council of Kings Lynn and West Norfolk,E07000146,30/06/19,ICT                           ,MIDLAND COMPUTER SERVICES LTD           ,139465      ,29-Apr-19,4563.4,0,Computer Hardware Maintenance ,55101               
Borough Council of Kings Lynn and West Norfolk,E07000146,30/06/19,Subscriptions                 ,LOCAL GOVERNMENT ASSOCIATION            ,101774      ,09-May-19,10450,0,Subscriptions                 ,72001               
Borough Council of Kings Lynn and West Norfolk,E07000146,30/06/19,Printing & Copying - Printroom,COLLEGE OF WEST ANGLIA                  ,100361      ,02-May-19,2138.48,0,Maint Plant & Equip           ,52504               
Borough Council of Kings Lynn and West Norfolk,E07000146,30/06/19,Resort Seafront               ,STREET MASTER (SOUTH WALES) LTD         ,120261      ,27-May-19,531,0,Memorial Seats (Resale)       ,41209               
Borough Council of Kings Lynn and West Norfolk,E07000146,30/06/19,Dev & Estate Capital Receipts ,SCOTTISH POWER GROUP                    ,108798      ,20-Jun-19,736.65,0,Disposal Cost Other           ,H8101               
Borough Council of Kings Lynn and West Norfolk,E07000146,30/06/19,Precepts Of Parish Councils   ,WIMBOTSHAM PARISH COUNCIL               ,101657      ,15-Apr-19,20288.1,0,Parishes                      ,00000               
Borough Council of Kings Lynn and West Norfolk,E07000146,30/06/19,Hunstanton Parks for People   ,FITZPATRICK WOOLMER DESIGN  PUBLISH. LTD,127183      ,13-Jun-19,5304.4,0,External Fees/Consultancy     ,C8004               
Borough Council of Kings Lynn and West Norfolk,E07000146,30/06/19,Precepts Of Parish Councils   ,METHWOLD PARISH COUNCIL                 ,101040      ,15-Apr-19,53347,0,Parishes                      ,00000               
Borough Council of Kings Lynn and West Norfolk,E07000146,30/06/19,OPE- Hunstanton Housing Sites ,CHAPLIN FARRANT LIMITED                 ,123551      ,15-Apr-19,911.25,0,External Fees/Consultancy     ,C8157               
Borough Council of Kings Lynn and West Norfolk,E07000146,30/06/19,50303                         ,TAMESIDE MBC                            ,112158      ,08-Apr-19,1500,0,Subscriptions                 ,50303               
Borough Council of Kings Lynn and West Norfolk,E07000146,30/06/19,Internal Audit                ,TAMESIDE MBC                            ,112158      ,08-Apr-19,1500,0,Subscriptions                 ,50303               
Borough Council of Kings Lynn and West Norfolk,E07000146,30/06/19,Precepts Of Parish Councils   ,HILLINGTON PARISH COUNCIL               ,100778      ,15-Apr-19,4814,0,Parishes                      ,00000               
Borough Council of Kings Lynn and West Norfolk,E07000146,30/06/19,Precepts Of Parish Councils   ,BURNHAM OVERY PARISH COUNCIL            ,100250      ,15-Apr-19,7243,0,Parishes                      ,00000               
Borough Council of Kings Lynn and West Norfolk,E07000146,30/06/19,Precepts Of Parish Councils   ,CONGHAM PARISH COUNCIL                  ,100382      ,15-Apr-19,6023,0,Parishes                      ,00000               
Borough Council of Kings Lynn and West Norfolk,E07000146,30/06/19,Precepts Of Parish Councils   ,WEST ACRE PARISH COUNCIL                ,101634      ,15-Apr-19,750,0,Parishes                      ,00000               
Borough Council of Kings Lynn and West Norfolk,E07000146,30/06/19,Day visitor awareness         ,APL MEDIA LTD                           ,144256      ,22-Apr-19,650,0,Advertising                   ,48525               
Borough Council of Kings Lynn and West Norfolk,E07000146,30/06/19,Disabled Facilties Grant      ,RICHARD MASHAM BUILDING SERVICES        ,139415      ,19-Jun-19,6490,0,Works                         ,C1201               
Borough Council of Kings Lynn and West Norfolk,E07000146,30/06/19,Disabled Facilties Grant      ,RICHARD MASHAM BUILDING SERVICES        ,139415      ,19-Jun-19,23926,0,Works                         ,C1201               
Borough Council of Kings Lynn and West Norfolk,E07000146,30/06/19,Office 365                    ,BYTES SOFTWARE SERVICES LTD             ,145245      ,01-Jul-19,850,0,Computer Equip (Hardware)     ,C9042               
Borough Council of Kings Lynn and West Norfolk,E07000146,30/06/19,Community Projects CS         ,SHELTER                                 ,105656      ,10-Jun-19,8911,0,Service Level Agreements      ,74500               
Borough Council of Kings Lynn and West Norfolk,E07000146,30/06/19,Hunstanton Parks HLF          ,CT DUNBAR-BRUNTON                       ,145538      ,13-May-19,1825,0,Materials                     ,41213               
Borough Council of Kings Lynn and West Norfolk,E07000146,30/06/19,Mintlyn Crematorium           ,SWITCHSHOP LTD                          ,124299      ,08-Apr-19,501,0,Planned Maintenance           ,20830               
Borough Council of Kings Lynn and West Norfolk,E07000146,30/06/19,Parish/Borough Coun. Elections,SWITCHSHOP LTD                          ,124299      ,20-May-19,935,0,Hire Of Halls                 ,70503               
Borough Council of Kings Lynn and West Norfolk,E07000146,30/06/19,Revs & Bens System Replacement,CIVICA  UK LTD                          ,128548      ,15-Apr-19,29000,0,Computer Equip (Hardware)     ,C9050               
Borough Council of Kings Lynn and West Norfolk,E07000146,30/06/19,Welfare Reform Funding        ,CIVICA  UK LTD                          ,128548      ,10-Jun-19,8890.35,0,Professional Fees             ,32508               
Borough Council of Kings Lynn and West Norfolk,E07000146,30/06/19,NORA Phase 3                  ,WSP UK LTD                              ,146574      ,09-May-19,2700,0,External Fees/Consultancy     ,C8150               
Borough Council of Kings Lynn and West Norfolk,E07000146,30/06/19,Nora Phase 4 - BCKLWN Costs   ,WSP UK LTD                              ,146574      ,17-Jun-19,4100,0,External Fees/Consultancy     ,C8100               
Borough Council of Kings Lynn and West Norfolk,E07000146,30/06/19,Adapt Grant                   ,FUTUREHEAT SERVICES LTD                 ,144403      ,27-May-19,4155.18,0,Works                         ,C1202               
Borough Council of Kings Lynn and West Norfolk,E07000146,30/06/19,Adapt Grant                   ,FUTUREHEAT SERVICES LTD                 ,144403      ,13-Jun-19,6230.38,0,Works                         ,C1202               
Borough Council of Kings Lynn and West Norfolk,E07000146,30/06/19,Disabled Facilties Grant      ,FUTUREHEAT SERVICES LTD                 ,144403      ,27-Jun-19,4671.26,0,Works                         ,C1201               
Borough Council of Kings Lynn and West Norfolk,E07000146,30/06/19,Vehicle Recharge On Account   ,WORLDLINE IT SERVICESUK LTD RE FUELGENIE,135817      ,20-Jun-19,11494.3,0,Petrol                        ,M0101               
Borough Council of Kings Lynn and West Norfolk,E07000146,30/06/19,BCKLWN Control Account        ,NEWLYN PLC                              ,143655      ,15-Apr-19,1407.89,0,VAT Input (VAT Only Invoice)  ,BC999               
Borough Council of Kings Lynn and West Norfolk,E07000146,30/06/19,BCKLWN Control Account        ,NEWLYN PLC                              ,143655      ,10-Jun-19,3133.64,0,VAT Input (VAT Only Invoice)  ,BC999               
Borough Council of Kings Lynn and West Norfolk,E07000146,30/06/19,Depot Infestation Works       ,PENISTON LTD                            ,128609      ,16-May-19,2032.49,0,Rechargeable Works            ,Y1023               
Borough Council of Kings Lynn and West Norfolk,E07000146,30/06/19,Explorer Trails Project       ,NORFOLKBROADS.COM LTD                   ,146844      ,13-May-19,4888.75,0,Website traffic marketing     ,48539               
Borough Council of Kings Lynn and West Norfolk,E07000146,30/06/19,Public Health- BJF Outreach   ,BENJAMIN FOUNDATION                     ,146873      ,18-Jul-19,2500,0,Homelessness Prevention Fund  ,33014               
Borough Council of Kings Lynn and West Norfolk,E07000146,30/06/19,Corporate Project Manager     ,ALIVE LEISURE TRUST                     ,143591      ,02-May-19,560,0,Professional Fees             ,71608               
Borough Council of Kings Lynn and West Norfolk,E07000146,30/06/19,Parish/Borough Coun. Elections,ALIVE LEISURE TRUST                     ,143591      ,27-Jun-19,2185,0,Hire Of Halls                 ,70503               
Borough Council of Kings Lynn and West Norfolk,E07000146,30/06/19,GM Central Area               ,THURLOW NUNN STANDEN LTD                ,101547      ,25-Apr-19,3861.56,0,Materials                     ,92102               
Borough Council of Kings Lynn and West Norfolk,E07000146,30/06/19,GM Central Area               ,THURLOW NUNN STANDEN LTD                ,101547      ,13-May-19,868.63,0,Materials                     ,92102               
Borough Council of Kings Lynn and West Norfolk,E07000146,30/06/19,GM Northern Area              ,THURLOW NUNN STANDEN LTD                ,101547      ,27-May-19,512.26,0,Materials                     ,92101               
Borough Council of Kings Lynn and West Norfolk,E07000146,30/06/19,Disabled Facilties Grant      ,T M BROWNE LTD                          ,131470      ,08-Apr-19,7730.38,0,Works                         ,C1201               
Borough Council of Kings Lynn and West Norfolk,E07000146,30/06/19,Disabled Facilties Grant      ,T M BROWNE LTD                          ,131470      ,11-Apr-19,10000,0,Works                         ,C1201               
Borough Council of Kings Lynn and West Norfolk,E07000146,30/06/19,Disabled Facilties Grant      ,T M BROWNE LTD                          ,131470      ,03-Jun-19,4203.16,0,Works                         ,C1201               
Borough Council of Kings Lynn and West Norfolk,E07000146,30/06/19,Adapt Grant                   ,T M BROWNE LTD                          ,131470      ,27-Jun-19,1069.18,0,Works                         ,C1202               
Borough Council of Kings Lynn and West Norfolk,E07000146,30/06/19,NORA Phase 3                  ,G C BAXTER & ASSOCIATES LTD             ,105203      ,17-Jun-19,625.12,0,External Fees/Consultancy     ,C8150               
Borough Council of Kings Lynn and West Norfolk,E07000146,30/06/19,Disabled Facilties Grant      ,STANNAH LIFT SERVICES LTD               ,101479      ,03-Jun-19,7278,0,Works                         ,C1201               
Borough Council of Kings Lynn and West Norfolk,E07000146,30/06/19,Adapt Grant                   ,STANNAH LIFT SERVICES LTD               ,101479      ,13-Jun-19,3036,0,Works                         ,C1202               
Borough Council of Kings Lynn and West Norfolk,E07000146,30/06/19,Disabled Facilties Grant      ,STANNAH LIFT SERVICES LTD               ,101479      ,27-Jun-19,5104,0,Works                         ,C1201               
Borough Council of Kings Lynn and West Norfolk,E07000146,30/06/19,Phase 3-Lynnsport 1-Contractor,LOVELL PARTNERSHIPS LTD                 ,143432      ,11-Apr-19,5546.29,0,Works                         ,C8125               
Borough Council of Kings Lynn and West Norfolk,E07000146,30/06/19,Phase 1-Lynnsport 3-Contractor,LOVELL PARTNERSHIPS LTD                 ,143432      ,16-May-19,443498.9,0,Works                         ,C8123               
Borough Council of Kings Lynn and West Norfolk,E07000146,30/06/19,Street Sweeping               ,PEACEFUL PETS LTD                       ,120185      ,23-May-19,660,0,Animal Removal                ,22210               
Borough Council of Kings Lynn and West Norfolk,E07000146,30/06/19,ICT                           ,KINGSFIELD COMPUTER PRODUCTS LTD        ,128426      ,18-Apr-19,4997,0,Computer Hardware Maintenance ,55101               
Borough Council of Kings Lynn and West Norfolk,E07000146,30/06/19,ICT                           ,AVANITE LIMITED                         ,144664      ,06-May-19,2304,0,Computer Hardware Maintenance ,55101               
Borough Council of Kings Lynn and West Norfolk,E07000146,30/06/19,ICT                           ,AVANITE LIMITED                         ,144664      ,03-Jun-19,500,0,Computer Hardware Maintenance ,55101               
Borough Council of Kings Lynn and West Norfolk,E07000146,30/06/19,Extra planning Income - 20%   ,JEREMY BENN ASSOCIATES LTD              ,147272      ,01-Jul-19,1146,0,In-House Training             ,60801               
Borough Council of Kings Lynn and West Norfolk,E07000146,30/06/19,Heacham Industrial Est        ,CHURCHES FIRE SECURITY LTD              ,147299      ,20-Jun-19,917.3,0,General Repairs               ,11208               
Borough Council of Kings Lynn and West Norfolk,E07000146,30/06/19,Mintlyn Crematorium           ,TELESHORE UK LTD T/A GEMINI CCS LTD     ,107802      ,27-Jun-19,558,0,Tools And Equipment           ,20830               
Borough Council of Kings Lynn and West Norfolk,E07000146,30/06/19,Explorer Trails Project       ,HARRIER COUNTRY SIGNS                   ,147260      ,27-Jun-19,3400,0,Signs                         ,48539               
Borough Council of Kings Lynn and West Norfolk,E07000146,30/06/19,Flexi homeless Support Grant  ,BROADLAND HOUSING ASSOCIATION           ,147540      ,22-Apr-19,3000,0,Contributions                 ,33017               
Borough Council of Kings Lynn and West Norfolk,E07000146,30/06/19,Housing Options Programme     ,KINGS LYNN WINTER NIGHT SHELTER         ,147561      ,11-Apr-19,10000,0,Contributions                 ,33004               
Borough Council of Kings Lynn and West Norfolk,E07000146,30/06/19,Leisure Management Costs      ,LOOMIS UK LTD                           ,140581      ,09-May-19,559.5,0,Security Services Charge      ,42299               
Borough Council of Kings Lynn and West Norfolk,E07000146,30/06/19,Parking Operations - Borough  ,LOOMIS UK LTD                           ,140581      ,09-May-19,996.83,0,Security Services Charge      ,21840               
Borough Council of Kings Lynn and West Norfolk,E07000146,30/06/19,50127                         ,KSL                                     ,147619      ,09-May-19,1123.65,0,In-House Training             ,50127               
Borough Council of Kings Lynn and West Norfolk,E07000146,30/06/19,Training Holding Account      ,KSL                                     ,147619      ,09-May-19,1123.65,0,In-House Training             ,50127               
Borough Council of Kings Lynn and West Norfolk,E07000146,30/06/19,PC Improvements               ,DELL CORPORATION LTD                    ,100453      ,11-Apr-19,1620.39,0,Computer Equip (Hardware)     ,C9043               
Borough Council of Kings Lynn and West Norfolk,E07000146,30/06/19,PC Improvements               ,DELL CORPORATION LTD                    ,100453      ,01-Jul-19,533.67,0,Computer Equip (Hardware)     ,C9043               
Borough Council of Kings Lynn and West Norfolk,E07000146,30/06/19,ICT                           ,CLARANET LTD                            ,119601      ,08-Apr-19,1203.25,0,Communications                ,55101               
Borough Council of Kings Lynn and West Norfolk,E07000146,30/06/19,Replacement Financial Ledger  ,UNIT 4 BUSINESS SOFTWARE LTD            ,147829      ,02-May-19,945,0,Computer Equip (Software)     ,C9058               
Borough Council of Kings Lynn and West Norfolk,E07000146,30/06/19,Replacement Financial Ledger  ,UNIT 4 BUSINESS SOFTWARE LTD            ,147829      ,13-Jun-19,504,0,Computer Equip (Software)     ,C9058               
Borough Council of Kings Lynn and West Norfolk,E07000146,30/06/19,Disabled Facilties Grant      ,EASTERN FRAMES UK LTD                   ,147851      ,29-Apr-19,1884.6,0,Works                         ,C1201               
Borough Council of Kings Lynn and West Norfolk,E07000146,30/06/19,Refuse & Recyc Mgmt           ,MIW OFFICE SOLUTIONS LTD                ,147853      ,22-Apr-19,6735,0,Miscellaneous                 ,20410               
Borough Council of Kings Lynn and West Norfolk,E07000146,30/06/19,Air Quality                   ,TMP (UK) LTD                            ,147854      ,27-Jun-19,1511.08,0,Recruitment                   ,25211               
Borough Council of Kings Lynn and West Norfolk,E07000146,30/06/19,CCTV                          ,OPENVIEW SECURITY SOLUTIONS LTD         ,145424      ,25-Apr-19,4625.1,0,General Repairs               ,49901               
Borough Council of Kings Lynn and West Norfolk,E07000146,30/06/19,CCTV Breckland                ,OPENVIEW SECURITY SOLUTIONS LTD         ,145424      ,25-Apr-19,1541.7,0,Maint Plant & Equip           ,49899               
Borough Council of Kings Lynn and West Norfolk,E07000146,30/06/19,CCTV Crem                     ,OPENVIEW SECURITY SOLUTIONS LTD         ,145424      ,25-Apr-19,4625.1,0,Works                         ,C1809               
Borough Council of Kings Lynn and West Norfolk,E07000146,30/06/19,Network Hardware holding Code ,FLOW COMMUNICATIONS UK LTD              ,145444      ,13-May-19,1206.34,0,Tools And Equipment           ,49902               
Borough Council of Kings Lynn and West Norfolk,E07000146,30/06/19,CCTV Depot                    ,FLOW COMMUNICATIONS UK LTD              ,145444      ,13-May-19,1206.34,0,Works                         ,C1808               
Borough Council of Kings Lynn and West Norfolk,E07000146,30/06/19,Network Hardware holding Code ,FLOW COMMUNICATIONS UK LTD              ,145444      ,13-May-19,551.61,0,Tools And Equipment           ,49902               
Borough Council of Kings Lynn and West Norfolk,E07000146,30/06/19,Network Hardware holding Code ,FLOW COMMUNICATIONS UK LTD              ,145444      ,13-May-19,1206.34,0,Tools And Equipment           ,49902               
Borough Council of Kings Lynn and West Norfolk,E07000146,30/06/19,CCTV                          ,FLOW COMMUNICATIONS UK LTD              ,145444      ,17-Jun-19,1220.38,0,General Repairs               ,49901               
Borough Council of Kings Lynn and West Norfolk,E07000146,30/06/19,CCTV                          ,FLOW COMMUNICATIONS UK LTD              ,145444      ,17-Jun-19,1116.04,0,General Repairs               ,49901               
Borough Council of Kings Lynn and West Norfolk,E07000146,30/06/19,Network Hardware holding Code ,FLOW COMMUNICATIONS UK LTD              ,145444      ,27-Jun-19,2483.84,0,Tools And Equipment           ,49902               
Borough Council of Kings Lynn and West Norfolk,E07000146,30/06/19,Parks & Open Spaces           ,GOLDEN TREE SURGEONS LTD                ,145155      ,11-Apr-19,3740,0,Tree Surgery                  ,40230               
Borough Council of Kings Lynn and West Norfolk,E07000146,30/06/19,Phase 1-Lynnsport 3-BCKLWN    ,GOLDEN TREE SURGEONS LTD                ,145155      ,16-May-19,1250,0,Works                         ,C8143               
Borough Council of Kings Lynn and West Norfolk,E07000146,30/06/19,The Walks                     ,GOLDEN TREE SURGEONS LTD                ,145155      ,01-Jul-19,1200,0,Tree Work/Storm Damage etc    ,40244               
Borough Council of Kings Lynn and West Norfolk,E07000146,30/06/19,Dog Warden and Services       ,DOGOTEL KENNELS & CATTERY               ,140387      ,23-May-19,741.4,0,Contracted Services           ,24702               
Borough Council of Kings Lynn and West Norfolk,E07000146,30/06/19,Dog Warden and Services       ,DOGOTEL KENNELS & CATTERY               ,140387      ,23-May-19,600,0,Contracted Services           ,24702               
Borough Council of Kings Lynn and West Norfolk,E07000146,30/06/19,Dog Warden and Services       ,DOGOTEL KENNELS & CATTERY               ,140387      ,24-Jun-19,1272.8,0,Contracted Services           ,24702               
Borough Council of Kings Lynn and West Norfolk,E07000146,30/06/19,Telephones                    ,BRITISH TELECOMMUNICATIONS PLC          ,100222      ,23-May-19,1250.92,0,Broadband Charge              ,55103               
Borough Council of Kings Lynn and West Norfolk,E07000146,30/06/19,Care & Repair - Home Impro Agy,SEVEN RESOURCING LTD                    ,145043      ,18-Apr-19,1088.28,0,Agency Staff                  ,31002               
Borough Council of Kings Lynn and West Norfolk,E07000146,30/06/19,Care & Repair - Home Impro Agy,SEVEN RESOURCING LTD                    ,145043      ,09-May-19,989.28,0,Agency Staff                  ,31002               
Borough Council of Kings Lynn and West Norfolk,E07000146,30/06/19,Depot Infestation Works       ,CARTER ACCOMMODATION LTD                ,145045      ,17-Jun-19,748.88,0,Rechargeable Works            ,Y1023               
Borough Council of Kings Lynn and West Norfolk,E07000146,30/06/19,Adapt Grant                   ,MR BRIGHTS LTD                          ,100981      ,13-Jun-19,1728,0,Works                         ,C1202               
Borough Council of Kings Lynn and West Norfolk,E07000146,30/06/19,Playareas Kings Lynn          ,FENLAND LEISURE PRODUCTS LTD            ,117418      ,11-Apr-19,948.24,0,Play Area Maintenance         ,40255               
Borough Council of Kings Lynn and West Norfolk,E07000146,30/06/19,Adapt Grant                   ,CHAS D ALLFLATT LTD                     ,100315      ,08-Apr-19,967.75,0,Works                         ,C1202               
Borough Council of Kings Lynn and West Norfolk,E07000146,30/06/19,Learning Catalyst             ,EMAT T/A SOUTHERY ACADEMY               ,147757      ,27-May-19,950.76,0,Partnerships                  ,77587               
Borough Council of Kings Lynn and West Norfolk,E07000146,30/06/19,Open Cemeteries               ,CEMETERY DEVLOPMENT SERVICES LTD        ,147791      ,20-May-19,1770,0,Professional Fees             ,20650               
Borough Council of Kings Lynn and West Norfolk,E07000146,30/06/19,Community Safety              ,NORFOLK COUNTY COUNCIL                  ,101142      ,08-Apr-19,4000,0,Financial Assistance          ,74004               
Borough Council of Kings Lynn and West Norfolk,E07000146,30/06/19,Local Land Charges            ,NORFOLK COUNTY COUNCIL                  ,101142      ,10-Jun-19,5122.8,0,Land Charges                  ,77001               
Borough Council of Kings Lynn and West Norfolk,E07000146,30/06/19,Decrim - Other                ,NORFOLK COUNTY COUNCIL                  ,101142      ,17-Jun-19,146914.82,0,Agency                        ,21839               
Borough Council of Kings Lynn and West Norfolk,E07000146,30/06/19,Parish/Borough Coun. Elections,ELECTION PAYMENTS                       ,ELEC        ,17-Jun-19,532.65,0,Election Payments             ,70503               
Borough Council of Kings Lynn and West Norfolk,E07000146,30/06/19,Food Waste                    ,KIER SERVICES ENVIRONMENTAL             ,141535      ,27-May-19,595.59,0,Contracted Services           ,28132               
Borough Council of Kings Lynn and West Norfolk,E07000146,30/06/19,Dry Box Collection Scheme     ,KIER SERVICES ENVIRONMENTAL             ,141535      ,27-May-19,16776.76,0,Waste Processing Cost         ,28125               
Borough Council of Kings Lynn and West Norfolk,E07000146,30/06/19,Domestic Refuse               ,KIER SERVICES ENVIRONMENTAL             ,141535      ,27-May-19,3157.12,0,Contracted Services           ,20412               
Borough Council of Kings Lynn and West Norfolk,E07000146,30/06/19,Recycling Composting          ,KIER SERVICES ENVIRONMENTAL             ,141535      ,27-May-19,24403.63,0,Contracted Services           ,28124               
Borough Council of Kings Lynn and West Norfolk,E07000146,30/06/19,Domestic Refuse               ,KIER SERVICES ENVIRONMENTAL             ,141535      ,27-May-19,3023.84,0,Contracted Services           ,20412               
Borough Council of Kings Lynn and West Norfolk,E07000146,30/06/19,Food Waste                    ,KIER SERVICES ENVIRONMENTAL             ,141535      ,27-May-19,29014.57,0,Contracted Services           ,28132               
Borough Council of Kings Lynn and West Norfolk,E07000146,30/06/19,Domestic Refuse               ,KIER SERVICES ENVIRONMENTAL             ,141535      ,27-May-19,83542.65,0,Contracted Services           ,20412               
Borough Council of Kings Lynn and West Norfolk,E07000146,30/06/19,Dry Box Collection Scheme     ,KIER SERVICES ENVIRONMENTAL             ,141535      ,27-May-19,3203.12,0,Contracted Services           ,28125               
Borough Council of Kings Lynn and West Norfolk,E07000146,30/06/19,Recycling Composting          ,KIER SERVICES ENVIRONMENTAL             ,141535      ,27-May-19,32966.2,0,Contracted Services           ,28124               
Borough Council of Kings Lynn and West Norfolk,E07000146,30/06/19,Domestic Refuse               ,KIER SERVICES ENVIRONMENTAL             ,141535      ,27-May-19,4036.77,0,Contracted Services           ,20412               
Borough Council of Kings Lynn and West Norfolk,E07000146,30/06/19,Trade Refuse                  ,KIER SERVICES ENVIRONMENTAL             ,141535      ,27-May-19,9611.07,0,Contracted Services           ,20411               
Borough Council of Kings Lynn and West Norfolk,E07000146,30/06/19,Food Waste                    ,KIER SERVICES ENVIRONMENTAL             ,141535      ,27-May-19,1996.86,0,Contracted Services           ,28132               
Borough Council of Kings Lynn and West Norfolk,E07000146,30/06/19,Recycling Commercial          ,KIER SERVICES ENVIRONMENTAL             ,141535      ,27-May-19,806.72,0,Contracted Services           ,28127               
Borough Council of Kings Lynn and West Norfolk,E07000146,30/06/19,Dry Box Collection Scheme     ,KIER SERVICES ENVIRONMENTAL             ,141535      ,27-May-19,85129.08,0,Contracted Services           ,28125               
Borough Council of Kings Lynn and West Norfolk,E07000146,30/06/19,Princess Theatre Main Account ,SMITH BUILDING SERVICES LTD             ,101443      ,15-Apr-19,1925,0,General Repairs               ,41001               
Borough Council of Kings Lynn and West Norfolk,E07000146,30/06/19,Cost of Collection - CTax     ,ROYAL MAIL GROUP LTD                    ,101369      ,08-Apr-19,1738.72,0,Postages                      ,76003               
Borough Council of Kings Lynn and West Norfolk,E07000146,30/06/19,BCKLWN Control Account        ,ROSSENDALES LTD                         ,101364      ,11-Apr-19,937.42,0,VAT Input (VAT Only Invoice)  ,BC999               
Borough Council of Kings Lynn and West Norfolk,E07000146,30/06/19,Public Cleansing              ,FORD & SLATER DAF KINGS LYNN            ,100682      ,02-May-19,2906.34,0,Contract Repairs              ,94101               
Borough Council of Kings Lynn and West Norfolk,E07000146,30/06/19,Adapt Grant                   ,CHAS D ALLFLATT LTD                     ,100315      ,22-Apr-19,4239.29,0,Works                         ,C1202               
Borough Council of Kings Lynn and West Norfolk,E07000146,30/06/19,Adapt Grant                   ,CHAS D ALLFLATT LTD                     ,100315      ,09-May-19,3603.33,0,Works                         ,C1202               
Borough Council of Kings Lynn and West Norfolk,E07000146,30/06/19,Adapt Grant                   ,CHAS D ALLFLATT LTD                     ,100315      ,27-May-19,1545.3,0,Works                         ,C1202               
Borough Council of Kings Lynn and West Norfolk,E07000146,30/06/19,Adapt Grant                   ,CHAS D ALLFLATT LTD                     ,100315      ,27-Jun-19,2419.28,0,Works                         ,C1202               
Borough Council of Kings Lynn and West Norfolk,E07000146,30/06/19,Cashless Park YT(Gt Ya off St),CHIPSIDE LTD                            ,146272      ,03-Jun-19,642.08,0,Transaction Fee               ,21865               
Borough Council of Kings Lynn and West Norfolk,E07000146,30/06/19,Cashless Park KZ (KLWN off St),CHIPSIDE LTD                            ,146272      ,03-Jun-19,1375.42,0,Transaction Fee               ,21856               
Borough Council of Kings Lynn and West Norfolk,E07000146,30/06/19,Housing Options Programme     ,LOOKATME1ST.COM                         ,147992      ,06-Jun-19,750,0,Homelessness Prevention Fund  ,33004               
Borough Council of Kings Lynn and West Norfolk,E07000146,30/06/19,KL Arts Centre                ,KINGS LYNN COMMUNITY CINEMA CLUB        ,147996      ,10-Jun-19,2419,0,Hiring Charges Income         ,46101               
Borough Council of Kings Lynn and West Norfolk,E07000146,30/06/19,Parish/Borough Coun. Elections,ELECTION PAYMENTS                       ,ELEC        ,17-Jun-19,878.75,0,Election Payments             ,70503               
Borough Council of Kings Lynn and West Norfolk,E07000146,30/06/19,Parish/Borough Coun. Elections,ELECTION PAYMENTS                       ,ELEC        ,17-Jun-19,1792.5,0,Election Payments             ,70503               
Borough Council of Kings Lynn and West Norfolk,E07000146,30/06/19,50127                         ,GREEN DUCK LTD                          ,140200      ,23-May-19,1650,0,In-House Training             ,50127               
Borough Council of Kings Lynn and West Norfolk,E07000146,30/06/19,Training Holding Account      ,GREEN DUCK LTD                          ,140200      ,23-May-19,1650,0,In-House Training             ,50127               
Borough Council of Kings Lynn and West Norfolk,E07000146,30/06/19,North Lynn Industrial Est     ,1-2 CALL DRAINAGE & GROUNDWORK LTD      ,131800      ,08-Apr-19,1070,0,Repairs - Services Charges    ,11203               
Borough Council of Kings Lynn and West Norfolk,E07000146,30/06/19,Adapt Grant                   ,A SMITH CONTRACTORS                     ,115351      ,08-Apr-19,1000,0,Works                         ,C1202               
Borough Council of Kings Lynn and West Norfolk,E07000146,30/06/19,Adapt Grant                   ,A SMITH CONTRACTORS                     ,115351      ,22-Apr-19,935,0,Works                         ,C1202               
Borough Council of Kings Lynn and West Norfolk,E07000146,30/06/19,Adapt Grant                   ,A SMITH CONTRACTORS                     ,115351      ,09-May-19,675,0,Works                         ,C1202               
Borough Council of Kings Lynn and West Norfolk,E07000146,30/06/19,ICT                           ,CLARANET LTD                            ,119601      ,03-Jun-19,1203.25,0,Communications                ,55101               
Borough Council of Kings Lynn and West Norfolk,E07000146,30/06/19,CREDITORS HOLDING ACCOUNT     ,WAVE                                    ,100086      ,08-Apr-19,6197.2,0,Water Services                ,H1102               
Borough Council of Kings Lynn and West Norfolk,E07000146,30/06/19,Corn Exchange                 ,CORONA ENERGY RETAIL 4 LTD              ,131838      ,18-Apr-19,1223.22,0,Gas                           ,42701               
Borough Council of Kings Lynn and West Norfolk,E07000146,30/06/19,KL Arts Centre                ,CORONA ENERGY RETAIL 4 LTD              ,131838      ,23-May-19,667.63,0,Gas                           ,46101               
Borough Council of Kings Lynn and West Norfolk,E07000146,30/06/19,Oasis General Account         ,CORONA ENERGY RETAIL 4 LTD              ,131838      ,20-Jun-19,3022.21,0,Gas                           ,95721               
Borough Council of Kings Lynn and West Norfolk,E07000146,30/06/19,Hunstanton Parks HLF          ,KINGS LYNN SIGNS                        ,100887      ,10-Jun-19,582.4,0,Tools And Equipment           ,41213               
Borough Council of Kings Lynn and West Norfolk,E07000146,30/06/19,Grounds Maintenance Vehicles  ,FORD MOTOR COMPANY LTD                  ,144599      ,30-May-19,22232.6,0,Equipment/Materials           ,C1701               
Borough Council of Kings Lynn and West Norfolk,E07000146,30/06/19,Head of Legal Services        ,NORTH NORFOLK DISTRICT COUNCIL          ,101156      ,01-Jul-19,500,0,Commissioning Ext. Legal fees ,50203               
Borough Council of Kings Lynn and West Norfolk,E07000146,30/06/19,Precepts Of Parish Councils   ,BIRCHAM PARISH COUNCIL                  ,100179      ,15-Apr-19,10890.1,0,Parishes                      ,00000               
Borough Council of Kings Lynn and West Norfolk,E07000146,30/06/19,ICT                           ,VODAFONE LTD                            ,100275      ,03-Jun-19,3744.44,0,Communications                ,55101               
Borough Council of Kings Lynn and West Norfolk,E07000146,30/06/19,Precepts Of Parish Councils   ,EMNETH PARISH COUNCIL                   ,100559      ,15-Apr-19,34640,0,Parishes                      ,00000               
Borough Council of Kings Lynn and West Norfolk,E07000146,30/06/19,Nelson Quay Redevelopment     ,FENLAND DISTRICT COUNCIL                ,100625      ,08-Apr-19,1921.6,0,External Fees/Consultancy     ,C8170               
Borough Council of Kings Lynn and West Norfolk,E07000146,30/06/19,Parking Operations - Borough  ,LE STRANGE ESTATE                       ,100920      ,02-May-19,25141.5,0,Rent                          ,21840               
Borough Council of Kings Lynn and West Norfolk,E07000146,30/06/19,Precepts Of Parish Councils   ,STOKE FERRY INTERNAL DRAINAGE BRD       ,101484      ,29-Apr-19,22532.97,0,Drainage Boards               ,00000               
Borough Council of Kings Lynn and West Norfolk,E07000146,30/06/19,Hanse from 2018               ,VIKING STAGE LIGHTING                   ,101593      ,06-Jun-19,500,0,Professional Fees             ,21871               
Borough Council of Kings Lynn and West Norfolk,E07000146,30/06/19,Disabled Facilties Grant      ,CLOSOMAT LTD                            ,101557      ,25-Apr-19,4200,0,Works                         ,C1201               
Borough Council of Kings Lynn and West Norfolk,E07000146,30/06/19,Precepts Of Parish Councils   ,WALPOLE HIGHWAY PARISH COUNCIL          ,101609      ,15-Apr-19,10336,0,Parishes                      ,00000               
Borough Council of Kings Lynn and West Norfolk,E07000146,30/06/19,Precepts Of Parish Councils   ,WALSOKEN PARISH COUNCIL                 ,101611      ,15-Apr-19,10353,0,Parishes                      ,00000               
Borough Council of Kings Lynn and West Norfolk,E07000146,30/06/19,GM Central Area               ,KERNOCK PARK PLANTS LTD                 ,102061      ,27-Jun-19,980,0,Materials                     ,92102               
Borough Council of Kings Lynn and West Norfolk,E07000146,30/06/19,LILY PHASE 4                  ,WEST NORFOLK DEAF ASSOCIATION           ,112058      ,29-Apr-19,1040,0,Lily Advisor Payments         ,31023               
Borough Council of Kings Lynn and West Norfolk,E07000146,30/06/19,Improving Attainment          ,WHITEFRIARS CE PRIMARY ACADEMY          ,110965      ,20-Jun-19,1300,0,Small Projects                ,77580               
Borough Council of Kings Lynn and West Norfolk,E07000146,30/06/19,ICT                           ,GLADSTONE MRM LTD.                      ,119387      ,02-May-19,1254,0,Computer Software Maintenance ,55101               
Borough Council of Kings Lynn and West Norfolk,E07000146,30/06/19,ICT                           ,GLADSTONE MRM LTD.                      ,119387      ,18-Jul-19,1316.72,0,Computer Software Maintenance ,55101               
Borough Council of Kings Lynn and West Norfolk,E07000146,30/06/19,Day visitor awareness         ,BELMONT PRESS LTD                       ,122176      ,13-Jun-19,8380,0,Where to go & What to do      ,48525               
Borough Council of Kings Lynn and West Norfolk,E07000146,30/06/19,European Elections            ,P HARVEY                                ,124213      ,06-Jun-19,3600,0,Hired Vehicles                ,75506               
Borough Council of Kings Lynn and West Norfolk,E07000146,30/06/19,50127                         ,AQUILA TRAINING SERVICES LTD            ,131735      ,04-Jul-19,1529,0,In-House Training             ,50127               
Borough Council of Kings Lynn and West Norfolk,E07000146,30/06/19,Training Holding Account      ,AQUILA TRAINING SERVICES LTD            ,131735      ,04-Jul-19,1529,0,In-House Training             ,50127               
Borough Council of Kings Lynn and West Norfolk,E07000146,30/06/19,Ev Trail/Stage/Gen Equ fr 2018,PEARCE SOUND & LIGHTING LTD             ,136724      ,18-Apr-19,4437.82,0,Tools And Equipment           ,21889               
Borough Council of Kings Lynn and West Norfolk,E07000146,30/06/19,50302                         ,HAYS SPECIALIST RECRUITMENT             ,137507      ,06-Jun-19,648.27,0,Agency Staff                  ,50302               
Borough Council of Kings Lynn and West Norfolk,E07000146,30/06/19,Financial Services            ,HAYS SPECIALIST RECRUITMENT             ,137507      ,06-Jun-19,648.27,0,Agency Staff                  ,50302               
Borough Council of Kings Lynn and West Norfolk,E07000146,30/06/19,Homestay & Genesis            ,NOTTING HILL GENESIS                    ,139043      ,11-Apr-19,12500,0,Agency                        ,33021               
Borough Council of Kings Lynn and West Norfolk,E07000146,30/06/19,Parking Operations - Borough  ,SUPREME SURFACING LTD                   ,135993      ,17-Jun-19,1500,0,General Repairs               ,21840               
Borough Council of Kings Lynn and West Norfolk,E07000146,30/06/19,Printing & Copying - Printroom,KONICA MINOLTA BUSINESS SOLUTIONS       ,141349      ,02-May-19,877.21,0,Konica Usage                  ,52504               
Borough Council of Kings Lynn and West Norfolk,E07000146,30/06/19,Precepts Of Parish Councils   ,GAYTON PARISH COUNCIL                   ,100679      ,15-Apr-19,17900,0,Parishes                      ,00000               
Borough Council of Kings Lynn and West Norfolk,E07000146,30/06/19,Community Infrastructure Levy ,THORNHAM PARISH COUNCIL                 ,101546      ,18-Apr-19,4761,0,Payment to Parishes           ,62704               
Borough Council of Kings Lynn and West Norfolk,E07000146,30/06/19,Decrim - Operational          ,PATROL                                  ,139511      ,02-May-19,2832.9,0,Miscellaneous                 ,21837               
Borough Council of Kings Lynn and West Norfolk,E07000146,30/06/19,CCTV                          ,NET-CTRL LTD                            ,142211      ,13-May-19,1817.54,0,General Repairs               ,49901               
Borough Council of Kings Lynn and West Norfolk,E07000146,30/06/19,Precepts Of Parish Councils   ,TILNEY ST LAWRENCE PARISH CNCL          ,101550      ,15-Apr-19,22208,0,Parishes                      ,00000               
Borough Council of Kings Lynn and West Norfolk,E07000146,30/06/19,Public Cleansing              ,R & L ENGINEERING LTD                   ,136684      ,08-Apr-19,3270,0,Equipment Toilets             ,94101               
Borough Council of Kings Lynn and West Norfolk,E07000146,30/06/19,Precepts Of Parish Councils   ,NEEDHAM AND LADDUS IDB                  ,101106      ,23-May-19,9632.5,0,Drainage Boards               ,00000               
Borough Council of Kings Lynn and West Norfolk,E07000146,30/06/19,Parks & Open Spaces           ,BARCHAM TREES PLC                       ,100144      ,15-Apr-19,1380,0,Tree Work/Storm Damage etc    ,40230               
Borough Council of Kings Lynn and West Norfolk,E07000146,30/06/19,Parish/Borough Coun. Elections,KINGS LYNN CHRISTIAN FELLOWSHIP         ,124229      ,03-Jun-19,500,0,Hire Of Halls                 ,70503               
Borough Council of Kings Lynn and West Norfolk,E07000146,30/06/19,ICT                           ,IDOX SOFTWARE LTD                       ,132346      ,22-Apr-19,5700,0,Computer Software Maintenance ,55101               
Borough Council of Kings Lynn and West Norfolk,E07000146,30/06/19,Community Infrastructure Levy ,METHWOLD PARISH COUNCIL                 ,101040      ,18-Apr-19,990,0,Payment to Parishes           ,62704               
Borough Council of Kings Lynn and West Norfolk,E07000146,30/06/19,Coastal Defence/Protection    ,ST LA HAYE LTD                          ,126570      ,02-May-19,989.3,0,Professional Fees             ,41210               
Borough Council of Kings Lynn and West Norfolk,E07000146,30/06/19,ICT                           ,TECTRADE COMPUTERS LIMITED              ,123794      ,03-Jun-19,4800.32,0,Computer Software Maintenance ,55101               
Borough Council of Kings Lynn and West Norfolk,E07000146,30/06/19,Cost of Collection - CTax     ,DSI BILLING SERVICES LTD                ,143590      ,25-Apr-19,10047.56,0,Stationery & Office Supplies  ,76003               
Borough Council of Kings Lynn and West Norfolk,E07000146,30/06/19,Cost of Collection - CTax     ,DSI BILLING SERVICES LTD                ,143590      ,25-Apr-19,18386.1,0,Postages                      ,76003               
